Workbook

Sheet leány (hidden)
B1: 101 m | C1: 100m | D1: 801 m | E1: 800 m | F1: Pont | G1: Távol | H1: Súlyl. | I1: Kisl. | J1: Pont
B2: 11.34 | C2: 11.35 | D2: 00:01:58 | E2: 00:02:00 | F2: 300 | G2: =P2/100 -> 1.8 | H2: 3 | I2: 4 | J2: 0 | P2: 180
B3: 11.351 | C3: 11.37 | D3: 00:02:00.001 | E3: 00:02:00.200 | F3: 299 | G3: 1.82 | H3: 3.05 | I3: 4.28 | J3: 1 | P3: 182
B4: 11.371 | C4: 11.39 | D4: 00:02:00.201 | E4: 00:02:00.600 | F4: 298 | G4: 1.84 | H4: 3.1 | I4: 4.56 | J4: 2 | P4: 184
B5: 11.391 | C5: 11.41 | D5: 00:02:00.601 | E5: 00:02:00.900 | F5: 297 | G5: 1.86 | H5: 3.14 | I5: 4.84 | J5: 3 | P5: 186
B6: 11.411 | C6: 11.43 | D6: 00:02:00.901 | E6: 00:02:01.200 | F6: 296 | G6: 1.87 | H6: 3.19 | I6: 5.11 | J6: 4 | P6: 187
B7: 11.431 | C7: 11.46 | D7: 00:02:01.201 | E7: 00:02:01.500 | F7: 295 | G7: 1.89 | H7: 3.24 | I7: 5.39 | J7: 5 | P7: 189
B8: 11.461 | C8: 11.48 | D8: 00:02:01.501 | E8: 00:02:01.800 | F8: 294 | G8: 1.91 | H8: 3.29 | I8: 5.67 | J8: 6 | P8: 191
B9: 11.481 | C9: 11.5 | D9: 00:02:01.801 | E9: 00:02:02.100 | F9: 293 | G9: 1.93 | H9: 3.34 | I9: 5.95 | J9: 7 | P9: 193
B10: 11.501 | C10: 11.52 | D10: 00:02:02.101 | E10: 00:02:02.400 | F10: 292 | G10: 1.95 | H10: 3.38 | I10: 6.23 | J10: 8 | P10: 195
B11: 11.521 | C11: 11.54 | D11: 00:02:02.401 | E11: 00:02:02.700 | F11: 291 | G11: 1.97 | H11: 3.43 | I11: 6.51 | J11: 9 | P11: 197
B12: 11.541 | C12: 11.56 | D12: 00:02:02.701 | E12: 00:02:03 | F12: 290 | G12: 1.99 | H12: 3.48 | I12: 6.78 | J12: 10 | P12: 199
B13: 11.561 | C13: 11.58 | D13: 00:02:03.001 | E13: 00:02:03.300 | F13: 289 | G13: 2.01 | H13: 3.53 | I13: 7.06 | J13: 11 | P13: 201
B14: 11.581 | C14: 11.6 | D14: 00:02:03.301 | E14: 00:02:03.600 | F14: 288 | G14: 2.02 | H14: 3.58 | I14: 7.34 | J14: 12 | P14: 202
B15: 11.601 | C15: 11.62 | D15: 00:02:03.601 | E15: 00:02:03.900 | F15: 287 | G15: 2.04 | H15: 3.62 | I15: 7.62 | J15: 13 | P15: 204
B16: 11.621 | C16: 11.64 | D16: 00:02:03.901 | E16: 00:02:04.200 | F16: 286 | G16: 2.06 | H16: 3.67 | I16: 7.9 | J16: 14 | P16: 206
B17: 11.641 | C17: 11.67 | D17: 00:02:04.201 | E17: 00:02:04.500 | F17: 285 | G17: 2.08 | H17: 3.72 | I17: 8.18 | J17: 15 | P17: 208
B18: 11.671 | C18: 11.69 | D18: 00:02:04.501 | E18: 00:02:04.800 | F18: 284 | G18: 2.1 | H18: 3.77 | I18: 8.45 | J18: 16 | P18: 210
B19: 11.691 | C19: 11.71 | D19: 00:02:04.801 | E19: 00:02:05.100 | F19: 283 | G19: 2.12 | H19: 3.82 | I19: 8.73 | J19: 17 | P19: 212
B20: 11.711 | C20: 11.73 | D20: 00:02:05.101 | E20: 00:02:05.400 | F20: 282 | G20: 2.14 | H20: 3.86 | I20: 9.01 | J20: 18 | P20: 214
B21: 11.731 | C21: 11.75 | D21: 00:02:05.401 | E21: 00:02:05.700 | F21: 281 | G21: 2.16 | H21: 3.91 | I21: 9.29 | J21: 19 | P21: 216
B22: 11.751 | C22: 11.77 | D22: 00:02:05.701 | E22: 00:02:06 | F22: 280 | G22: 2.17 | H22: 3.96 | I22: 9.57 | J22: 20 | P22: 217
B23: 11.771 | C23: 11.79 | D23: 00:02:06.001 | E23: 00:02:06.300 | F23: 279 | G23: 2.19 | H23: 4.01 | I23: 9.85 | J23: 21 | P23: 219
B24: 11.791 | C24: 11.81 | D24: 00:02:06.301 | E24: 00:02:06.600 | F24: 278 | G24: 2.21 | H24: 4.06 | I24: 10.12 | J24: 22 | P24: 221
B25: 11.811 | C25: 11.83 | D25: 00:02:06.601 | E25: 00:02:06.900 | F25: 277 | G25: 2.23 | H25: 4.1 | I25: 10.4 | J25: 23 | P25: 223
B26: 11.831 | C26: 11.85 | D26: 00:02:06.901 | E26: 00:02:07.200 | F26: 276 | G26: 2.25 | H26: 4.15 | I26: 10.68 | J26: 24 | P26: 225
B27: 11.851 | C27: 11.88 | D27: 00:02:07.201 | E27: 00:02:07.500 | F27: 275 | G27: 2.27 | H27: 4.2 | I27: 10.96 | J27: 25 | P27: 227
B28: 11.881 | C28: 11.9 | D28: 00:02:07.501 | E28: 00:02:07.800 | F28: 274 | G28: 2.29 | H28: 4.25 | I28: 11.24 | J28: 26 | P28: 229
B29: 11.901 | C29: 11.92 | D29: 00:02:07.801 | E29: 00:02:08.100 | F29: 273 | G29: 2.31 | H29: 4.3 | I29: 11.52 | J29: 27 | P29: 231
B30: 11.921 | C30: 11.94 | D30: 00:02:08.101 | E30: 00:02:08.400 | F30: 272 | G30: 2.32 | H30: 4.34 | I30: 11.8 | J30: 28 | P30: 232
B31: 11.941 | C31: 11.96 | D31: 00:02:08.401 | E31: 00:02:08.700 | F31: 271 | G31: 2.34 | H31: 4.39 | I31: 12.07 | J31: 29 | P31: 234
B32: 11.961 | C32: 11.98 | D32: 00:02:08.701 | E32: 00:02:09 | F32: 270 | G32: 2.36 | H32: 4.44 | I32: 12.35 | J32: 30 | P32: 236
B33: 11.981 | C33: 12 | D33: 00:02:09.001 | E33: 00:02:09.300 | F33: 269 | G33: 2.38 | H33: 4.49 | I33: 12.63 | J33: 31 | P33: 238
B34: 12.001 | C34: 12.02 | D34: 00:02:09.301 | E34: 00:02:09.600 | F34: 268 | G34: 2.4 | H34: 4.54 | I34: 12.91 | J34: 32 | P34: 240
B35: 12.021 | C35: 12.04 | D35: 00:02:09.601 | E35: 00:02:09.900 | F35: 267 | G35: 2.42 | H35: 4.58 | I35: 13.19 | J35: 33 | P35: 242
B36: 12.041 | C36: 12.04 | D36: 00:02:09.901 | E36: 00:02:10.200 | F36: 266 | G36: 2.44 | H36: 4.63 | I36: 13.47 | J36: 34 | P36: 244
B37: 12.041 | C37: 12.09 | D37: 00:02:10.201 | E37: 00:02:10.500 | F37: 265 | G37: 2.46 | H37: 4.68 | I37: 13.74 | J37: 35 | P37: 246
B38: 12.091 | C38: 12.11 | D38: 00:02:10.501 | E38: 00:02:10.800 | F38: 264 | G38: 2.47 | H38: 4.73 | I38: 14.02 | J38: 36 | P38: 247
B39: 12.111 | C39: 12.13 | D39: 00:02:10.801 | E39: 00:02:11.100 | F39: 263 | G39: 2.49 | H39: 4.78 | I39: 14.3 | J39: 37 | P39: 249
B40: 12.131 | C40: 12.15 | D40: 00:02:11.101 | E40: 00:02:11.400 | F40: 262 | G40: 2.51 | H40: 4.82 | I40: 14.58 | J40: 38 | P40: 251
B41: 12.151 | C41: 12.17 | D41: 00:02:11.401 | E41: 00:02:11.700 | F41: 261 | G41: 2.53 | H41: 4.87 | I41: 14.86 | J41: 39 | P41: 253
B42: 12.171 | C42: 12.19 | D42: 00:02:11.701 | E42: 00:02:12 | F42: 260 | G42: 2.55 | H42: 4.92 | I42: 15.14 | J42: 40 | P42: 255
B43: 12.191 | C43: 12.21 | D43: 00:02:12.001 | E43: 00:02:12.300 | F43: 259 | G43: 2.57 | H43: 4.97 | I43: 15.41 | J43: 41 | P43: 257
B44: 12.211 | C44: 12.23 | D44: 00:02:12.301 | E44: 00:02:12.600 | F44: 258 | G44: 2.59 | H44: 5.02 | I44: 15.69 | J44: 42 | P44: 259
B45: 12.231 | C45: 12.25 | D45: 00:02:12.601 | E45: 00:02:12.900 | F45: 257 | G45: 2.61 | H45: 5.06 | I45: 15.97 | J45: 43 | P45: 261
B46: 12.251 | C46: 12.27 | D46: 00:02:12.901 | E46: 00:02:13.200 | F46: 256 | G46: 2.62 | H46: 5.11 | I46: 16.25 | J46: 44 | P46: 262
B47: 12.271 | C47: 12.3 | D47: 00:02:13.201 | E47: 00:02:13.500 | F47: 255 | G47: 2.64 | H47: 5.16 | I47: 16.53 | J47: 45 | P47: 264
B48: 12.301 | C48: 12.32 | D48: 00:02:13.501 | E48: 00:02:13.800 | F48: 254 | G48: 2.66 | H48: 5.21 | I48: 16.81 | J48: 46 | P48: 266
B49: 12.321 | C49: 12.34 | D49: 00:02:13.801 | E49: 00:02:14.100 | F49: 253 | G49: 2.68 | H49: 5.26 | I49: 17.08 | J49: 47 | P49: 268
B50: 12.341 | C50: 12.36 | D50: 00:02:14.101 | E50: 00:02:14.400 | F50: 252 | G50: 2.7 | H50: 5.3 | I50: 17.36 | J50: 48 | P50: 270
B51: 12.361 | C51: 12.38 | D51: 00:02:14.401 | E51: 00:02:14.700 | F51: 251 | G51: 2.72 | H51: 5.35 | I51: 17.64 | J51: 49 | P51: 272
B52: 12.381 | C52: 12.4 | D52: 00:02:14.701 | E52: 00:02:15 | F52: 250 | G52: 2.73 | H52: 5.4 | I52: 17.92 | J52: 50 | P52: 273
B53: 12.401 | C53: 12.42 | D53: 00:02:15.001 | E53: 00:02:15.336 | F53: 249 | G53: 2.75 | H53: 5.44 | I53: 18.18 | J53: 51 | P53: 275
B54: 12.421 | C54: 12.44 | D54: 00:02:15.341 | E54: 00:02:15.672 | F54: 248 | G54: 2.76 | H54: 5.49 | I54: 18.43 | J54: 52 | P54: 276
B55: 12.441 | C55: 12.46 | D55: 00:02:15.671 | E55: 00:02:16.008 | F55: 247 | G55: 2.78 | H55: 5.53 | I55: 18.69 | J55: 53 | P55: 278
B56: 12.461 | C56: 12.48 | D56: 00:02:16.011 | E56: 00:02:16.344 | F56: 246 | G56: 2.8 | H56: 5.58 | I56: 18.94 | J56: 54 | P56: 280
B57: 12.481 | C57: 12.51 | D57: 00:02:16.341 | E57: 00:02:16.680 | F57: 245 | G57: 2.82 | H57: 5.62 | I57: 19.2 | J57: 55 | P57: 282
B58: 12.511 | C58: 12.53 | D58: 00:02:16.681 | E58: 00:02:17.016 | F58: 244 | G58: 2.83 | H58: 5.66 | I58: 19.45 | J58: 56 | P58: 283
B59: 12.531 | C59: 12.55 | D59: 00:02:17.021 | E59: 00:02:17.352 | F59: 243 | G59: 2.85 | H59: 5.71 | I59: 19.71 | J59: 57 | P59: 285
B60: 12.551 | C60: 12.57 | D60: 00:02:17.351 | E60: 00:02:17.688 | F60: 242 | G60: 2.87 | H60: 5.75 | I60: 19.96 | J60: 58 | P60: 287
B61: 12.571 | C61: 12.59 | D61: 00:02:17.691 | E61: 00:02:18.024 | F61: 241 | G61: 2.88 | H61: 5.8 | I61: 20.22 | J61: 59 | P61: 288
B62: 12.591 | C62: 12.61 | D62: 00:02:18.021 | E62: 00:02:18.360 | F62: 240 | G62: 2.9 | H62: 5.84 | I62: 20.47 | J62: 60 | P62: 290
B63: 12.611 | C63: 12.63 | D63: 00:02:18.361 | E63: 00:02:18.696 | F63: 239 | G63: 2.92 | H63: 5.88 | I63: 20.73 | J63: 61 | P63: 292
B64: 12.631 | C64: 12.65 | D64: 00:02:18.701 | E64: 00:02:19.032 | F64: 238 | G64: 2.94 | H64: 5.93 | I64: 20.98 | J64: 62 | P64: 294
B65: 12.651 | C65: 12.68 | D65: 00:02:19.031 | E65: 00:02:19.368 | F65: 237 | G65: 2.95 | H65: 5.97 | I65: 21.24 | J65: 63 | P65: 295
B66: 12.681 | C66: 12.7 | D66: 00:02:19.371 | E66: 00:02:19.704 | F66: 236 | G66: =P66/100 -> 2.97 | H66: 6.02 | I66: 21.49 | J66: 64 | P66: 297
B67: 12.701 | C67: 12.72 | D67: 00:02:19.701 | E67: 00:02:20.040 | F67: 235 | G67: 2.99 | H67: 6.06 | I67: 21.75 | J67: 65 | P67: 299
B68: 12.721 | C68: 12.74 | D68: 00:02:20.041 | E68: 00:02:20.376 | F68: 234 | G68: 3 | H68: 6.1 | I68: 22 | J68: 66 | P68: 300
B69: 12.741 | C69: 12.76 | D69: 00:02:20.381 | E69: 00:02:20.712 | F69: 233 | G69: 3.02 | H69: 6.15 | I69: 22.26 | J69: 67 | P69: 302
B70: 12.761 | C70: 12.78 | D70: 00:02:20.711 | E70: 00:02:21.048 | F70: 232 | G70: 3.04 | H70: 6.19 | I70: 22.51 | J70: 68 | P70: 304
B71: 12.781 | C71: 12.8 | D71: 00:02:21.049 | E71: 00:02:21.384 | F71: 231 | G71: 3.06 | H71: 6.24 | I71: 22.77 | J71: 69 | P71: 306
B72: 12.801 | C72: 12.82 | D72: 00:02:21.386 | E72: 00:02:21.720 | F72: 230 | G72: 3.07 | H72: 6.28 | I72: 23.02 | J72: 70 | P72: 307
B73: 12.821 | C73: 12.85 | D73: 00:02:21.722 | E73: 00:02:22.056 | F73: 229 | G73: 3.09 | H73: 6.32 | I73: 23.28 | J73: 71 | P73: 309
B74: 12.851 | C74: 12.87 | D74: 00:02:22.261 | E74: 00:02:22.392 | F74: 228 | G74: 3.11 | H74: 6.37 | I74: 23.53 | J74: 72 | P74: 311
B75: 12.871 | C75: 12.89 | D75: 00:02:22.395 | E75: 00:02:22.728 | F75: 227 | G75: 3.12 | H75: 6.41 | I75: 23.79 | J75: 73 | P75: 312
B76: 12.891 | C76: 12.91 | D76: 00:02:22.731 | E76: 00:02:23.064 | F76: 226 | G76: 3.14 | H76: 6.46 | I76: 24.04 | J76: 74 | P76: 314
B77: 12.911 | C77: 12.93 | D77: 00:02:23.066 | E77: 00:02:23.400 | F77: 225 | G77: 3.16 | H77: 6.5 | I77: 24.3 | J77: 75 | P77: 316
B78: 12.931 | C78: 12.95 | D78: 00:02:23.402 | E78: 00:02:23.736 | F78: 224 | G78: 3.18 | H78: 6.54 | I78: 24.56 | J78: 76 | P78: 318
B79: 12.951 | C79: 12.97 | D79: 00:02:23.741 | E79: 00:02:24.072 | F79: 223 | G79: 3.19 | H79: 6.59 | I79: 24.81 | J79: 77 | P79: 319
B80: 12.971 | C80: 12.99 | D80: 00:02:24.073 | E80: 00:02:24.408 | F80: 222 | G80: 3.21 | H80: 6.63 | I80: 25.07 | J80: 78 | P80: 321
B81: 12.991 | C81: 13.01 | D81: 00:02:24.411 | E81: 00:02:24.744 | F81: 221 | G81: 3.23 | H81: 6.68 | I81: 25.32 | J81: 79 | P81: 323
B82: 13.011 | C82: 13.04 | D82: 00:02:24.745 | E82: 00:02:25.080 | F82: 220 | G82: 3.24 | H82: 6.72 | I82: 25.58 | J82: 80 | P82: 324
B83: 13.041 | C83: 13.06 | D83: 00:02:25.081 | E83: 00:02:25.416 | F83: 219 | G83: 3.26 | H83: 6.76 | I83: 25.83 | J83: 81 | P83: 326
B84: 13.061 | C84: 13.08 | D84: 00:02:25.421 | E84: 00:02:25.752 | F84: 218 | G84: 3.28 | H84: 6.81 | I84: 26.09 | J84: 82 | P84: 328
B85: 13.081 | C85: 13.1 | D85: 00:02:25.757 | E85: 00:02:26.088 | F85: 217 | G85: 3.3 | H85: 6.85 | I85: 26.34 | J85: 83 | P85: 330
B86: 13.101 | C86: 13.12 | D86: 00:02:26.093 | E86: 00:02:26.424 | F86: 216 | G86: 3.31 | H86: 6.9 | I86: 26.6 | J86: 84 | P86: 331
B87: 13.121 | C87: 13.14 | D87: 00:02:26.429 | E87: 00:02:26.760 | F87: 215 | G87: 3.33 | H87: 6.94 | I87: 26.85 | J87: 85 | P87: 333
B88: 13.141 | C88: 13.16 | D88: 00:02:26.765 | E88: 00:02:27.096 | F88: 214 | G88: 3.35 | H88: 6.98 | I88: 27.11 | J88: 86 | P88: 335
B89: 13.161 | C89: 13.18 | D89: 00:02:27.101 | E89: 00:02:27.432 | F89: 213 | G89: 3.36 | H89: 7.03 | I89: 27.36 | J89: 87 | P89: 336
B90: 13.181 | C90: 13.21 | D90: 00:02:27.437 | E90: 00:02:27.768 | F90: 212 | G90: 3.38 | H90: 7.07 | I90: 27.62 | J90: 88 | P90: 338
B91: 13.211 | C91: 13.23 | D91: 00:02:27.773 | E91: 00:02:28.104 | F91: 211 | G91: 3.4 | H91: 7.12 | I91: 27.87 | J91: 89 | P91: 340
B92: 13.231 | C92: 13.25 | D92: 00:02:28.109 | E92: 00:02:28.440 | F92: 210 | G92: 3.42 | H92: 7.16 | I92: 28.13 | J92: 90 | P92: 342
B93: 13.251 | C93: 13.27 | D93: 00:02:28.445 | E93: 00:02:28.776 | F93: 209 | G93: 3.43 | H93: 7.2 | I93: 28.38 | J93: 91 | P93: 343
B94: 13.271 | C94: 13.29 | D94: 00:02:28.781 | E94: 00:02:29.112 | F94: 208 | G94: 3.45 | H94: 7.25 | I94: 28.64 | J94: 92 | P94: 345
B95: 13.291 | C95: 13.31 | D95: 00:02:29.117 | E95: 00:02:29.448 | F95: 207 | G95: 3.47 | H95: 7.29 | I95: 28.89 | J95: 93 | P95: 347
B96: 13.311 | C96: 13.33 | D96: 00:02:29.453 | E96: 00:02:29.784 | F96: 206 | G96: 3.49 | H96: 7.34 | I96: 29.15 | J96: 94 | P96: 349
B97: 13.331 | C97: 13.35 | D97: 00:02:29.789 | E97: 00:02:30.120 | F97: 205 | G97: 3.5 | H97: 7.38 | I97: 29.4 | J97: 95 | P97: 350
B98: 13.351 | C98: 13.38 | D98: 00:02:30.125 | E98: 00:02:30.456 | F98: 204 | G98: 3.52 | H98: 7.42 | I98: 29.66 | J98: 96 | P98: 352
B99: 13.381 | C99: 13.4 | D99: 00:02:30.461 | E99: 00:02:30.792 | F99: 203 | G99: 3.54 | H99: 7.47 | I99: 29.91 | J99: 97 | P99: 354
B100: 13.401 | C100: 13.42 | D100: 00:02:30.797 | E100: 00:02:31.128 | F100: 202 | G100: 3.55 | H100: 7.51 | I100: 30.17 | J100: 98 | P100: 355
B101: 13.421 | C101: 13.44 | D101: 00:02:31.133 | E101: 00:02:31.464 | F101: 201 | G101: 3.57 | H101: 7.56 | I101: 30.42 | J101: 99 | P101: 357
B102: 13.441 | C102: 13.46 | D102: 00:02:31.469 | E102: 00:02:31.800 | F102: 200 | G102: 3.59 | H102: 7.6 | I102: 30.68 | J102: 100 | P102: 359
B103: 13.461 | C103: 13.48 | D103: 00:02:31.805 | E103: 00:02:32.178 | F103: 199 | G103: 3.61 | H103: 7.64 | I103: 30.91 | J103: 101 | P103: 361
B104: 13.481 | C104: 13.51 | D104: 00:02:32.183 | E104: 00:02:32.556 | F104: 198 | G104: 3.62 | H104: 7.68 | I104: 31.14 | J104: 102 | P104: 362
B105: 13.511 | C105: 13.53 | D105: 00:02:32.561 | E105: 00:02:32.934 | F105: 197 | G105: 3.64 | H105: 7.72 | I105: 31.38 | J105: 103 | P105: 364
B106: 13.531 | C106: 13.55 | D106: 00:02:32.939 | E106: 00:02:33.312 | F106: 196 | G106: 3.65 | H106: 7.76 | I106: 31.61 | J106: 104 | P106: 365
B107: 13.551 | C107: 13.58 | D107: 00:02:33.317 | E107: 00:02:33.690 | F107: 195 | G107: 3.67 | H107: 7.8 | I107: 31.84 | J107: 105 | P107: 367
B108: 13.581 | C108: 13.6 | D108: 00:02:33.695 | E108: 00:02:34.068 | F108: 194 | G108: 3.68 | H108: 7.84 | I108: 32.07 | J108: 106 | P108: 368
B109: 13.601 | C109: 13.63 | D109: 00:02:34.073 | E109: 00:02:34.446 | F109: 193 | G109: 3.7 | H109: 7.88 | I109: 32.3 | J109: 107 | P109: 370
B110: 13.631 | C110: 13.65 | D110: 00:02:34.451 | E110: 00:02:34.824 | F110: 192 | G110: 3.71 | H110: 7.92 | I110: 32.54 | J110: 108 | P110: 371
B111: 13.651 | C111: 13.67 | D111: 00:02:34.829 | E111: 00:02:35.202 | F111: 191 | G111: 3.73 | H111: 7.96 | I111: 32.77 | J111: 109 | P111: 373
B112: 13.671 | C112: 13.7 | D112: 00:02:35.207 | E112: 00:02:35.580 | F112: 190 | G112: 3.75 | H112: 8 | I112: 33 | J112: 110 | P112: 375
B113: 13.701 | C113: 13.72 | D113: 00:02:35.585 | E113: 00:02:35.958 | F113: 189 | G113: 3.76 | H113: 8.04 | I113: 33.23 | J113: 111 | P113: 376
B114: 13.721 | C114: 13.74 | D114: 00:02:35.963 | E114: 00:02:36.336 | F114: 188 | G114: 3.78 | H114: 8.08 | I114: 33.46 | J114: 112 | P114: 378
B115: 13.741 | C115: 13.77 | D115: 00:02:36.341 | E115: 00:02:36.714 | F115: 187 | G115: 3.79 | H115: 8.12 | I115: 33.7 | J115: 113 | P115: 379
B116: 13.771 | C116: 13.79 | D116: 00:02:36.719 | E116: 00:02:37.092 | F116: 186 | G116: 3.81 | H116: 8.16 | I116: 33.93 | J116: 114 | P116: 381
B117: 13.791 | C117: 13.81 | D117: 00:02:37.097 | E117: 00:02:37.470 | F117: 185 | G117: 3.82 | H117: 8.2 | I117: 34.16 | J117: 115 | P117: 382
B118: 13.811 | C118: 13.84 | D118: 00:02:37.475 | E118: 00:02:37.848 | F118: 184 | G118: 3.84 | H118: 8.24 | I118: 34.39 | J118: 116 | P118: 384
B119: 13.841 | C119: 13.86 | D119: 00:02:37.853 | E119: 00:02:38.226 | F119: 183 | G119: 3.86 | H119: 8.28 | I119: 34.62 | J119: 117 | P119: 386
B120: 13.861 | C120: 13.88 | D120: 00:02:38.231 | E120: 00:02:38.604 | F120: 182 | G120: 3.87 | H120: 8.32 | I120: 34.86 | J120: 118 | P120: 387
B121: 13.881 | C121: 13.91 | D121: 00:02:38.609 | E121: 00:02:38.982 | F121: 181 | G121: 3.89 | H121: 8.36 | I121: 35.09 | J121: 119 | P121: 389
B122: 13.911 | C122: 13.93 | D122: 00:02:38.987 | E122: 00:02:39.360 | F122: 180 | G122: 3.9 | H122: 8.4 | I122: 35.32 | J122: 120 | P122: 390
B123: 13.931 | C123: 13.96 | D123: 00:02:39.365 | E123: 00:02:39.738 | F123: 179 | G123: 3.92 | H123: 8.44 | I123: 35.55 | J123: 121 | P123: 392
B124: 13.961 | C124: 13.98 | D124: 00:02:39.743 | E124: 00:02:40.116 | F124: 178 | G124: 3.93 | H124: 8.48 | I124: 35.78 | J124: 122 | P124: 393
B125: 13.981 | C125: 14 | D125: 00:02:40.121 | E125: 00:02:40.494 | F125: 177 | G125: 3.95 | H125: 8.52 | I125: 36.02 | J125: 123 | P125: 395
B126: 14.001 | C126: 14.03 | D126: 00:02:40.499 | E126: 00:02:40.872 | F126: 176 | G126: 3.96 | H126: 8.56 | I126: 36.25 | J126: 124 | P126: 396
B127: 14.031 | C127: 14.05 | D127: 00:02:40.877 | E127: 00:02:41.250 | F127: 175 | G127: 3.98 | H127: 8.6 | I127: 36.48 | J127: 125 | P127: 398
B128: 14.051 | C128: 14.07 | D128: 00:02:41.255 | E128: 00:02:41.628 | F128: 174 | G128: 4 | H128: 8.64 | I128: 36.71 | J128: 126 | P128: 400
B129: 14.071 | C129: 14.1 | D129: 00:02:41.633 | E129: 00:02:42.006 | F129: 173 | G129: 4.01 | H129: 8.68 | I129: 36.94 | J129: 127 | P129: 401
B130: 14.101 | C130: 14.12 | D130: 00:02:42.011 | E130: 00:02:42.384 | F130: 172 | G130: =P130/100 -> 4.03 | H130: 8.72 | I130: 37.18 | J130: 128 | P130: 403
B131: 14.121 | C131: 14.14 | D131: 00:02:42.389 | E131: 00:02:42.762 | F131: 171 | G131: 4.04 | H131: 8.76 | I131: 37.41 | J131: 129 | P131: 404
B132: 14.141 | C132: 14.17 | D132: 00:02:42.767 | E132: 00:02:43.140 | F132: 170 | G132: 4.06 | H132: 8.8 | I132: 37.64 | J132: 130 | P132: 406
B133: 14.171 | C133: 14.19 | D133: 00:02:43.145 | E133: 00:02:43.518 | F133: 169 | G133: 4.07 | H133: 8.84 | I133: 37.87 | J133: 131 | P133: 407
B134: 14.191 | C134: 14.22 | D134: 00:02:43.523 | E134: 00:02:43.896 | F134: 168 | G134: 4.09 | H134: 8.88 | I134: 38.1 | J134: 132 | P134: 409
B135: 14.221 | C135: 14.24 | D135: 00:02:43.901 | E135: 00:02:44.274 | F135: 167 | G135: 4.1 | H135: 8.92 | I135: 38.34 | J135: 133 | P135: 410
B136: 14.241 | C136: 14.26 | D136: 00:02:44.279 | E136: 00:02:44.652 | F136: 166 | G136: 4.12 | H136: 8.96 | I136: 38.57 | J136: 134 | P136: 412
B137: 14.261 | C137: 14.29 | D137: 00:02:44.657 | E137: 00:02:45.030 | F137: 165 | G137: 4.14 | H137: 9 | I137: 38.8 | J137: 135 | P137: 414
B138: 14.291 | C138: 14.31 | D138: 00:02:45.035 | E138: 00:02:45.408 | F138: 164 | G138: 4.15 | H138: 9.04 | I138: 39.03 | J138: 136 | P138: 415
B139: 14.311 | C139: 14.33 | D139: 00:02:45.413 | E139: 00:02:45.786 | F139: 163 | G139: 4.17 | H139: 9.08 | I139: 39.26 | J139: 137 | P139: 417
B140: 14.331 | C140: 14.36 | D140: 00:02:45.791 | E140: 00:02:46.164 | F140: 162 | G140: 4.18 | H140: 9.12 | I140: 39.5 | J140: 138 | P140: 418
B141: 14.361 | C141: 14.38 | D141: 00:02:46.169 | E141: 00:02:46.542 | F141: 161 | G141: 4.2 | H141: 9.16 | I141: 39.73 | J141: 139 | P141: 420
B142: 14.381 | C142: 14.4 | D142: 00:02:46.547 | E142: 00:02:46.920 | F142: 160 | G142: 4.21 | H142: 9.2 | I142: 39.96 | J142: 140 | P142: 421
B143: 14.401 | C143: 14.43 | D143: 00:02:46.925 | E143: 00:02:47.298 | F143: 159 | G143: 4.23 | H143: 9.24 | I143: 40.19 | J143: 141 | P143: 423
B144: 14.431 | C144: 14.45 | D144: 00:02:47.303 | E144: 00:02:47.676 | F144: 158 | G144: 4.25 | H144: 9.28 | I144: 40.42 | J144: 142 | P144: 425
B145: 14.451 | C145: 14.47 | D145: 00:02:47.681 | E145: 00:02:48.054 | F145: 157 | G145: 4.26 | H145: 9.32 | I145: 40.66 | J145: 143 | P145: 426
B146: 14.471 | C146: 14.5 | D146: 00:02:48.059 | E146: 00:02:48.432 | F146: 156 | G146: 4.28 | H146: 9.36 | I146: 40.89 | J146: 144 | P146: 428
B147: 14.501 | C147: 14.52 | D147: 00:02:48.437 | E147: 00:02:48.810 | F147: 155 | G147: 4.29 | H147: 9.4 | I147: 41.12 | J147: 145 | P147: 429
B148: 14.521 | C148: 14.55 | D148: 00:02:48.815 | E148: 00:02:49.188 | F148: 154 | G148: 4.31 | H148: 9.44 | I148: 41.35 | J148: 146 | P148: 431
B149: 14.551 | C149: 14.57 | D149: 00:02:49.193 | E149: 00:02:49.566 | F149: 153 | G149: 4.32 | H149: 9.48 | I149: 41.58 | J149: 147 | P149: 432
B150: 14.571 | C150: 14.59 | D150: 00:02:49.571 | E150: 00:02:49.944 | F150: 152 | G150: 4.34 | H150: 9.52 | I150: 41.82 | J150: 148 | P150: 434
B151: 14.591 | C151: 14.62 | D151: 00:02:49.949 | E151: 00:02:50.322 | F151: 151 | G151: 4.35 | H151: 9.56 | I151: 42.05 | J151: 149 | P151: 435
B152: 14.621 | C152: 14.64 | D152: 00:02:50.327 | E152: 00:02:50.700 | F152: 150 | G152: 4.37 | H152: 9.6 | I152: 42.28 | J152: 150 | P152: 437
B153: 14.641 | C153: 14.67 | D153: 00:02:50.705 | E153: 00:02:51.120 | F153: 149 | G153: 4.38 | H153: 9.64 | I153: 42.49 | J153: 151 | P153: 438
B154: 14.671 | C154: 14.69 | D154: 00:02:51.125 | E154: 00:02:51.540 | F154: 148 | G154: 4.4 | H154: 9.67 | I154: 42.7 | J154: 152 | P154: 440
B155: 14.691 | C155: 14.72 | D155: 00:02:51.545 | E155: 00:02:51.960 | F155: 147 | G155: 4.41 | H155: 9.71 | I155: 42.91 | J155: 153 | P155: 441
B156: 14.721 | C156: 14.75 | D156: 00:02:51.965 | E156: 00:02:52.380 | F156: 146 | G156: 4.43 | H156: 9.74 | I156: 43.12 | J156: 154 | P156: 443
B157: 14.751 | C157: 14.77 | D157: 00:02:52.385 | E157: 00:02:52.800 | F157: 145 | G157: 4.44 | H157: 9.78 | I157: 43.32 | J157: 155 | P157: 444
B158: 14.771 | C158: 14.8 | D158: 00:02:52.805 | E158: 00:02:53.220 | F158: 144 | G158: 4.45 | H158: 9.82 | I158: 43.53 | J158: 156 | P158: 445
B159: 14.801 | C159: 14.82 | D159: 00:02:53.225 | E159: 00:02:53.640 | F159: 143 | G159: 4.47 | H159: 9.85 | I159: 43.74 | J159: 157 | P159: 447
B160: 14.821 | C160: 14.85 | D160: 00:02:53.645 | E160: 00:02:54.060 | F160: 142 | G160: 4.48 | H160: 9.89 | I160: 43.95 | J160: 158 | P160: 448
B161: 14.851 | C161: 14.88 | D161: 00:02:54.065 | E161: 00:02:54.480 | F161: 141 | G161: 4.5 | H161: 9.92 | I161: 44.16 | J161: 159 | P161: 450
B162: 14.881 | C162: 14.9 | D162: 00:02:54.485 | E162: 00:02:54.900 | F162: 140 | G162: 4.51 | H162: 9.96 | I162: 44.37 | J162: 160 | P162: 451
B163: 14.901 | C163: 14.93 | D163: 00:02:54.905 | E163: 00:02:55.320 | F163: 139 | G163: 4.52 | H163: 10 | I163: 44.58 | J163: 161 | P163: 452
B164: 14.931 | C164: 14.96 | D164: 00:02:55.325 | E164: 00:02:55.740 | F164: 138 | G164: 4.54 | H164: 10.03 | I164: 44.79 | J164: 162 | P164: 454
B165: 14.961 | C165: 14.98 | D165: 00:02:55.745 | E165: 00:02:56.160 | F165: 137 | G165: 4.55 | H165: 10.07 | I165: 44.99 | J165: 163 | P165: 455
B166: 14.981 | C166: 15.01 | D166: 00:02:56.165 | E166: 00:02:56.580 | F166: 136 | G166: 4.57 | H166: 10.1 | I166: 45.2 | J166: 164 | P166: 457
B167: 15.011 | C167: 15.04 | D167: 00:02:56.585 | E167: 00:02:57 | F167: 135 | G167: 4.58 | H167: 10.14 | I167: 45.41 | J167: 165 | P167: 458
B168: 15.041 | C168: 15.06 | D168: 00:02:57.005 | E168: 00:02:57.420 | F168: 134 | G168: 4.59 | H168: 10.18 | I168: 45.62 | J168: 166 | P168: 459
B169: 15.061 | C169: 15.09 | D169: 00:02:57.425 | E169: 00:02:57.840 | F169: 133 | G169: 4.61 | H169: 10.21 | I169: 45.83 | J169: 167 | P169: 461
B170: 15.091 | C170: 15.12 | D170: 00:02:57.845 | E170: 00:02:58.260 | F170: 132 | G170: 4.62 | H170: 10.25 | I170: 46.04 | J170: 168 | P170: 462
B171: 15.121 | C171: 15.14 | D171: 00:02:58.265 | E171: 00:02:58.680 | F171: 131 | G171: 4.64 | H171: 10.28 | I171: 46.25 | J171: 169 | P171: 464
B172: 15.141 | C172: 15.17 | D172: 00:02:58.685 | E172: 00:02:59.100 | F172: 130 | G172: 4.65 | H172: 10.32 | I172: 46.46 | J172: 170 | P172: 465
B173: 15.171 | C173: 15.19 | D173: 00:02:59.105 | E173: 00:02:59.520 | F173: 129 | G173: 4.66 | H173: 10.36 | I173: 46.66 | J173: 171 | P173: 466
B174: 15.191 | C174: 15.22 | D174: 00:02:59.525 | E174: 00:02:59.940 | F174: 128 | G174: 4.68 | H174: 10.39 | I174: 46.87 | J174: 172 | P174: 468
B175: 15.221 | C175: 15.25 | D175: 00:02:59.945 | E175: 00:03:00.360 | F175: 127 | G175: 4.69 | H175: 10.43 | I175: 47.08 | J175: 173 | P175: 469
B176: 15.251 | C176: 15.27 | D176: 00:03:00.365 | E176: 00:03:00.780 | F176: 126 | G176: 4.71 | H176: 10.46 | I176: 47.29 | J176: 174 | P176: 471
B177: 15.271 | C177: 15.3 | D177: 00:03:00.785 | E177: 00:03:01.200 | F177: 125 | G177: 4.72 | H177: 10.5 | I177: 47.5 | J177: 175 | P177: 472
B178: 15.301 | C178: 15.33 | D178: 00:03:01.205 | E178: 00:03:01.620 | F178: 124 | G178: 4.74 | H178: 10.54 | I178: 47.71 | J178: 176 | P178: 474
B179: 15.331 | C179: 15.35 | D179: 00:03:01.625 | E179: 00:03:02.040 | F179: 123 | G179: 4.75 | H179: 10.57 | I179: 47.92 | J179: 177 | P179: 475
B180: 15.351 | C180: 15.38 | D180: 00:03:02.045 | E180: 00:03:02.460 | F180: 122 | G180: 4.76 | H180: 10.61 | I180: 48.13 | J180: 178 | P180: 476
B181: 15.381 | C181: 15.41 | D181: 00:03:02.465 | E181: 00:03:02.880 | F181: 121 | G181: 4.78 | H181: 10.64 | I181: 48.34 | J181: 179 | P181: 478
B182: 15.411 | C182: 15.43 | D182: 00:03:02.885 | E182: 00:03:03.300 | F182: 120 | G182: 4.79 | H182: 10.68 | I182: 48.54 | J182: 180 | P182: 479
B183: 15.431 | C183: 15.46 | D183: 00:03:03.305 | E183: 00:03:03.720 | F183: 119 | G183: 4.81 | H183: 10.72 | I183: 48.75 | J183: 181 | P183: 481
B184: 15.461 | C184: 15.48 | D184: 00:03:03.725 | E184: 00:03:04.140 | F184: 118 | G184: 4.82 | H184: 10.75 | I184: 48.96 | J184: 182 | P184: 482
B185: 15.481 | C185: 15.51 | D185: 00:03:04.145 | E185: 00:03:04.560 | F185: 117 | G185: 4.83 | H185: 10.79 | I185: 49.17 | J185: 183 | P185: 483
B186: 15.511 | C186: 15.54 | D186: 00:03:04.565 | E186: 00:03:04.980 | F186: 116 | G186: 4.85 | H186: 10.82 | I186: 49.38 | J186: 184 | P186: 485
B187: 15.541 | C187: 15.56 | D187: 00:03:04.985 | E187: 00:03:05.400 | F187: 115 | G187: 4.86 | H187: 10.86 | I187: 49.59 | J187: 185 | P187: 486
B188: 15.561 | C188: 15.59 | D188: 00:03:05.405 | E188: 00:03:05.820 | F188: 114 | G188: 4.88 | H188: 10.9 | I188: 49.8 | J188: 186 | P188: 488
B189: 15.591 | C189: 15.62 | D189: 00:03:05.825 | E189: 00:03:06.240 | F189: 113 | G189: 4.89 | H189: 10.93 | I189: 50.01 | J189: 187 | P189: 489
B190: 15.621 | C190: 15.64 | D190: 00:03:06.245 | E190: 00:03:06.660 | F190: 112 | G190: 4.9 | H190: 10.97 | I190: 50.21 | J190: 188 | P190: 490
B191: 15.641 | C191: 15.67 | D191: 00:03:06.665 | E191: 00:03:07.080 | F191: 111 | G191: 4.92 | H191: 11 | I191: 50.42 | J191: 189 | P191: 492
B192: 15.671 | C192: 15.7 | D192: 00:03:07.085 | E192: 00:03:07.500 | F192: 110 | G192: 4.93 | H192: 11.04 | I192: 50.63 | J192: 190 | P192: 493
B193: 15.701 | C193: 15.72 | D193: 00:03:07.505 | E193: 00:03:07.920 | F193: 109 | G193: 4.95 | H193: 11.08 | I193: 50.84 | J193: 191 | P193: 495
B194: 15.721 | C194: 15.75 | D194: 00:03:07.925 | E194: 00:03:08.340 | F194: 108 | G194: =P194/100 -> 4.96 | H194: 11.11 | I194: 51.05 | J194: 192 | P194: 496
B195: 15.751 | C195: 15.78 | D195: 00:03:08.345 | E195: 00:03:08.760 | F195: 107 | G195: 4.97 | H195: 11.15 | I195: 51.26 | J195: 193 | P195: 497
B196: 15.781 | C196: 15.8 | D196: 00:03:08.765 | E196: 00:03:09.180 | F196: 106 | G196: 4.99 | H196: 11.18 | I196: 51.47 | J196: 194 | P196: 499
B197: 15.801 | C197: 15.83 | D197: 00:03:09.185 | E197: 00:03:09.600 | F197: 105 | G197: 5 | H197: 11.22 | I197: 51.68 | J197: 195 | P197: 500
B198: 15.831 | C198: 15.85 | D198: 00:03:09.605 | E198: 00:03:10.020 | F198: 104 | G198: 5.02 | H198: 11.26 | I198: 51.88 | J198: 196 | P198: 502
B199: 15.851 | C199: 15.88 | D199: 00:03:10.025 | E199: 00:03:10.440 | F199: 103 | G199: 5.03 | H199: 11.29 | I199: 52.09 | J199: 197 | P199: 503
B200: 15.881 | C200: 15.91 | D200: 00:03:10.445 | E200: 00:03:10.860 | F200: 102 | G200: 5.04 | H200: 11.33 | I200: 52.3 | J200: 198 | P200: 504
... 102 more rows

Sheet Be
A1: IV. korcsoport LEÁNY Összetett verseny
A3: Név | B3: Sz.év | C3: 100 m | E3: Távolugrás | G3: Klabdahajítás | I3: Súlylökés | K3: 800 m | M3: Összpont | N3: helyezés | O3: Iskola
A4: Kővári Zsófia | B4: 2008 | C4: 0 | D4: =IF(C4<6.19,0,VLOOKUP(C4,rfut,5,TRUE)) -> 0 | E4: 0 | F4: =IF(E4<1.79,0,VLOOKUP(E4,távol,4,TRUE)) -> 0 | G4: 0 | H4: =IF(G4<4,0,VLOOKUP(G4,kisl,2,TRUE)) -> 0 | I4: 0 | J4: =IF(I4<3,0,VLOOKUP(I4,súly,3,TRUE)) -> 0 | K4: 00:00:00 | L4: =IF(K4<leány!$D$2,0,VLOOKUP(K4,hfut,3,TRUE)) -> 0 | M4: =SUM(D4,F4,H4,L4,J4) -> 0 | N4: =RANK(M4,Egyéni!$N$3:$N$156,0) -> 41 | O4: Kiskunalacházi Ált.Isk
A5: Jakab Amanda | B5: 2008 | C5: 14.55 | D5: 154 | E5: 3.32 | F5: 84 | G5: 23.5 | H5: 71 | I5: 5.79 | J5: 58 | K5: 00:00:00 | L5: =IF(K5<leány!$D$2,0,VLOOKUP(K5,hfut,3,TRUE)) -> 0 | M5: =SUM(D5,F5,H5,L5,J5) -> 367 | N5: =RANK(M5,Egyéni!$N$3:$N$156,0) -> 38 | O5: Kiskunalacházi Ált.Isk
A6: Zöllei Panka | B6: 2008 | C6: 14.07 | D6: 174 | E6: 3.41 | F6: 89 | G6: 32.1 | H6: 106 | I6: 5.52 | J6: 52 | K6: 00:03:41.990 | L6: =IF(K6<leány!$D$2,0,VLOOKUP(K6,hfut,3,TRUE)) -> 35 | M6: 456 | N6: =RANK(M6,Egyéni!$N$3:$N$156,0) -> 31 | O6: Kiskunalacházi Ált.Isk
D7: 0 | F7: 0 | H7: 0 | J7: 0 | L7: =IF(K7<leány!$D$2,0,VLOOKUP(K7,hfut,3,TRUE)) -> 0 | M7: 0 | N7: =RANK(M7,Egyéni!$N$3:$N$156,0) -> 41
D8: 0 | F8: 0 | H8: 0 | J8: 0 | L8: =IF(K8<leány!$D$2,0,VLOOKUP(K8,hfut,3,TRUE)) -> 0 | M8: 0 | N8: =RANK(M8,Egyéni!$N$3:$N$156,0) -> 41
D9: 0 | F9: 0 | H9: 0 | J9: 0 | L9: =IF(K9<leány!$D$2,0,VLOOKUP(K9,hfut,3,TRUE)) -> 0 | M9: 0 | N9: =RANK(M9,Egyéni!$N$3:$N$156,0) -> 41
D10: 0 | F10: 0 | H10: 0 | J10: 0 | L10: =IF(K10<leány!$D$2,0,VLOOKUP(K10,hfut,3,TRUE)) -> 0 | M10: 0 | N10: =RANK(M10,Egyéni!$N$3:$N$156,0) -> 41
D11: 0 | F11: 0 | H11: 0 | J11: 0 | L11: =IF(K11<leány!$D$2,0,VLOOKUP(K11,hfut,3,TRUE)) -> 0 | M11: 0 | N11: =RANK(M11,Egyéni!$N$3:$N$156,0) -> 41
D12: 0 | F12: 0 | H12: 0 | J12: 0 | L12: =IF(K12<leány!$D$2,0,VLOOKUP(K12,hfut,3,TRUE)) -> 0 | M12: 0 | N12: =RANK(M12,Egyéni!$N$3:$N$156,0) -> 41
D13: 0 | F13: 0 | H13: 0 | J13: 0 | L13: =IF(K13<leány!$D$2,0,VLOOKUP(K13,hfut,3,TRUE)) -> 0 | M13: 0 | N13: =RANK(M13,Egyéni!$N$3:$N$156,0) -> 41
D14: 0 | F14: 0 | H14: 0 | J14: 0 | L14: =IF(K14<leány!$D$2,0,VLOOKUP(K14,hfut,3,TRUE)) -> 0 | M14: 0 | N14: =RANK(M14,Egyéni!$N$3:$N$156,0) -> 41
D15: 0 | F15: 0 | H15: 0 | J15: 0 | L15: =IF(K15<leány!$D$2,0,VLOOKUP(K15,hfut,3,TRUE)) -> 0 | M15: 0 | N15: =RANK(M15,Egyéni!$N$3:$N$156,0) -> 41
D16: 0 | F16: 0 | H16: 0 | J16: 0 | L16: =IF(K16<leány!$D$2,0,VLOOKUP(K16,hfut,3,TRUE)) -> 0 | M16: 0 | N16: =RANK(M16,Egyéni!$N$3:$N$156,0) -> 41
D17: 0 | F17: 0 | H17: 0 | J17: 0 | L17: =IF(K17<leány!$D$2,0,VLOOKUP(K17,hfut,3,TRUE)) -> 0 | M17: 0 | N17: =RANK(M17,Egyéni!$N$3:$N$156,0) -> 41
D18: 0 | F18: 0 | H18: 0 | J18: 0 | L18: =IF(K18<leány!$D$2,0,VLOOKUP(K18,hfut,3,TRUE)) -> 0 | M18: 0 | N18: =RANK(M18,Egyéni!$N$3:$N$156,0) -> 41
D19: 0 | F19: 0 | H19: 0 | J19: 0 | L19: =IF(K19<leány!$D$2,0,VLOOKUP(K19,hfut,3,TRUE)) -> 0 | M19: 0 | N19: =RANK(M19,Egyéni!$N$3:$N$156,0) -> 41
D20: 0 | F20: 0 | H20: 0 | J20: 0 | L20: =IF(K20<leány!$D$2,0,VLOOKUP(K20,hfut,3,TRUE)) -> 0 | M20: 0 | N20: =RANK(M20,Egyéni!$N$3:$N$156,0) -> 41
D21: 0 | F21: 0 | H21: 0 | J21: 0 | L21: =IF(K21<leány!$D$2,0,VLOOKUP(K21,hfut,3,TRUE)) -> 0 | M21: 0 | N21: =RANK(M21,Egyéni!$N$3:$N$156,0) -> 41
D22: 0 | F22: 0 | H22: 0 | J22: 0 | L22: =IF(K22<leány!$D$2,0,VLOOKUP(K22,hfut,3,TRUE)) -> 0 | M22: 0 | N22: =RANK(M22,Egyéni!$N$3:$N$156,0) -> 41
D23: 0 | F23: 0 | H23: 0 | J23: 0 | L23: =IF(K23<leány!$D$2,0,VLOOKUP(K23,hfut,3,TRUE)) -> 0 | M23: 0 | N23: =RANK(M23,Egyéni!$N$3:$N$156,0) -> 41
D24: 0 | F24: 0 | H24: 0 | J24: 0 | L24: =IF(K24<leány!$D$2,0,VLOOKUP(K24,hfut,3,TRUE)) -> 0 | M24: 0 | N24: =RANK(M24,Egyéni!$N$3:$N$156,0) -> 41
D25: 0 | F25: 0 | H25: 0 | J25: 0 | L25: =IF(K25<leány!$D$2,0,VLOOKUP(K25,hfut,3,TRUE)) -> 0 | M25: 0 | N25: =RANK(M25,Egyéni!$N$3:$N$156,0) -> 41
A27: Ráckeve Szent Imre Katolikus Ált. Isk. | O27: =RANK(O29,Csapat!$C$3:P30,0) -> 5
A28: Név | B28: Sz.év | C28: 100 m | E28: Távolugrás | G28: Klabdahajítás | I28: Súlylökés | K28: 800 m | M28: Összpont | N28: Helyezés
A29: Galambos Eszter | B29: 2008 | C29: 13.69 | D29: =IF(C29<6.19,0,VLOOKUP(C29,rfut,5,TRUE)) -> 190 | E29: 3.81 | F29: =IF(E29<1.79,0,VLOOKUP(E29,távol,4,TRUE)) -> 114 | G29: 41.92 | H29: =IF(G29<4,0,VLOOKUP(G29,kisl,2,TRUE)) -> 148 | I29: 8.78 | J29: =IF(I29<3,0,VLOOKUP(I29,súly,3,TRUE)) -> 129 | K29: 00:03:21.910 | L29: =IF(K29<leány!$D$2,0,VLOOKUP(K29,hfut,3,TRUE)) -> 77 | M29: =SUM(D29,F29,H29,L29,J29) -> 658 | N29: =RANK(M29,Egyéni!$N$3:$N$156,0) -> 5 | O29: =SUM(M29:M34)-MIN(M29:M34) -> 2753
A30: Badits Vanda | B30: 2008 | C30: 13.79 | D30: 186 | E30: 3.61 | F30: 101 | G30: 38.73 | H30: 134 | I30: 7.06 | J30: 87 | K30: 00:04:10.820 | L30: =IF(K30<leány!$D$2,0,VLOOKUP(K30,hfut,3,TRUE)) -> 0 | M30: 508 | N30: =RANK(M30,Egyéni!$N$3:$N$156,0) -> 24
A31: Samu Szellő | B31: 2008 | C31: 13.96 | D31: 179 | E31: 3.78 | F31: 112 | G31: 27.41 | H31: 87 | I31: 7.84 | J31: 106 | K31: 00:03:25.140 | L31: =IF(K31<leány!$D$2,0,VLOOKUP(K31,hfut,3,TRUE)) -> 70 | M31: 554 | N31: =RANK(M31,Egyéni!$N$3:$N$156,0) -> 14
A32: Novák Alexandra | B32: 2007 | C32: 13.62 | D32: 193 | E32: 3.96 | F32: 124 | G32: 32.39 | H32: 107 | I32: 5.02 | J32: 42 | K32: 00:03:34.050 | L32: =IF(K32<leány!$D$2,0,VLOOKUP(K32,hfut,3,TRUE)) -> 51 | M32: 517 | N32: =RANK(M32,Egyéni!$N$3:$N$156,0) -> 21
A33: Szebellédi Veronika | B33: 2007 | C33: 13.86 | D33: 183 | E33: 3.72 | F33: 108 | G33: 29.1 | H33: 93 | I33: 8.29 | J33: 117 | K33: 00:03:52.350 | L33: =IF(K33<leány!$D$2,0,VLOOKUP(K33,hfut,3,TRUE)) -> 15 | M33: 516 | N33: =RANK(M33,Egyéni!$N$3:$N$156,0) -> 22
D34: 0 | F34: 0 | H34: 0 | J34: 0 | L34: =IF(K34<leány!$D$2,0,VLOOKUP(K34,hfut,3,TRUE)) -> 0 | M34: 0 | N34: =RANK(M34,Egyéni!$N$3:$N$156,0) -> 41
A37: Ráckevei Ady Endre Gimnázium | O37: =RANK(O39,Csapat!$C$3:P40,0) -> 2
A38: Név | B38: Sz.év | C38: 100 m | E38: Távolugrás | G38: Klabdahajítás | I38: Súlylökés | K38: 800 m | M38: Összpont | N38: Helyezés
A39: Rupa Sára | B39: 2008 | C39: 14.91 | D39: =IF(C39<6.19,0,VLOOKUP(C39,rfut,5,TRUE)) -> 139 | E39: 3.08 | F39: =IF(E39<1.79,0,VLOOKUP(E39,távol,4,TRUE)) -> 70 | G39: 31.3 | H39: =IF(G39<4,0,VLOOKUP(G39,kisl,2,TRUE)) -> 102 | I39: 8.39 | J39: =IF(I39<3,0,VLOOKUP(I39,súly,3,TRUE)) -> 119 | K39: 00:04:07.740 | L39: =IF(K39<leány!$D$2,0,VLOOKUP(K39,hfut,3,TRUE)) -> 0 | M39: =SUM(D39,F39,H39,L39,J39) -> 430 | N39: =RANK(M39,Egyéni!$N$3:$N$156,0) -> 35 | O39: =SUM(M39:M44)-MIN(M39:M44) -> 2978
A40: Rácz Emese | B40: 2007 | C40: 13.22 | D40: 211 | E40: 3.4 | F40: 89 | G40: 22.8 | H40: 69 | I40: 6.01 | J40: 63 | K40: 00:03:46.090 | L40: =IF(K40<leány!$D$2,0,VLOOKUP(K40,hfut,3,TRUE)) -> 27 | M40: 459 | N40: =RANK(M40,Egyéni!$N$3:$N$156,0) -> 30
A41: Csömöri Boglárka | B41: 2007 | C41: 13.28 | D41: 208 | E41: 3.86 | F41: 117 | G41: 32.4 | H41: 107 | I41: 7.26 | J41: 92 | K41: 00:03:41.180 | L41: =IF(K41<leány!$D$2,0,VLOOKUP(K41,hfut,3,TRUE)) -> 37 | M41: 561 | N41: =RANK(M41,Egyéni!$N$3:$N$156,0) -> 13
A42: Gólya Boglárka | B42: 2007 | C42: 13.75 | D42: 187 | E42: 3.74 | F42: 109 | G42: 27.8 | H42: 88 | I42: 7.42 | J42: 96 | K42: 00:03:37.530 | L42: =IF(K42<leány!$D$2,0,VLOOKUP(K42,hfut,3,TRUE)) -> 44 | M42: 524 | N42: =RANK(M42,Egyéni!$N$3:$N$156,0) -> 18
A43: Sokácz Nóra | B43: 2008 | C43: 13.88 | D43: 182 | E43: 3.71 | F43: 108 | G43: 44.9 | H43: 162 | I43: 7.48 | J43: 97 | K43: 00:03:23.350 | L43: =IF(K43<leány!$D$2,0,VLOOKUP(K43,hfut,3,TRUE)) -> 74 | M43: 623 | N43: =RANK(M43,Egyéni!$N$3:$N$156,0) -> 7
A44: Novák Orsolya | B44: 2008 | C44: 13.09 | D44: 217 | E44: 4.4 | F44: 152 | G44: 44.6 | H44: 161 | I44: 9.47 | J44: 146 | K44: 00:02:56.600 | L44: =IF(K44<leány!$D$2,0,VLOOKUP(K44,hfut,3,TRUE)) -> 135 | M44: 811 | N44: =RANK(M44,Egyéni!$N$3:$N$156,0) -> 1
A47: Tököli Weöres Sándor Ált.Iskola | O47: =RANK(O49,Csapat!$C$3:P50,0) -> 3
A48: Név | B48: Sz.év | C48: 100 m | E48: Távolugrás | G48: Klabdahajítás | I48: Súlylökés | K48: 800 m | M48: Összpont | N48: Helyezés
A49: Bednanics Dóra | B49: 2008 | C49: 13.42 | D49: =IF(C49<6.19,0,VLOOKUP(C49,rfut,5,TRUE)) -> 202 | E49: 3.58 | F49: =IF(E49<1.79,0,VLOOKUP(E49,távol,4,TRUE)) -> 99 | G49: 24.69 | H49: =IF(G49<4,0,VLOOKUP(G49,kisl,2,TRUE)) -> 76 | I49: 5.73 | J49: =IF(I49<3,0,VLOOKUP(I49,súly,3,TRUE)) -> 57 | K49: 00:02:58.380 | L49: =IF(K49<leány!$D$2,0,VLOOKUP(K49,hfut,3,TRUE)) -> 131 | M49: =SUM(D49,F49,H49,L49,J49) -> 565 | N49: =RANK(M49,Egyéni!$N$3:$N$156,0) -> 12 | O49: =SUM(M49:M54)-MIN(M49:M54) -> 2885
A50: Csoma Liliána | B50: 2007 | C50: 12.97 | D50: 223 | E50: 3.61 | F50: 101 | G50: 36.67 | H50: 125 | I50: 6.58 | J50: 76 | K50: 00:03:14.030 | L50: =IF(K50<leány!$D$2,0,VLOOKUP(K50,hfut,3,TRUE)) -> 94 | M50: 619 | N50: =RANK(M50,Egyéni!$N$3:$N$156,0) -> 8
A51: Deidda Elisa | B51: 2007 | C51: 13.58 | D51: 195 | E51: 3.11 | F51: 72 | G51: 25.75 | H51: 80 | I51: 5.98 | J51: 63 | K51: 00:03:46.380 | L51: =IF(K51<leány!$D$2,0,VLOOKUP(K51,hfut,3,TRUE)) -> 27 | M51: 437 | N51: =RANK(M51,Egyéni!$N$3:$N$156,0) -> 34
A52: Hirth Szonja | B52: 2007 | C52: 13.09 | D52: 217 | E52: 3.81 | F52: 114 | G52: 25.7 | H52: 80 | I52: 5.59 | J52: 54 | K52: 00:03:25.100 | L52: =IF(K52<leány!$D$2,0,VLOOKUP(K52,hfut,3,TRUE)) -> 71 | M52: 536 | N52: =RANK(M52,Egyéni!$N$3:$N$156,0) -> 17
A53: Kassai Adrienn Zora | B53: 2008 | C53: 13.88 | D53: 182 | E53: 3.81 | F53: 114 | G53: 27.49 | H53: 87 | I53: 5.61 | J53: 54 | K53: 00:03:37.660 | L53: =IF(K53<leány!$D$2,0,VLOOKUP(K53,hfut,3,TRUE)) -> 44 | M53: 481 | N53: =RANK(M53,Egyéni!$N$3:$N$156,0) -> 27
A54: Strucz Laura | B54: 2007 | C54: 12.78 | D54: 232 | E54: 3.71 | F54: 108 | G54: 36.36 | H54: 124 | I54: 7.09 | J54: 88 | K54: 00:02:58.020 | L54: =IF(K54<leány!$D$2,0,VLOOKUP(K54,hfut,3,TRUE)) -> 132 | M54: 684 | N54: =RANK(M54,Egyéni!$N$3:$N$156,0) -> 4
A57: Dunaharaszti Körösi Csoma Sándor. Ált. Isk | O57: =RANK(O59,Csapat!$C$3:P60,0) -> 1
A58: Név | B58: Sz.év | C58: 100 m | E58: Távolugrás | G58: Klabdahajítás | I58: Súlylökés | K58: 800 m | M58: Összpont | N58: Helyezés
A59: Fehér Fanni | B59: 2008 | C59: 12.99 | D59: =IF(C59<6.19,0,VLOOKUP(C59,rfut,5,TRUE)) -> 222 | E59: 3.25 | F59: =IF(E59<1.79,0,VLOOKUP(E59,távol,4,TRUE)) -> 80 | G59: 32.8 | H59: =IF(G59<4,0,VLOOKUP(G59,kisl,2,TRUE)) -> 109 | I59: 6.57 | J59: =IF(I59<3,0,VLOOKUP(I59,súly,3,TRUE)) -> 76 | K59: 00:03:11.730 | L59: =IF(K59<leány!$D$2,0,VLOOKUP(K59,hfut,3,TRUE)) -> 99 | M59: =SUM(D59,F59,H59,L59,J59) -> 586 | N59: =RANK(M59,Egyéni!$N$3:$N$156,0) -> 11 | O59: =SUM(M59:M64)-MIN(M59:M64) -> 3128
A60: Gabona Nikol | B60: 2008 | C60: 12.85 | D60: 229 | E60: 4.22 | F60: 140 | G60: 39.9 | H60: 139 | I60: 8.14 | J60: 113 | K60: 00:03:12.300 | L60: =IF(K60<leány!$D$2,0,VLOOKUP(K60,hfut,3,TRUE)) -> 98 | M60: 719 | N60: =RANK(M60,Egyéni!$N$3:$N$156,0) -> 3
A61: Horváth Amira | B61: 2008 | C61: 13.98 | D61: 178 | E61: 3.37 | F61: 87 | G61: 33.8 | H61: 113 | I61: 8.42 | J61: 120 | K61: 00:00:00 | L61: =IF(K61<leány!$D$2,0,VLOOKUP(K61,hfut,3,TRUE)) -> 0 | M61: 498 | N61: =RANK(M61,Egyéni!$N$3:$N$156,0) -> 26
A62: Králik Borbála | B62: 2007 | C62: 12.69 | D62: 236 | E62: 4.51 | F62: 160 | G62: 37.6 | H62: 129 | I62: 7.81 | J62: 105 | K62: 00:03:13.570 | L62: =IF(K62<leány!$D$2,0,VLOOKUP(K62,hfut,3,TRUE)) -> 95 | M62: 725 | N62: =RANK(M62,Egyéni!$N$3:$N$156,0) -> 2
A63: Ordódy Norina | B63: 2007 | C63: 12.76 | D63: 233 | E63: 4.01 | F63: 127 | G63: 33.4 | H63: 111 | I63: 7.63 | J63: 100 | K63: 00:03:45.280 | L63: =IF(K63<leány!$D$2,0,VLOOKUP(K63,hfut,3,TRUE)) -> 29 | M63: 600 | N63: =RANK(M63,Egyéni!$N$3:$N$156,0) -> 9
A64: Sárosi Bianka | B64: 2008 | C64: 13.77 | D64: 187 | E64: 3.65 | F64: 104 | G64: 28.9 | H64: 93 | I64: 5.83 | J64: 59 | K64: 00:03:47.660 | L64: =IF(K64<leány!$D$2,0,VLOOKUP(K64,hfut,3,TRUE)) -> 24 | M64: 467 | N64: =RANK(M64,Egyéni!$N$3:$N$156,0) -> 28
A67: Kiskunlacházi Ált.Isk | O67: =RANK(O69,Csapat!$C$3:P70,0) -> 4
A68: Név | B68: Sz.év | C68: 100 m | E68: Távolugrás | G68: Klabdahajítás | I68: Súlylökés | K68: 800 m | M68: Összpont | N68: Helyezés
A69: Kovács Daniella | B69: 2007 | C69: 13.51 | D69: =IF(C69<6.19,0,VLOOKUP(C69,rfut,5,TRUE)) -> 198 | E69: 3.61 | F69: =IF(E69<1.79,0,VLOOKUP(E69,távol,4,TRUE)) -> 101 | G69: 41.2 | H69: =IF(G69<4,0,VLOOKUP(G69,kisl,2,TRUE)) -> 145 | I69: 9.4 | J69: =IF(I69<3,0,VLOOKUP(I69,súly,3,TRUE)) -> 145 | K69: 00:03:40.830 | L69: =IF(K69<leány!$D$2,0,VLOOKUP(K69,hfut,3,TRUE)) -> 38 | M69: =SUM(D69,F69,H69,L69,J69) -> 627 | N69: =RANK(M69,Egyéni!$N$3:$N$156,0) -> 6 | O69: =SUM(M69:M74)-MIN(M69:M74) -> 2758
A70: Erős Boglárka | B70: 2007 | C70: 13.56 | D70: 195 | E70: 4.03 | F70: 128 | G70: 39.5 | H70: 138 | I70: 8.79 | J70: 129 | K70: 00:03:58.280 | L70: =IF(K70<leány!$D$2,0,VLOOKUP(K70,hfut,3,TRUE)) -> 3 | M70: 593 | N70: =RANK(M70,Egyéni!$N$3:$N$156,0) -> 10
A71: Lacza Lilla | B71: 2008 | C71: 13.76 | D71: 187 | E71: 3.69 | F71: 106 | G71: 34.3 | H71: 115 | I71: 6.2 | J71: 68 | K71: 00:03:41.540 | L71: =IF(K71<leány!$D$2,0,VLOOKUP(K71,hfut,3,TRUE)) -> 36 | M71: 512 | N71: =RANK(M71,Egyéni!$N$3:$N$156,0) -> 23
A72: Varga Szonja | B72: 2008 | C72: 14.23 | D72: 167 | E72: 3.59 | F72: 100 | G72: 35 | H72: 118 | I72: 8.56 | J72: 124 | K72: 00:03:54.990 | L72: =IF(K72<leány!$D$2,0,VLOOKUP(K72,hfut,3,TRUE)) -> 9 | M72: 518 | N72: =RANK(M72,Egyéni!$N$3:$N$156,0) -> 20
A73: Marossy Kiara | B73: 2008 | C73: 13.15 | D73: 214 | E73: 3.04 | F73: 68 | G73: 23.1 | H73: 70 | I73: 5.89 | J73: 61 | K73: 00:03:39.780 | L73: =IF(K73<leány!$D$2,0,VLOOKUP(K73,hfut,3,TRUE)) -> 40 | M73: 453 | N73: =RANK(M73,Egyéni!$N$3:$N$156,0) -> 33
A74: Marossy Rebeka | B74: 2008 | C74: 13.12 | D74: 216 | E74: 3.62 | F74: 102 | G74: 27.6 | H74: 87 | I74: 5.24 | J74: 46 | K74: 00:03:31.120 | L74: =IF(K74<leány!$D$2,0,VLOOKUP(K74,hfut,3,TRUE)) -> 57 | M74: 508 | N74: =RANK(M74,Egyéni!$N$3:$N$156,0) -> 24
A77: Szigetszentmárton | O77: =RANK(O79,Csapat!$C$3:P80,0) -> 6
A78: Név | B78: Sz.év | C78: 100 m | E78: Távolugrás | G78: Klabdahajítás | I78: Súlylökés | K78: 800 m | M78: Összpont | N78: Helyezés
A79: Forró Eszter | B79: 2008 | C79: 15.53 | D79: =IF(C79<6.19,0,VLOOKUP(C79,rfut,5,TRUE)) -> 116 | E79: 0 | F79: =IF(E79<1.79,0,VLOOKUP(E79,távol,4,TRUE)) -> 0 | G79: 29.4 | H79: =IF(G79<4,0,VLOOKUP(G79,kisl,2,TRUE)) -> 95 | I79: 6.16 | J79: =IF(I79<3,0,VLOOKUP(I79,súly,3,TRUE)) -> 67 | K79: 00:05:14.120 | L79: =IF(K79<leány!$D$2,0,VLOOKUP(K79,hfut,3,TRUE)) -> 0 | M79: =SUM(D79,F79,H79,L79,J79) -> 278 | N79: =RANK(M79,Egyéni!$N$3:$N$156,0) -> 40 | O79: =SUM(M79:M84)-MIN(M79:M84) -> 2414
A80: Kaszab Lili | B80: 2008 | C80: 15.04 | D80: 135 | E80: 3.64 | F80: 103 | G80: 22.9 | H80: 69 | I80: 4.48 | J80: 30 | K80: 00:05:13.820 | L80: =IF(K80<leány!$D$2,0,VLOOKUP(K80,hfut,3,TRUE)) -> 0 | M80: 337 | N80: =RANK(M80,Egyéni!$N$3:$N$156,0) -> 39
A81: Molnár Kincső | B81: 2008 | C81: 13.19 | D81: 212 | E81: 3.97 | F81: 124 | G81: 30.3 | H81: 98 | I81: 6.57 | J81: 76 | K81: 00:03:42.490 | L81: =IF(K81<leány!$D$2,0,VLOOKUP(K81,hfut,3,TRUE)) -> 34 | M81: 544 | N81: =RANK(M81,Egyéni!$N$3:$N$156,0) -> 15
A82: Réti Blanka | B82: 2007 | C82: 14.12 | D82: 172 | E82: 3.52 | F82: 96 | G82: 29.2 | H82: 94 | I82: 6.59 | J82: 77 | K82: 00:03:45.750 | L82: =IF(K82<leány!$D$2,0,VLOOKUP(K82,hfut,3,TRUE)) -> 28 | M82: 467 | N82: =RANK(M82,Egyéni!$N$3:$N$156,0) -> 28
A83: Tátrai Zita | B83: 2008 | C83: 13.81 | D83: 185 | E83: 3.98 | F83: 125 | G83: 33.7 | H83: 113 | I83: 6.64 | J83: 78 | K83: 00:03:38.940 | L83: =IF(K83<leány!$D$2,0,VLOOKUP(K83,hfut,3,TRUE)) -> 41 | M83: 542 | N83: =RANK(M83,Egyéni!$N$3:$N$156,0) -> 16
A84: Váradi Szabina | B84: 2007 | C84: 13.76 | D84: 187 | E84: 3.95 | F84: 123 | G84: 29.8 | H84: 96 | I84: 6.91 | J84: 84 | K84: 00:03:42.810 | L84: =IF(K84<leány!$D$2,0,VLOOKUP(K84,hfut,3,TRUE)) -> 34 | M84: 524 | N84: =RANK(M84,Egyéni!$N$3:$N$156,0) -> 18
A87: Áporka Ált. Isk | O87: =RANK(O89,Csapat!$C$3:P90,0) -> 7
A88: Név | B88: Sz.év | C88: 100 m | E88: Távolugrás | G88: Klabdahajítás | I88: Súlylökés | K88: 800 m | M88: Összpont | N88: Helyezés
A89: Kelemen Kata Boglárka | B89: 2008 | C89: 14.37 | D89: =IF(C89<6.19,0,VLOOKUP(C89,rfut,5,TRUE)) -> 161 | E89: 3.22 | F89: =IF(E89<1.79,0,VLOOKUP(E89,távol,4,TRUE)) -> 78 | G89: 25.21 | H89: =IF(G89<4,0,VLOOKUP(G89,kisl,2,TRUE)) -> 78 | I89: 5.61 | J89: =IF(I89<3,0,VLOOKUP(I89,súly,3,TRUE)) -> 54 | K89: 00:00:00 | L89: =IF(K89<leány!$D$2,0,VLOOKUP(K89,hfut,3,TRUE)) -> 0 | M89: =SUM(D89,F89,H89,L89,J89) -> 371 | N89: =RANK(M89,Egyéni!$N$3:$N$156,0) -> 37 | O89: =SUM(M89:M94)-MIN(M89:M94) -> 1223
A90: Kiss Mollii | B90: 2008 | C90: 14.21 | D90: 168 | E90: 3.14 | F90: 74 | G90: 18.42 | H90: 51 | I90: 5.88 | J90: 61 | K90: 00:03:38.620 | L90: =IF(K90<leány!$D$2,0,VLOOKUP(K90,hfut,3,TRUE)) -> 42 | M90: 396 | N90: =RANK(M90,Egyéni!$N$3:$N$156,0) -> 36
A91: Hihály Bianka | B91: 2008 | C91: 13.54 | D91: 196 | E91: 3.15 | F91: 74 | G91: 21.55 | H91: 64 | I91: 5.68 | J91: 56 | K91: 00:03:27.400 | L91: =IF(K91<leány!$D$2,0,VLOOKUP(K91,hfut,3,TRUE)) -> 66 | M91: 456 | N91: =RANK(M91,Egyéni!$N$3:$N$156,0) -> 31
D92: 0 | F92: 0 | H92: 0 | J92: 0 | L92: =IF(K92<leány!$D$2,0,VLOOKUP(K92,hfut,3,TRUE)) -> 0 | M92: 0 | N92: =RANK(M92,Egyéni!$N$3:$N$156,0) -> 41
D93: 0 | F93: 0 | H93: 0 | J93: 0 | L93: =IF(K93<leány!$D$2,0,VLOOKUP(K93,hfut,3,TRUE)) -> 0 | M93: 0 | N93: =RANK(M93,Egyéni!$N$3:$N$156,0) -> 41
D94: 0 | F94: 0 | H94: 0 | J94: 0 | L94: =IF(K94<leány!$D$2,0,VLOOKUP(K94,hfut,3,TRUE)) -> 0 | M94: 0 | N94: =RANK(M94,Egyéni!$N$3:$N$156,0) -> 41
O97: =RANK(O99,Csapat!$C$3:P100,0) -> 8
A98: Név | B98: Sz.év | C98: 100 m | E98: Távolugrás | G98: Klabdahajítás | I98: Súlylökés | K98: 800 m | M98: Összpont | N98: Helyezés
D99: =IF(C99<6.19,0,VLOOKUP(C99,rfut,5,TRUE)) -> 0 | F99: =IF(E99<1.79,0,VLOOKUP(E99,távol,4,TRUE)) -> 0 | H99: =IF(G99<4,0,VLOOKUP(G99,kisl,2,TRUE)) -> 0 | J99: =IF(I99<3,0,VLOOKUP(I99,súly,3,TRUE)) -> 0 | L99: =IF(K99<leány!$D$2,0,VLOOKUP(K99,hfut,3,TRUE)) -> 0 | M99: =SUM(D99,F99,H99,L99,J99) -> 0 | N99: =RANK(M99,Egyéni!$N$3:$N$156,0) -> 41 | O99: =SUM(M99:M104)-MIN(M99:M104) -> 0
D100: 0 | F100: 0 | H100: 0 | J100: 0 | L100: =IF(K100<leány!$D$2,0,VLOOKUP(K100,hfut,3,TRUE)) -> 0 | M100: 0 | N100: =RANK(M100,Egyéni!$N$3:$N$156,0) -> 41
D101: 0 | F101: 0 | H101: 0 | J101: 0 | L101: =IF(K101<leány!$D$2,0,VLOOKUP(K101,hfut,3,TRUE)) -> 0 | M101: 0 | N101: =RANK(M101,Egyéni!$N$3:$N$156,0) -> 41
D102: 0 | F102: 0 | H102: 0 | J102: 0 | L102: =IF(K102<leány!$D$2,0,VLOOKUP(K102,hfut,3,TRUE)) -> 0 | M102: 0 | N102: =RANK(M102,Egyéni!$N$3:$N$156,0) -> 41
D103: 0 | F103: 0 | H103: 0 | J103: 0 | L103: =IF(K103<leány!$D$2,0,VLOOKUP(K103,hfut,3,TRUE)) -> 0 | M103: 0 | N103: =RANK(M103,Egyéni!$N$3:$N$156,0) -> 41
D104: 0 | F104: 0 | H104: 0 | J104: 0 | L104: =IF(K104<leány!$D$2,0,VLOOKUP(K104,hfut,3,TRUE)) -> 0 | M104: 0 | N104: =RANK(M104,Egyéni!$N$3:$N$156,0) -> 41
O107: =RANK(O109,Csapat!$C$3:P110,0) -> 8
A108: Név | B108: Sz.év | C108: 100 m | E108: Távolugrás | G108: Klabdahajítás | I108: Súlylökés | K108: 800 m | M108: Összpont | N108: Helyezés
D109: =IF(C109<6.19,0,VLOOKUP(C109,rfut,5,TRUE)) -> 0 | F109: =IF(E109<1.79,0,VLOOKUP(E109,távol,4,TRUE)) -> 0 | H109: =IF(G109<4,0,VLOOKUP(G109,kisl,2,TRUE)) -> 0 | J109: =IF(I109<3,0,VLOOKUP(I109,súly,3,TRUE)) -> 0 | L109: =IF(K109<leány!$D$2,0,VLOOKUP(K109,hfut,3,TRUE)) -> 0 | M109: =SUM(D109,F109,H109,L109,J109) -> 0 | N109: =RANK(M109,Egyéni!$N$3:$N$156,0) -> 41 | O109: =SUM(M109:M114)-MIN(M109:M114) -> 0
D110: 0 | F110: 0 | H110: 0 | J110: 0 | L110: =IF(K110<leány!$D$2,0,VLOOKUP(K110,hfut,3,TRUE)) -> 0 | M110: 0 | N110: =RANK(M110,Egyéni!$N$3:$N$156,0) -> 41
D111: 0 | F111: 0 | H111: 0 | J111: 0 | L111: =IF(K111<leány!$D$2,0,VLOOKUP(K111,hfut,3,TRUE)) -> 0 | M111: 0 | N111: =RANK(M111,Egyéni!$N$3:$N$156,0) -> 41
D112: 0 | F112: 0 | H112: 0 | J112: 0 | L112: =IF(K112<leány!$D$2,0,VLOOKUP(K112,hfut,3,TRUE)) -> 0 | M112: 0 | N112: =RANK(M112,Egyéni!$N$3:$N$156,0) -> 41
D113: 0 | F113: 0 | H113: 0 | J113: 0 | L113: =IF(K113<leány!$D$2,0,VLOOKUP(K113,hfut,3,TRUE)) -> 0 | M113: 0 | N113: =RANK(M113,Egyéni!$N$3:$N$156,0) -> 41
D114: 0 | F114: 0 | H114: 0 | J114: 0 | L114: =IF(K114<leány!$D$2,0,VLOOKUP(K114,hfut,3,TRUE)) -> 0 | M114: 0 | N114: =RANK(M114,Egyéni!$N$3:$N$156,0) -> 41
O117: =RANK(O119,Csapat!$C$3:P120,0) -> 8
A118: Név | B118: Sz.év | C118: 100 m | E118: Távolugrás | G118: Klabdahajítás | I118: Súlylökés | K118: 800 m | M118: Összpont | N118: Helyezés
D119: =IF(C119<6.19,0,VLOOKUP(C119,rfut,5,TRUE)) -> 0 | F119: =IF(E119<1.79,0,VLOOKUP(E119,távol,4,TRUE)) -> 0 | H119: =IF(G119<4,0,VLOOKUP(G119,kisl,2,TRUE)) -> 0 | J119: =IF(I119<3,0,VLOOKUP(I119,súly,3,TRUE)) -> 0 | L119: =IF(K119<leány!$D$2,0,VLOOKUP(K119,hfut,3,TRUE)) -> 0 | M119: =SUM(D119,F119,H119,L119,J119) -> 0 | N119: =RANK(M119,Egyéni!$N$3:$N$156,0) -> 41 | O119: =SUM(M119:M124)-MIN(M119:M124) -> 0
D120: 0 | F120: 0 | H120: 0 | J120: 0 | L120: =IF(K120<leány!$D$2,0,VLOOKUP(K120,hfut,3,TRUE)) -> 0 | M120: 0 | N120: =RANK(M120,Egyéni!$N$3:$N$156,0) -> 41
D121: 0 | F121: 0 | H121: 0 | J121: 0 | L121: =IF(K121<leány!$D$2,0,VLOOKUP(K121,hfut,3,TRUE)) -> 0 | M121: 0 | N121: =RANK(M121,Egyéni!$N$3:$N$156,0) -> 41
D122: 0 | F122: 0 | H122: 0 | J122: 0 | L122: =IF(K122<leány!$D$2,0,VLOOKUP(K122,hfut,3,TRUE)) -> 0 | M122: 0 | N122: =RANK(M122,Egyéni!$N$3:$N$156,0) -> 41
D123: 0 | F123: 0 | H123: 0 | J123: 0 | L123: =IF(K123<leány!$D$2,0,VLOOKUP(K123,hfut,3,TRUE)) -> 0 | M123: 0 | N123: =RANK(M123,Egyéni!$N$3:$N$156,0) -> 41
D124: 0 | F124: 0 | H124: 0 | J124: 0 | L124: =IF(K124<leány!$D$2,0,VLOOKUP(K124,hfut,3,TRUE)) -> 0 | M124: 0 | N124: =RANK(M124,Egyéni!$N$3:$N$156,0) -> 41
O127: =RANK(O129,Csapat!$C$3:P130,0) -> 8
A128: Név | B128: Sz.év | C128: 100 m | E128: Távolugrás | G128: Klabdahajítás | I128: Súlylökés | K128: 800 m | M128: Összpont | N128: Helyezés
D129: =IF(C129<6.19,0,VLOOKUP(C129,rfut,5,TRUE)) -> 0 | F129: =IF(E129<1.79,0,VLOOKUP(E129,távol,4,TRUE)) -> 0 | H129: =IF(G129<4,0,VLOOKUP(G129,kisl,2,TRUE)) -> 0 | J129: =IF(I129<3,0,VLOOKUP(I129,súly,3,TRUE)) -> 0 | L129: =IF(K129<leány!$D$2,0,VLOOKUP(K129,hfut,3,TRUE)) -> 0 | M129: =SUM(D129,F129,H129,L129,J129) -> 0 | N129: =RANK(M129,Egyéni!$N$3:$N$156,0) -> 41 | O129: =SUM(M129:M134)-MIN(M129:M134) -> 0
D130: 0 | F130: 0 | H130: 0 | J130: 0 | L130: =IF(K130<leány!$D$2,0,VLOOKUP(K130,hfut,3,TRUE)) -> 0 | M130: 0 | N130: =RANK(M130,Egyéni!$N$3:$N$156,0) -> 41
D131: 0 | F131: 0 | H131: 0 | J131: 0 | L131: =IF(K131<leány!$D$2,0,VLOOKUP(K131,hfut,3,TRUE)) -> 0 | M131: 0 | N131: =RANK(M131,Egyéni!$N$3:$N$156,0) -> 41
D132: 0 | F132: 0 | H132: 0 | J132: 0 | L132: =IF(K132<leány!$D$2,0,VLOOKUP(K132,hfut,3,TRUE)) -> 0 | M132: 0 | N132: =RANK(M132,Egyéni!$N$3:$N$156,0) -> 41
D133: 0 | F133: 0 | H133: 0 | J133: 0 | L133: =IF(K133<leány!$D$2,0,VLOOKUP(K133,hfut,3,TRUE)) -> 0 | M133: 0 | N133: =RANK(M133,Egyéni!$N$3:$N$156,0) -> 41
D134: 0 | F134: 0 | H134: 0 | J134: 0 | L134: =IF(K134<leány!$D$2,0,VLOOKUP(K134,hfut,3,TRUE)) -> 0 | M134: 0 | N134: =RANK(M134,Egyéni!$N$3:$N$156,0) -> 41
O137: =RANK(O139,Csapat!$C$3:P140,0) -> 8
A138: Név | B138: Sz.év | C138: 100 m | E138: Távolugrás | G138: Klabdahajítás | I138: Súlylökés | K138: 800 m | M138: Összpont | N138: Helyezés
D139: =IF(C139<6.19,0,VLOOKUP(C139,rfut,5,TRUE)) -> 0 | F139: =IF(E139<1.79,0,VLOOKUP(E139,távol,4,TRUE)) -> 0 | H139: =IF(G139<4,0,VLOOKUP(G139,kisl,2,TRUE)) -> 0 | J139: =IF(I139<3,0,VLOOKUP(I139,súly,3,TRUE)) -> 0 | L139: =IF(K139<leány!$D$2,0,VLOOKUP(K139,hfut,3,TRUE)) -> 0 | M139: =SUM(D139,F139,H139,L139,J139) -> 0 | N139: =RANK(M139,Egyéni!$N$3:$N$156,0) -> 41 | O139: =SUM(M139:M144)-MIN(M139:M144) -> 0
D140: 0 | F140: 0 | H140: 0 | J140: 0 | L140: =IF(K140<leány!$D$2,0,VLOOKUP(K140,hfut,3,TRUE)) -> 0 | M140: 0 | N140: =RANK(M140,Egyéni!$N$3:$N$156,0) -> 41
D141: 0 | F141: 0 | H141: 0 | J141: 0 | L141: =IF(K141<leány!$D$2,0,VLOOKUP(K141,hfut,3,TRUE)) -> 0 | M141: 0 | N141: =RANK(M141,Egyéni!$N$3:$N$156,0) -> 41
D142: 0 | F142: 0 | H142: 0 | J142: 0 | L142: =IF(K142<leány!$D$2,0,VLOOKUP(K142,hfut,3,TRUE)) -> 0 | M142: 0 | N142: =RANK(M142,Egyéni!$N$3:$N$156,0) -> 41
D143: 0 | F143: 0 | H143: 0 | J143: 0 | L143: =IF(K143<leány!$D$2,0,VLOOKUP(K143,hfut,3,TRUE)) -> 0 | M143: 0 | N143: =RANK(M143,Egyéni!$N$3:$N$156,0) -> 41
D144: 0 | F144: 0 | H144: 0 | J144: 0 | L144: =IF(K144<leány!$D$2,0,VLOOKUP(K144,hfut,3,TRUE)) -> 0 | M144: 0 | N144: =RANK(M144,Egyéni!$N$3:$N$156,0) -> 41
O147: =RANK(O149,Csapat!$C$3:P150,0) -> 8
A148: Név | B148: Sz.év | C148: 100 m | E148: Távolugrás | G148: Klabdahajítás | I148: Súlylökés | K148: 800 m | M148: Összpont | N148: Helyezés
D149: =IF(C149<6.19,0,VLOOKUP(C149,rfut,5,TRUE)) -> 0 | F149: =IF(E149<1.79,0,VLOOKUP(E149,távol,4,TRUE)) -> 0 | H149: =IF(G149<4,0,VLOOKUP(G149,kisl,2,TRUE)) -> 0 | J149: =IF(I149<3,0,VLOOKUP(I149,súly,3,TRUE)) -> 0 | L149: =IF(K149<leány!$D$2,0,VLOOKUP(K149,hfut,3,TRUE)) -> 0 | M149: =SUM(D149,F149,H149,L149,J149) -> 0 | N149: =RANK(M149,Egyéni!$N$3:$N$156,0) -> 41 | O149: =SUM(M149:M154)-MIN(M149:M154) -> 0
D150: 0 | F150: 0 | H150: 0 | J150: 0 | L150: =IF(K150<leány!$D$2,0,VLOOKUP(K150,hfut,3,TRUE)) -> 0 | M150: 0 | N150: =RANK(M150,Egyéni!$N$3:$N$156,0) -> 41
D151: 0 | F151: 0 | H151: 0 | J151: 0 | L151: =IF(K151<leány!$D$2,0,VLOOKUP(K151,hfut,3,TRUE)) -> 0 | M151: 0 | N151: =RANK(M151,Egyéni!$N$3:$N$156,0) -> 41
D152: 0 | F152: 0 | H152: 0 | J152: 0 | L152: =IF(K152<leány!$D$2,0,VLOOKUP(K152,hfut,3,TRUE)) -> 0 | M152: 0 | N152: =RANK(M152,Egyéni!$N$3:$N$156,0) -> 41
D153: 0 | F153: 0 | H153: 0 | J153: 0 | L153: =IF(K153<leány!$D$2,0,VLOOKUP(K153,hfut,3,TRUE)) -> 0 | M153: 0 | N153: =RANK(M153,Egyéni!$N$3:$N$156,0) -> 41
D154: 0 | F154: 0 | H154: 0 | J154: 0 | L154: =IF(K154<leány!$D$2,0,VLOOKUP(K154,hfut,3,TRUE)) -> 0 | M154: 0 | N154: =RANK(M154,Egyéni!$N$3:$N$156,0) -> 41
O157: =RANK(O159,Csapat!$C$3:P160,0) -> 8
A158: Név | B158: Sz.év | C158: 100 m | E158: Távolugrás | G158: Klabdahajítás | I158: Súlylökés | K158: 800 m | M158: Összpont | N158: Helyezés
D159: =IF(C159<6.19,0,VLOOKUP(C159,rfut,5,TRUE)) -> 0 | F159: =IF(E159<1.79,0,VLOOKUP(E159,távol,4,TRUE)) -> 0 | H159: =IF(G159<4,0,VLOOKUP(G159,kisl,2,TRUE)) -> 0 | J159: =IF(I159<3,0,VLOOKUP(I159,súly,3,TRUE)) -> 0 | L159: =IF(K159<leány!$D$2,0,VLOOKUP(K159,hfut,3,TRUE)) -> 0 | M159: =SUM(D159,F159,H159,L159,J159) -> 0 | N159: =RANK(M159,Egyéni!$N$3:$N$156,0) -> 41 | O159: =SUM(M159:M164)-MIN(M159:M164) -> 0
D160: 0 | F160: 0 | H160: 0 | J160: 0 | L160: =IF(K160<leány!$D$2,0,VLOOKUP(K160,hfut,3,TRUE)) -> 0 | M160: 0 | N160: =RANK(M160,Egyéni!$N$3:$N$156,0) -> 41
D161: 0 | F161: 0 | H161: 0 | J161: 0 | L161: =IF(K161<leány!$D$2,0,VLOOKUP(K161,hfut,3,TRUE)) -> 0 | M161: 0 | N161: =RANK(M161,Egyéni!$N$3:$N$156,0) -> 41
D162: 0 | F162: 0 | H162: 0 | J162: 0 | L162: =IF(K162<leány!$D$2,0,VLOOKUP(K162,hfut,3,TRUE)) -> 0 | M162: 0 | N162: =RANK(M162,Egyéni!$N$3:$N$156,0) -> 41
D163: 0 | F163: 0 | H163: 0 | J163: 0 | L163: =IF(K163<leány!$D$2,0,VLOOKUP(K163,hfut,3,TRUE)) -> 0 | M163: 0 | N163: =RANK(M163,Egyéni!$N$3:$N$156,0) -> 41
D164: 0 | F164: 0 | H164: 0 | J164: 0 | L164: =IF(K164<leány!$D$2,0,VLOOKUP(K164,hfut,3,TRUE)) -> 0 | M164: 0 | N164: =RANK(M164,Egyéni!$N$3:$N$156,0) -> 41
O167: =RANK(O169,Csapat!$C$3:P170,0) -> 8
A168: Név | B168: Sz.év | C168: 100 m | E168: Távolugrás | G168: Klabdahajítás | I168: Súlylökés | K168: 800 m | M168: Összpont | N168: Helyezés
D169: =IF(C169<6.19,0,VLOOKUP(C169,rfut,5,TRUE)) -> 0 | F169: =IF(E169<1.79,0,VLOOKUP(E169,távol,4,TRUE)) -> 0 | H169: =IF(G169<4,0,VLOOKUP(G169,kisl,2,TRUE)) -> 0 | J169: =IF(I169<3,0,VLOOKUP(I169,súly,3,TRUE)) -> 0 | L169: =IF(K169<leány!$D$2,0,VLOOKUP(K169,hfut,3,TRUE)) -> 0 | M169: =SUM(D169,F169,H169,L169,J169) -> 0 | N169: =RANK(M169,Egyéni!$N$3:$N$156,0) -> 41 | O169: =SUM(M169:M174)-MIN(M169:M174) -> 0
D170: 0 | F170: 0 | H170: 0 | J170: 0 | L170: =IF(K170<leány!$D$2,0,VLOOKUP(K170,hfut,3,TRUE)) -> 0 | M170: 0 | N170: =RANK(M170,Egyéni!$N$3:$N$156,0) -> 41
D171: 0 | F171: 0 | H171: 0 | J171: 0 | L171: =IF(K171<leány!$D$2,0,VLOOKUP(K171,hfut,3,TRUE)) -> 0 | M171: 0 | N171: =RANK(M171,Egyéni!$N$3:$N$156,0) -> 41
D172: 0 | F172: 0 | H172: 0 | J172: 0 | L172: =IF(K172<leány!$D$2,0,VLOOKUP(K172,hfut,3,TRUE)) -> 0 | M172: 0 | N172: =RANK(M172,Egyéni!$N$3:$N$156,0) -> 41
D173: 0 | F173: 0 | H173: 0 | J173: 0 | L173: =IF(K173<leány!$D$2,0,VLOOKUP(K173,hfut,3,TRUE)) -> 0 | M173: 0 | N173: =RANK(M173,Egyéni!$N$3:$N$156,0) -> 41
D174: 0 | F174: 0 | H174: 0 | J174: 0 | L174: =IF(K174<leány!$D$2,0,VLOOKUP(K174,hfut,3,TRUE)) -> 0 | M174: 0 | N174: =RANK(M174,Egyéni!$N$3:$N$156,0) -> 41
O177: =RANK(O179,Csapat!$C$3:P180,0) -> 8
A178: Név | B178: Sz.év | C178: 100 m | E178: Távolugrás | G178: Klabdahajítás | I178: Súlylökés | K178: 800 m | M178: Összpont | N178: Helyezés
D179: =IF(C179<6.19,0,VLOOKUP(C179,rfut,5,TRUE)) -> 0 | F179: =IF(E179<1.79,0,VLOOKUP(E179,távol,4,TRUE)) -> 0 | H179: =IF(G179<4,0,VLOOKUP(G179,kisl,2,TRUE)) -> 0 | J179: =IF(I179<3,0,VLOOKUP(I179,súly,3,TRUE)) -> 0 | L179: =IF(K179<leány!$D$2,0,VLOOKUP(K179,hfut,3,TRUE)) -> 0 | M179: =SUM(D179,F179,H179,L179,J179) -> 0 | N179: =RANK(M179,Egyéni!$N$3:$N$156,0) -> 41 | O179: =SUM(M179:M184)-MIN(M179:M184) -> 0
D180: 0 | F180: 0 | H180: 0 | J180: 0 | L180: =IF(K180<leány!$D$2,0,VLOOKUP(K180,hfut,3,TRUE)) -> 0 | M180: 0 | N180: =RANK(M180,Egyéni!$N$3:$N$156,0) -> 41
D181: 0 | F181: 0 | H181: 0 | J181: 0 | L181: =IF(K181<leány!$D$2,0,VLOOKUP(K181,hfut,3,TRUE)) -> 0 | M181: 0 | N181: =RANK(M181,Egyéni!$N$3:$N$156,0) -> 41
D182: 0 | F182: 0 | H182: 0 | J182: 0 | L182: =IF(K182<leány!$D$2,0,VLOOKUP(K182,hfut,3,TRUE)) -> 0 | M182: 0 | N182: =RANK(M182,Egyéni!$N$3:$N$156,0) -> 41
D183: 0 | F183: 0 | H183: 0 | J183: 0 | L183: =IF(K183<leány!$D$2,0,VLOOKUP(K183,hfut,3,TRUE)) -> 0 | M183: 0 | N183: =RANK(M183,Egyéni!$N$3:$N$156,0) -> 41
D184: 0 | F184: 0 | H184: 0 | J184: 0 | L184: =IF(K184<leány!$D$2,0,VLOOKUP(K184,hfut,3,TRUE)) -> 0 | M184: 0 | N184: =RANK(M184,Egyéni!$N$3:$N$156,0) -> 41
O187: =RANK(O189,Csapat!$C$3:P190,0) -> 8
A188: Név | B188: Sz.év | C188: 100 m | E188: Távolugrás | G188: Klabdahajítás | I188: Súlylökés | K188: 800 m | M188: Összpont | N188: Helyezés
D189: =IF(C189<6.19,0,VLOOKUP(C189,rfut,5,TRUE)) -> 0 | F189: =IF(E189<1.79,0,VLOOKUP(E189,távol,4,TRUE)) -> 0 | H189: =IF(G189<4,0,VLOOKUP(G189,kisl,2,TRUE)) -> 0 | J189: =IF(I189<3,0,VLOOKUP(I189,súly,3,TRUE)) -> 0 | L189: =IF(K189<leány!$D$2,0,VLOOKUP(K189,hfut,3,TRUE)) -> 0 | M189: =SUM(D189,F189,H189,L189,J189) -> 0 | N189: =RANK(M189,Egyéni!$N$3:$N$156,0) -> 41 | O189: =SUM(M189:M194)-MIN(M189:M194) -> 0
D190: 0 | F190: 0 | H190: 0 | J190: 0 | L190: =IF(K190<leány!$D$2,0,VLOOKUP(K190,hfut,3,TRUE)) -> 0 | M190: 0 | N190: =RANK(M190,Egyéni!$N$3:$N$156,0) -> 41
D191: 0 | F191: 0 | H191: 0 | J191: 0 | L191: =IF(K191<leány!$D$2,0,VLOOKUP(K191,hfut,3,TRUE)) -> 0 | M191: 0 | N191: =RANK(M191,Egyéni!$N$3:$N$156,0) -> 41
D192: 0 | F192: 0 | H192: 0 | J192: 0 | L192: =IF(K192<leány!$D$2,0,VLOOKUP(K192,hfut,3,TRUE)) -> 0 | M192: 0 | N192: =RANK(M192,Egyéni!$N$3:$N$156,0) -> 41
D193: 0 | F193: 0 | H193: 0 | J193: 0 | L193: =IF(K193<leány!$D$2,0,VLOOKUP(K193,hfut,3,TRUE)) -> 0 | M193: 0 | N193: =RANK(M193,Egyéni!$N$3:$N$156,0) -> 41
D194: 0 | F194: 0 | H194: 0 | J194: 0 | L194: =IF(K194<leány!$D$2,0,VLOOKUP(K194,hfut,3,TRUE)) -> 0 | M194: 0 | N194: =RANK(M194,Egyéni!$N$3:$N$156,0) -> 41
O197: =RANK(O199,Csapat!$C$3:P200,0) -> 8
A198: Név | B198: Sz.év | C198: 100 m | E198: Távolugrás | G198: Klabdahajítás | I198: Súlylökés | K198: 800 m | M198: Összpont | N198: Helyezés
D199: =IF(C199<6.19,0,VLOOKUP(C199,rfut,5,TRUE)) -> 0 | F199: =IF(E199<1.79,0,VLOOKUP(E199,távol,4,TRUE)) -> 0 | H199: =IF(G199<4,0,VLOOKUP(G199,kisl,2,TRUE)) -> 0 | J199: =IF(I199<3,0,VLOOKUP(I199,súly,3,TRUE)) -> 0 | L199: =IF(K199<leány!$D$2,0,VLOOKUP(K199,hfut,3,TRUE)) -> 0 | M199: =SUM(D199,F199,H199,L199,J199) -> 0 | N199: =RANK(M199,Egyéni!$N$3:$N$156,0) -> 41 | O199: =SUM(M199:M204)-MIN(M199:M204) -> 0
D200: 0 | F200: 0 | H200: 0 | J200: 0 | L200: =IF(K200<leány!$D$2,0,VLOOKUP(K200,hfut,3,TRUE)) -> 0 | M200: 0 | N200: =RANK(M200,Egyéni!$N$3:$N$156,0) -> 41
D201: 0 | F201: 0 | H201: 0 | J201: 0 | L201: =IF(K201<leány!$D$2,0,VLOOKUP(K201,hfut,3,TRUE)) -> 0 | M201: 0 | N201: =RANK(M201,Egyéni!$N$3:$N$156,0) -> 41
D202: 0 | F202: 0 | H202: 0 | J202: 0 | L202: =IF(K202<leány!$D$2,0,VLOOKUP(K202,hfut,3,TRUE)) -> 0 | M202: 0 | N202: =RANK(M202,Egyéni!$N$3:$N$156,0) -> 41
D203: 0 | F203: 0 | H203: 0 | J203: 0 | L203: =IF(K203<leány!$D$2,0,VLOOKUP(K203,hfut,3,TRUE)) -> 0 | M203: 0 | N203: =RANK(M203,Egyéni!$N$3:$N$156,0) -> 41
D204: 0 | F204: 0 | H204: 0 | J204: 0 | L204: =IF(K204<leány!$D$2,0,VLOOKUP(K204,hfut,3,TRUE)) -> 0 | M204: 0 | N204: =RANK(M204,Egyéni!$N$3:$N$156,0) -> 41
O207: =RANK(O209,Csapat!$C$3:P210,0) -> 8
A208: Név | B208: Sz.év | C208: 100 m | E208: Távolugrás | G208: Klabdahajítás | I208: Súlylökés | K208: 800 m | M208: Összpont | N208: Helyezés
D209: =IF(C209<6.19,0,VLOOKUP(C209,rfut,5,TRUE)) -> 0 | F209: =IF(E209<1.79,0,VLOOKUP(E209,távol,4,TRUE)) -> 0 | H209: =IF(G209<4,0,VLOOKUP(G209,kisl,2,TRUE)) -> 0 | J209: =IF(I209<3,0,VLOOKUP(I209,súly,3,TRUE)) -> 0 | L209: =IF(K209<leány!$D$2,0,VLOOKUP(K209,hfut,3,TRUE)) -> 0 | M209: =SUM(D209,F209,H209,L209,J209) -> 0 | N209: =RANK(M209,Egyéni!$N$3:$N$156,0) -> 41 | O209: =SUM(M209:M214)-MIN(M209:M214) -> 0
D210: 0 | F210: 0 | H210: 0 | J210: 0 | L210: =IF(K210<leány!$D$2,0,VLOOKUP(K210,hfut,3,TRUE)) -> 0 | M210: 0 | N210: =RANK(M210,Egyéni!$N$3:$N$156,0) -> 41
D211: 0 | F211: 0 | H211: 0 | J211: 0 | L211: =IF(K211<leány!$D$2,0,VLOOKUP(K211,hfut,3,TRUE)) -> 0 | M211: 0 | N211: =RANK(M211,Egyéni!$N$3:$N$156,0) -> 41
D212: 0 | F212: 0 | H212: 0 | J212: 0 | L212: =IF(K212<leány!$D$2,0,VLOOKUP(K212,hfut,3,TRUE)) -> 0 | M212: 0 | N212: =RANK(M212,Egyéni!$N$3:$N$156,0) -> 41
D213: 0 | F213: 0 | H213: 0 | J213: 0 | L213: =IF(K213<leány!$D$2,0,VLOOKUP(K213,hfut,3,TRUE)) -> 0 | M213: 0 | N213: =RANK(M213,Egyéni!$N$3:$N$156,0) -> 41
D214: 0 | F214: 0 | H214: 0 | J214: 0 | L214: =IF(K214<leány!$D$2,0,VLOOKUP(K214,hfut,3,TRUE)) -> 0 | M214: 0 | N214: =RANK(M214,Egyéni!$N$3:$N$156,0) -> 41
O217: =RANK(O219,Csapat!$C$3:P220,0) -> 8
A218: Név | B218: Sz.év | C218: 100 m | E218: Távolugrás | G218: Klabdahajítás | I218: Súlylökés | K218: 800 m | M218: Összpont | N218: Helyezés
D219: =IF(C219<6.19,0,VLOOKUP(C219,rfut,5,TRUE)) -> 0 | F219: =IF(E219<1.79,0,VLOOKUP(E219,távol,4,TRUE)) -> 0 | H219: =IF(G219<4,0,VLOOKUP(G219,kisl,2,TRUE)) -> 0 | J219: =IF(I219<3,0,VLOOKUP(I219,súly,3,TRUE)) -> 0 | L219: =IF(K219<leány!$D$2,0,VLOOKUP(K219,hfut,3,TRUE)) -> 0 | M219: =SUM(D219,F219,H219,L219,J219) -> 0 | N219: =RANK(M219,Egyéni!$N$3:$N$156,0) -> 41 | O219: =SUM(M219:M224)-MIN(M219:M224) -> 0
D220: 0 | F220: 0 | H220: 0 | J220: 0 | L220: =IF(K220<leány!$D$2,0,VLOOKUP(K220,hfut,3,TRUE)) -> 0 | M220: 0 | N220: =RANK(M220,Egyéni!$N$3:$N$156,0) -> 41
D221: 0 | F221: 0 | H221: 0 | J221: 0 | L221: =IF(K221<leány!$D$2,0,VLOOKUP(K221,hfut,3,TRUE)) -> 0 | M221: 0 | N221: =RANK(M221,Egyéni!$N$3:$N$156,0) -> 41
D222: 0 | F222: 0 | H222: 0 | J222: 0 | L222: =IF(K222<leány!$D$2,0,VLOOKUP(K222,hfut,3,TRUE)) -> 0 | M222: 0 | N222: =RANK(M222,Egyéni!$N$3:$N$156,0) -> 41
D223: 0 | F223: 0 | H223: 0 | J223: 0 | L223: =IF(K223<leány!$D$2,0,VLOOKUP(K223,hfut,3,TRUE)) -> 0 | M223: 0 | N223: =RANK(M223,Egyéni!$N$3:$N$156,0) -> 41
D224: 0 | F224: 0 | H224: 0 | J224: 0 | L224: =IF(K224<leány!$D$2,0,VLOOKUP(K224,hfut,3,TRUE)) -> 0 | M224: 0 | N224: =RANK(M224,Egyéni!$N$3:$N$156,0) -> 41
O227: =RANK(O229,Csapat!$C$3:P230,0) -> 8
A228: Név | B228: Sz.év | C228: 100 m | E228: Távolugrás | G228: Klabdahajítás | I228: Súlylökés | K228: 800 m | M228: Összpont | N228: Helyezés
D229: =IF(C229<6.19,0,VLOOKUP(C229,rfut,5,TRUE)) -> 0 | F229: =IF(E229<1.79,0,VLOOKUP(E229,távol,4,TRUE)) -> 0 | H229: =IF(G229<4,0,VLOOKUP(G229,kisl,2,TRUE)) -> 0 | J229: =IF(I229<3,0,VLOOKUP(I229,súly,3,TRUE)) -> 0 | L229: =IF(K229<leány!$D$2,0,VLOOKUP(K229,hfut,3,TRUE)) -> 0 | M229: =SUM(D229,F229,H229,L229,J229) -> 0 | N229: =RANK(M229,Egyéni!$N$3:$N$156,0) -> 41 | O229: =SUM(M229:M234)-MIN(M229:M234) -> 0
D230: 0 | F230: 0 | H230: 0 | J230: 0 | L230: =IF(K230<leány!$D$2,0,VLOOKUP(K230,hfut,3,TRUE)) -> 0 | M230: 0 | N230: =RANK(M230,Egyéni!$N$3:$N$156,0) -> 41
D231: 0 | F231: 0 | H231: 0 | J231: 0 | L231: =IF(K231<leány!$D$2,0,VLOOKUP(K231,hfut,3,TRUE)) -> 0 | M231: 0 | N231: =RANK(M231,Egyéni!$N$3:$N$156,0) -> 41
D232: 0 | F232: 0 | H232: 0 | J232: 0 | L232: =IF(K232<leány!$D$2,0,VLOOKUP(K232,hfut,3,TRUE)) -> 0 | M232: 0 | N232: =RANK(M232,Egyéni!$N$3:$N$156,0) -> 41
D233: 0 | F233: 0 | H233: 0 | J233: 0 | L233: =IF(K233<leány!$D$2,0,VLOOKUP(K233,hfut,3,TRUE)) -> 0 | M233: 0 | N233: =RANK(M233,Egyéni!$N$3:$N$156,0) -> 41
D234: 0 | F234: 0 | H234: 0 | J234: 0 | L234: =IF(K234<leány!$D$2,0,VLOOKUP(K234,hfut,3,TRUE)) -> 0 | M234: 0 | N234: =RANK(M234,Egyéni!$N$3:$N$156,0) -> 41
O237: =RANK(O239,Csapat!$C$3:P240,0) -> 8
A238: Név | B238: Sz.év | C238: 100 m | E238: Távolugrás | G238: Klabdahajítás | I238: Súlylökés | K238: 800 m | M238: Összpont | N238: Helyezés
D239: =IF(C239<6.19,0,VLOOKUP(C239,rfut,5,TRUE)) -> 0 | F239: =IF(E239<1.79,0,VLOOKUP(E239,távol,4,TRUE)) -> 0 | H239: =IF(G239<4,0,VLOOKUP(G239,kisl,2,TRUE)) -> 0 | J239: =IF(I239<3,0,VLOOKUP(I239,súly,3,TRUE)) -> 0 | L239: =IF(K239<leány!$D$2,0,VLOOKUP(K239,hfut,3,TRUE)) -> 0 | M239: =SUM(D239,F239,H239,L239,J239) -> 0 | N239: =RANK(M239,Egyéni!$N$3:$N$156,0) -> 41 | O239: =SUM(M239:M244)-MIN(M239:M244) -> 0
D240: 0 | F240: 0 | H240: 0 | J240: 0 | L240: =IF(K240<leány!$D$2,0,VLOOKUP(K240,hfut,3,TRUE)) -> 0 | M240: 0 | N240: =RANK(M240,Egyéni!$N$3:$N$156,0) -> 41
D241: 0 | F241: 0 | H241: 0 | J241: 0 | L241: =IF(K241<leány!$D$2,0,VLOOKUP(K241,hfut,3,TRUE)) -> 0 | M241: 0 | N241: =RANK(M241,Egyéni!$N$3:$N$156,0) -> 41
D242: 0 | F242: 0 | H242: 0 | J242: 0 | L242: =IF(K242<leány!$D$2,0,VLOOKUP(K242,hfut,3,TRUE)) -> 0 | M242: 0 | N242: =RANK(M242,Egyéni!$N$3:$N$156,0) -> 41
D243: 0 | F243: 0 | H243: 0 | J243: 0 | L243: =IF(K243<leány!$D$2,0,VLOOKUP(K243,hfut,3,TRUE)) -> 0 | M243: 0 | N243: =RANK(M243,Egyéni!$N$3:$N$156,0) -> 41
D244: 0 | F244: 0 | H244: 0 | J244: 0 | L244: =IF(K244<leány!$D$2,0,VLOOKUP(K244,hfut,3,TRUE)) -> 0 | M244: 0 | N244: =RANK(M244,Egyéni!$N$3:$N$156,0) -> 41

Sheet Egyéni
A1: IV. korcsoport LEÁNY EGYÉNI végeredmény (Sorbarendezés Ctrl + t )
A2: Ssz | B2: Név | C2: Szév | D2: 100 m | E2: p | F2: Távol | G2: p | H2: Kisl | I2: p | J2: Súly | K2: p | L2: 800 m | M2: p | N2: Összp | P2: Iskola
A3: 1. | B3: =Be!A44 -> Novák Orsolya | C3: =Be!B44 -> 2008 | D3: =Be!C44 -> 13.09 | E3: =Be!D44 -> 217 | F3: =Be!E44 -> 4.4 | G3: =Be!F44 -> 152 | H3: =Be!G44 -> 44.6 | I3: =Be!H44 -> 161 | J3: =Be!I44 -> 9.47 | K3: =Be!J44 -> 146 | L3: =Be!K44 -> 00:02:56.600 | M3: =Be!L44 -> 135 | N3: =Be!M44 -> 811 | P3: =Be!A37 -> Ráckevei Ady Endre Gimnázium
A4: 2. | B4: =Be!A62 -> Králik Borbála | C4: =Be!B62 -> 2007 | D4: =Be!C62 -> 12.69 | E4: =Be!D62 -> 236 | F4: =Be!E62 -> 4.51 | G4: =Be!F62 -> 160 | H4: =Be!G62 -> 37.6 | I4: =Be!H62 -> 129 | J4: =Be!I62 -> 7.81 | K4: =Be!J62 -> 105 | L4: =Be!K62 -> 00:03:13.570 | M4: =Be!L62 -> 95 | N4: =Be!M62 -> 725 | P4: =Be!A57 -> Dunaharaszti Körösi Csoma Sándor. Ált. Isk
A5: 3. | B5: =Be!A60 -> Gabona Nikol | C5: =Be!B60 -> 2008 | D5: =Be!C60 -> 12.85 | E5: =Be!D60 -> 229 | F5: =Be!E60 -> 4.22 | G5: =Be!F60 -> 140 | H5: =Be!G60 -> 39.9 | I5: =Be!H60 -> 139 | J5: =Be!I60 -> 8.14 | K5: =Be!J60 -> 113 | L5: =Be!K60 -> 00:03:12.300 | M5: =Be!L60 -> 98 | N5: =Be!M60 -> 719 | P5: =Be!A57 -> Dunaharaszti Körösi Csoma Sándor. Ált. Isk
A6: 4. | B6: =Be!A54 -> Strucz Laura | C6: =Be!B54 -> 2007 | D6: =Be!C54 -> 12.78 | E6: =Be!D54 -> 232 | F6: =Be!E54 -> 3.71 | G6: =Be!F54 -> 108 | H6: =Be!G54 -> 36.36 | I6: =Be!H54 -> 124 | J6: =Be!I54 -> 7.09 | K6: =Be!J54 -> 88 | L6: =Be!K54 -> 00:02:58.020 | M6: =Be!L54 -> 132 | N6: =Be!M54 -> 684 | P6: =Be!A47 -> Tököli Weöres Sándor Ált.Iskola
A7: 5. | B7: =Be!A29 -> Galambos Eszter | C7: =Be!B29 -> 2008 | D7: =Be!C29 -> 13.69 | E7: =Be!D29 -> 190 | F7: =Be!E29 -> 3.81 | G7: =Be!F29 -> 114 | H7: =Be!G29 -> 41.92 | I7: =Be!H29 -> 148 | J7: =Be!I29 -> 8.78 | K7: =Be!J29 -> 129 | L7: =Be!K29 -> 00:03:21.910 | M7: =Be!L29 -> 77 | N7: =Be!M29 -> 658 | P7: =Be!A27 -> Ráckeve Szent Imre Katolikus Ált. Isk.
A8: 6. | B8: =Be!A69 -> Kovács Daniella | C8: =Be!B69 -> 2007 | D8: =Be!C69 -> 13.51 | E8: =Be!D69 -> 198 | F8: =Be!E69 -> 3.61 | G8: =Be!F69 -> 101 | H8: =Be!G69 -> 41.2 | I8: =Be!H69 -> 145 | J8: =Be!I69 -> 9.4 | K8: =Be!J69 -> 145 | L8: =Be!K69 -> 00:03:40.830 | M8: =Be!L69 -> 38 | N8: =Be!M69 -> 627 | P8: =Be!A67 -> Kiskunlacházi Ált.Isk
A9: 7. | B9: =Be!A43 -> Sokácz Nóra | C9: =Be!B43 -> 2008 | D9: =Be!C43 -> 13.88 | E9: =Be!D43 -> 182 | F9: =Be!E43 -> 3.71 | G9: =Be!F43 -> 108 | H9: =Be!G43 -> 44.9 | I9: =Be!H43 -> 162 | J9: =Be!I43 -> 7.48 | K9: =Be!J43 -> 97 | L9: =Be!K43 -> 00:03:23.350 | M9: =Be!L43 -> 74 | N9: =Be!M43 -> 623 | P9: =Be!A37 -> Ráckevei Ady Endre Gimnázium
A10: 8. | B10: =Be!A50 -> Csoma Liliána | C10: =Be!B50 -> 2007 | D10: =Be!C50 -> 12.97 | E10: =Be!D50 -> 223 | F10: =Be!E50 -> 3.61 | G10: =Be!F50 -> 101 | H10: =Be!G50 -> 36.67 | I10: =Be!H50 -> 125 | J10: =Be!I50 -> 6.58 | K10: =Be!J50 -> 76 | L10: =Be!K50 -> 00:03:14.030 | M10: =Be!L50 -> 94 | N10: =Be!M50 -> 619 | P10: =Be!A47 -> Tököli Weöres Sándor Ált.Iskola
A11: 9. | B11: =Be!A63 -> Ordódy Norina | C11: =Be!B63 -> 2007 | D11: =Be!C63 -> 12.76 | E11: =Be!D63 -> 233 | F11: =Be!E63 -> 4.01 | G11: =Be!F63 -> 127 | H11: =Be!G63 -> 33.4 | I11: =Be!H63 -> 111 | J11: =Be!I63 -> 7.63 | K11: =Be!J63 -> 100 | L11: =Be!K63 -> 00:03:45.280 | M11: =Be!L63 -> 29 | N11: =Be!M63 -> 600 | P11: =Be!A57 -> Dunaharaszti Körösi Csoma Sándor. Ált. Isk
A12: 10. | B12: =Be!A70 -> Erős Boglárka | C12: =Be!B70 -> 2007 | D12: =Be!C70 -> 13.56 | E12: =Be!D70 -> 195 | F12: =Be!E70 -> 4.03 | G12: =Be!F70 -> 128 | H12: =Be!G70 -> 39.5 | I12: =Be!H70 -> 138 | J12: =Be!I70 -> 8.79 | K12: =Be!J70 -> 129 | L12: =Be!K70 -> 00:03:58.280 | M12: =Be!L70 -> 3 | N12: =Be!M70 -> 593 | P12: =Be!A67 -> Kiskunlacházi Ált.Isk
A13: 11. | B13: =Be!A59 -> Fehér Fanni | C13: =Be!B59 -> 2008 | D13: =Be!C59 -> 12.99 | E13: =Be!D59 -> 222 | F13: =Be!E59 -> 3.25 | G13: =Be!F59 -> 80 | H13: =Be!G59 -> 32.8 | I13: =Be!H59 -> 109 | J13: =Be!I59 -> 6.57 | K13: =Be!J59 -> 76 | L13: =Be!K59 -> 00:03:11.730 | M13: =Be!L59 -> 99 | N13: =Be!M59 -> 586 | P13: =Be!A57 -> Dunaharaszti Körösi Csoma Sándor. Ált. Isk
A14: 12. | B14: =Be!A49 -> Bednanics Dóra | C14: =Be!B49 -> 2008 | D14: =Be!C49 -> 13.42 | E14: =Be!D49 -> 202 | F14: =Be!E49 -> 3.58 | G14: =Be!F49 -> 99 | H14: =Be!G49 -> 24.69 | I14: =Be!H49 -> 76 | J14: =Be!I49 -> 5.73 | K14: =Be!J49 -> 57 | L14: =Be!K49 -> 00:02:58.380 | M14: =Be!L49 -> 131 | N14: =Be!M49 -> 565 | P14: =Be!A47 -> Tököli Weöres Sándor Ált.Iskola
A15: 13. | B15: =Be!A41 -> Csömöri Boglárka | C15: =Be!B41 -> 2007 | D15: =Be!C41 -> 13.28 | E15: =Be!D41 -> 208 | F15: =Be!E41 -> 3.86 | G15: =Be!F41 -> 117 | H15: =Be!G41 -> 32.4 | I15: =Be!H41 -> 107 | J15: =Be!I41 -> 7.26 | K15: =Be!J41 -> 92 | L15: =Be!K41 -> 00:03:41.180 | M15: =Be!L41 -> 37 | N15: =Be!M41 -> 561 | P15: =Be!A37 -> Ráckevei Ady Endre Gimnázium
A16: 14. | B16: =Be!A31 -> Samu Szellő | C16: =Be!B31 -> 2008 | D16: =Be!C31 -> 13.96 | E16: =Be!D31 -> 179 | F16: =Be!E31 -> 3.78 | G16: =Be!F31 -> 112 | H16: =Be!G31 -> 27.41 | I16: =Be!H31 -> 87 | J16: =Be!I31 -> 7.84 | K16: =Be!J31 -> 106 | L16: =Be!K31 -> 00:03:25.140 | M16: =Be!L31 -> 70 | N16: =Be!M31 -> 554 | P16: =Be!A27 -> Ráckeve Szent Imre Katolikus Ált. Isk.
A17: 15. | B17: =Be!A81 -> Molnár Kincső | C17: =Be!B81 -> 2008 | D17: =Be!C81 -> 13.19 | E17: =Be!D81 -> 212 | F17: =Be!E81 -> 3.97 | G17: =Be!F81 -> 124 | H17: =Be!G81 -> 30.3 | I17: =Be!H81 -> 98 | J17: =Be!I81 -> 6.57 | K17: =Be!J81 -> 76 | L17: =Be!K81 -> 00:03:42.490 | M17: =Be!L81 -> 34 | N17: =Be!M81 -> 544 | P17: =Be!A77 -> Szigetszentmárton
A18: 16. | B18: =Be!A83 -> Tátrai Zita | C18: =Be!B83 -> 2008 | D18: =Be!C83 -> 13.81 | E18: =Be!D83 -> 185 | F18: =Be!E83 -> 3.98 | G18: =Be!F83 -> 125 | H18: =Be!G83 -> 33.7 | I18: =Be!H83 -> 113 | J18: =Be!I83 -> 6.64 | K18: =Be!J83 -> 78 | L18: =Be!K83 -> 00:03:38.940 | M18: =Be!L83 -> 41 | N18: =Be!M83 -> 542 | P18: =Be!A77 -> Szigetszentmárton
A19: 17. | B19: =Be!A52 -> Hirth Szonja | C19: =Be!B52 -> 2007 | D19: =Be!C52 -> 13.09 | E19: =Be!D52 -> 217 | F19: =Be!E52 -> 3.81 | G19: =Be!F52 -> 114 | H19: =Be!G52 -> 25.7 | I19: =Be!H52 -> 80 | J19: =Be!I52 -> 5.59 | K19: =Be!J52 -> 54 | L19: =Be!K52 -> 00:03:25.100 | M19: =Be!L52 -> 71 | N19: =Be!M52 -> 536 | P19: =Be!A47 -> Tököli Weöres Sándor Ált.Iskola
A20: 18. | B20: =Be!A84 -> Váradi Szabina | C20: =Be!B84 -> 2007 | D20: =Be!C84 -> 13.76 | E20: =Be!D84 -> 187 | F20: =Be!E84 -> 3.95 | G20: =Be!F84 -> 123 | H20: =Be!G84 -> 29.8 | I20: =Be!H84 -> 96 | J20: =Be!I84 -> 6.91 | K20: =Be!J84 -> 84 | L20: =Be!K84 -> 00:03:42.810 | M20: =Be!L84 -> 34 | N20: =Be!M84 -> 524 | P20: =Be!A77 -> Szigetszentmárton
A21: 19. | B21: =Be!A42 -> Gólya Boglárka | C21: =Be!B42 -> 2007 | D21: =Be!C42 -> 13.75 | E21: =Be!D42 -> 187 | F21: =Be!E42 -> 3.74 | G21: =Be!F42 -> 109 | H21: =Be!G42 -> 27.8 | I21: =Be!H42 -> 88 | J21: =Be!I42 -> 7.42 | K21: =Be!J42 -> 96 | L21: =Be!K42 -> 00:03:37.530 | M21: =Be!L42 -> 44 | N21: =Be!M42 -> 524 | P21: =Be!A37 -> Ráckevei Ady Endre Gimnázium
A22: 20. | B22: =Be!A72 -> Varga Szonja | C22: =Be!B72 -> 2008 | D22: =Be!C72 -> 14.23 | E22: =Be!D72 -> 167 | F22: =Be!E72 -> 3.59 | G22: =Be!F72 -> 100 | H22: =Be!G72 -> 35 | I22: =Be!H72 -> 118 | J22: =Be!I72 -> 8.56 | K22: =Be!J72 -> 124 | L22: =Be!K72 -> 00:03:54.990 | M22: =Be!L72 -> 9 | N22: =Be!M72 -> 518 | P22: =Be!A67 -> Kiskunlacházi Ált.Isk
A23: 21. | B23: =Be!A32 -> Novák Alexandra | C23: =Be!B32 -> 2007 | D23: =Be!C32 -> 13.62 | E23: =Be!D32 -> 193 | F23: =Be!E32 -> 3.96 | G23: =Be!F32 -> 124 | H23: =Be!G32 -> 32.39 | I23: =Be!H32 -> 107 | J23: =Be!I32 -> 5.02 | K23: =Be!J32 -> 42 | L23: =Be!K32 -> 00:03:34.050 | M23: =Be!L32 -> 51 | N23: =Be!M32 -> 517 | P23: =Be!A27 -> Ráckeve Szent Imre Katolikus Ált. Isk.
A24: 22. | B24: =Be!A33 -> Szebellédi Veronika | C24: =Be!B33 -> 2007 | D24: =Be!C33 -> 13.86 | E24: =Be!D33 -> 183 | F24: =Be!E33 -> 3.72 | G24: =Be!F33 -> 108 | H24: =Be!G33 -> 29.1 | I24: =Be!H33 -> 93 | J24: =Be!I33 -> 8.29 | K24: =Be!J33 -> 117 | L24: =Be!K33 -> 00:03:52.350 | M24: =Be!L33 -> 15 | N24: =Be!M33 -> 516 | P24: =Be!A27 -> Ráckeve Szent Imre Katolikus Ált. Isk.
A25: 23. | B25: =Be!A71 -> Lacza Lilla | C25: =Be!B71 -> 2008 | D25: =Be!C71 -> 13.76 | E25: =Be!D71 -> 187 | F25: =Be!E71 -> 3.69 | G25: =Be!F71 -> 106 | H25: =Be!G71 -> 34.3 | I25: =Be!H71 -> 115 | J25: =Be!I71 -> 6.2 | K25: =Be!J71 -> 68 | L25: =Be!K71 -> 00:03:41.540 | M25: =Be!L71 -> 36 | N25: =Be!M71 -> 512 | P25: =Be!A67 -> Kiskunlacházi Ált.Isk
A26: 24. | B26: =Be!A30 -> Badits Vanda | C26: =Be!B30 -> 2008 | D26: =Be!C30 -> 13.79 | E26: =Be!D30 -> 186 | F26: =Be!E30 -> 3.61 | G26: =Be!F30 -> 101 | H26: =Be!G30 -> 38.73 | I26: =Be!H30 -> 134 | J26: =Be!I30 -> 7.06 | K26: =Be!J30 -> 87 | L26: =Be!K30 -> 00:04:10.820 | M26: =Be!L30 -> 0 | N26: =Be!M30 -> 508 | P26: =Be!A27 -> Ráckeve Szent Imre Katolikus Ált. Isk.
A27: 25. | B27: =Be!A74 -> Marossy Rebeka | C27: =Be!B74 -> 2008 | D27: =Be!C74 -> 13.12 | E27: =Be!D74 -> 216 | F27: =Be!E74 -> 3.62 | G27: =Be!F74 -> 102 | H27: =Be!G74 -> 27.6 | I27: =Be!H74 -> 87 | J27: =Be!I74 -> 5.24 | K27: =Be!J74 -> 46 | L27: =Be!K74 -> 00:03:31.120 | M27: =Be!L74 -> 57 | N27: =Be!M74 -> 508 | P27: =Be!A67 -> Kiskunlacházi Ált.Isk
A28: 26. | B28: =Be!A61 -> Horváth Amira | C28: =Be!B61 -> 2008 | D28: =Be!C61 -> 13.98 | E28: =Be!D61 -> 178 | F28: =Be!E61 -> 3.37 | G28: =Be!F61 -> 87 | H28: =Be!G61 -> 33.8 | I28: =Be!H61 -> 113 | J28: =Be!I61 -> 8.42 | K28: =Be!J61 -> 120 | L28: =Be!K61 -> 00:00:00 | M28: =Be!L61 -> 0 | N28: =Be!M61 -> 498 | P28: =Be!A57 -> Dunaharaszti Körösi Csoma Sándor. Ált. Isk
A29: 27. | B29: =Be!A53 -> Kassai Adrienn Zora | C29: =Be!B53 -> 2008 | D29: =Be!C53 -> 13.88 | E29: =Be!D53 -> 182 | F29: =Be!E53 -> 3.81 | G29: =Be!F53 -> 114 | H29: =Be!G53 -> 27.49 | I29: =Be!H53 -> 87 | J29: =Be!I53 -> 5.61 | K29: =Be!J53 -> 54 | L29: =Be!K53 -> 00:03:37.660 | M29: =Be!L53 -> 44 | N29: =Be!M53 -> 481 | P29: =Be!A47 -> Tököli Weöres Sándor Ált.Iskola
A30: 28. | B30: =Be!A64 -> Sárosi Bianka | C30: =Be!B64 -> 2008 | D30: =Be!C64 -> 13.77 | E30: =Be!D64 -> 187 | F30: =Be!E64 -> 3.65 | G30: =Be!F64 -> 104 | H30: =Be!G64 -> 28.9 | I30: =Be!H64 -> 93 | J30: =Be!I64 -> 5.83 | K30: =Be!J64 -> 59 | L30: =Be!K64 -> 00:03:47.660 | M30: =Be!L64 -> 24 | N30: =Be!M64 -> 467 | P30: =Be!A57 -> Dunaharaszti Körösi Csoma Sándor. Ált. Isk
A31: 29. | B31: =Be!A82 -> Réti Blanka | C31: =Be!B82 -> 2007 | D31: =Be!C82 -> 14.12 | E31: =Be!D82 -> 172 | F31: =Be!E82 -> 3.52 | G31: =Be!F82 -> 96 | H31: =Be!G82 -> 29.2 | I31: =Be!H82 -> 94 | J31: =Be!I82 -> 6.59 | K31: =Be!J82 -> 77 | L31: =Be!K82 -> 00:03:45.750 | M31: =Be!L82 -> 28 | N31: =Be!M82 -> 467 | P31: =Be!A77 -> Szigetszentmárton
A32: 30. | B32: =Be!A40 -> Rácz Emese | C32: =Be!B40 -> 2007 | D32: =Be!C40 -> 13.22 | E32: =Be!D40 -> 211 | F32: =Be!E40 -> 3.4 | G32: =Be!F40 -> 89 | H32: =Be!G40 -> 22.8 | I32: =Be!H40 -> 69 | J32: =Be!I40 -> 6.01 | K32: =Be!J40 -> 63 | L32: =Be!K40 -> 00:03:46.090 | M32: =Be!L40 -> 27 | N32: =Be!M40 -> 459 | P32: =Be!A37 -> Ráckevei Ady Endre Gimnázium
A33: 31. | B33: =Be!A6 -> Zöllei Panka | C33: =Be!B6 -> 2008 | D33: =Be!C6 -> 14.07 | E33: =Be!D6 -> 174 | F33: =Be!E6 -> 3.41 | G33: =Be!F6 -> 89 | H33: =Be!G6 -> 32.1 | I33: =Be!H6 -> 106 | J33: =Be!I6 -> 5.52 | K33: =Be!J6 -> 52 | L33: =Be!K6 -> 00:03:41.990 | M33: =Be!L6 -> 35 | N33: =Be!M6 -> 456 | P33: =Be!O6 -> Kiskunalacházi Ált.Isk
A34: 32. | B34: =Be!A91 -> Hihály Bianka | C34: =Be!B91 -> 2008 | D34: =Be!C91 -> 13.54 | E34: =Be!D91 -> 196 | F34: =Be!E91 -> 3.15 | G34: =Be!F91 -> 74 | H34: =Be!G91 -> 21.55 | I34: =Be!H91 -> 64 | J34: =Be!I91 -> 5.68 | K34: =Be!J91 -> 56 | L34: =Be!K91 -> 00:03:27.400 | M34: =Be!L91 -> 66 | N34: =Be!M91 -> 456 | P34: =Be!A87 -> Áporka Ált. Isk
A35: 33. | B35: =Be!A73 -> Marossy Kiara | C35: =Be!B73 -> 2008 | D35: =Be!C73 -> 13.15 | E35: =Be!D73 -> 214 | F35: =Be!E73 -> 3.04 | G35: =Be!F73 -> 68 | H35: =Be!G73 -> 23.1 | I35: =Be!H73 -> 70 | J35: =Be!I73 -> 5.89 | K35: =Be!J73 -> 61 | L35: =Be!K73 -> 00:03:39.780 | M35: =Be!L73 -> 40 | N35: =Be!M73 -> 453 | P35: =Be!A67 -> Kiskunlacházi Ált.Isk
A36: 34. | B36: =Be!A51 -> Deidda Elisa | C36: =Be!B51 -> 2007 | D36: =Be!C51 -> 13.58 | E36: =Be!D51 -> 195 | F36: =Be!E51 -> 3.11 | G36: =Be!F51 -> 72 | H36: =Be!G51 -> 25.75 | I36: =Be!H51 -> 80 | J36: =Be!I51 -> 5.98 | K36: =Be!J51 -> 63 | L36: =Be!K51 -> 00:03:46.380 | M36: =Be!L51 -> 27 | N36: =Be!M51 -> 437 | P36: =Be!A47 -> Tököli Weöres Sándor Ált.Iskola
A37: 35. | B37: =Be!A39 -> Rupa Sára | C37: =Be!B39 -> 2008 | D37: =Be!C39 -> 14.91 | E37: =Be!D39 -> 139 | F37: =Be!E39 -> 3.08 | G37: =Be!F39 -> 70 | H37: =Be!G39 -> 31.3 | I37: =Be!H39 -> 102 | J37: =Be!I39 -> 8.39 | K37: =Be!J39 -> 119 | L37: =Be!K39 -> 00:04:07.740 | M37: =Be!L39 -> 0 | N37: =Be!M39 -> 430 | P37: =Be!A37 -> Ráckevei Ady Endre Gimnázium
A38: 36. | B38: =Be!A90 -> Kiss Mollii | C38: =Be!B90 -> 2008 | D38: =Be!C90 -> 14.21 | E38: =Be!D90 -> 168 | F38: =Be!E90 -> 3.14 | G38: =Be!F90 -> 74 | H38: =Be!G90 -> 18.42 | I38: =Be!H90 -> 51 | J38: =Be!I90 -> 5.88 | K38: =Be!J90 -> 61 | L38: =Be!K90 -> 00:03:38.620 | M38: =Be!L90 -> 42 | N38: =Be!M90 -> 396 | P38: =Be!A87 -> Áporka Ált. Isk
A39: 37. | B39: =Be!A89 -> Kelemen Kata Boglárka | C39: =Be!B89 -> 2008 | D39: =Be!C89 -> 14.37 | E39: =Be!D89 -> 161 | F39: =Be!E89 -> 3.22 | G39: =Be!F89 -> 78 | H39: =Be!G89 -> 25.21 | I39: =Be!H89 -> 78 | J39: =Be!I89 -> 5.61 | K39: =Be!J89 -> 54 | L39: =Be!K89 -> 00:00:00 | M39: =Be!L89 -> 0 | N39: =Be!M89 -> 371 | P39: =Be!A87 -> Áporka Ált. Isk
A40: 38. | B40: =Be!A5 -> Jakab Amanda | C40: =Be!B5 -> 2008 | D40: =Be!C5 -> 14.55 | E40: =Be!D5 -> 154 | F40: =Be!E5 -> 3.32 | G40: =Be!F5 -> 84 | H40: =Be!G5 -> 23.5 | I40: =Be!H5 -> 71 | J40: =Be!I5 -> 5.79 | K40: =Be!J5 -> 58 | L40: =Be!K5 -> 00:00:00 | M40: =Be!L5 -> 0 | N40: =Be!M5 -> 367 | P40: =Be!O5 -> Kiskunalacházi Ált.Isk
A41: 39. | B41: =Be!A80 -> Kaszab Lili | C41: =Be!B80 -> 2008 | D41: =Be!C80 -> 15.04 | E41: =Be!D80 -> 135 | F41: =Be!E80 -> 3.64 | G41: =Be!F80 -> 103 | H41: =Be!G80 -> 22.9 | I41: =Be!H80 -> 69 | J41: =Be!I80 -> 4.48 | K41: =Be!J80 -> 30 | L41: =Be!K80 -> 00:05:13.820 | M41: =Be!L80 -> 0 | N41: =Be!M80 -> 337 | P41: =Be!A77 -> Szigetszentmárton
A42: 40. | B42: =Be!A79 -> Forró Eszter | C42: =Be!B79 -> 2008 | D42: =Be!C79 -> 15.53 | E42: =Be!D79 -> 116 | F42: =Be!E79 -> 0 | G42: =Be!F79 -> 0 | H42: =Be!G79 -> 29.4 | I42: =Be!H79 -> 95 | J42: =Be!I79 -> 6.16 | K42: =Be!J79 -> 67 | L42: =Be!K79 -> 00:05:14.120 | M42: =Be!L79 -> 0 | N42: =Be!M79 -> 278 | P42: =Be!A77 -> Szigetszentmárton
A43: 41. | B43: =Be!A4 -> Kővári Zsófia | C43: =Be!B4 -> 2008 | D43: =Be!C4 -> 0 | E43: =Be!D4 -> 0 | F43: =Be!E4 -> 0 | G43: =Be!F4 -> 0 | H43: =Be!G4 -> 0 | I43: =Be!H4 -> 0 | J43: =Be!I4 -> 0 | K43: =Be!J4 -> 0 | L43: =Be!K4 -> 00:00:00 | M43: =Be!L4 -> 0 | N43: =Be!M4 -> 0 | P43: =Be!O4 -> Kiskunalacházi Ált.Isk
A44: 42. | B44: =Be!A7 -> 0 | C44: =Be!B7 -> 0 | D44: =Be!C7 -> 0 | E44: =Be!D7 -> 0 | F44: =Be!E7 -> 0 | G44: =Be!F7 -> 0 | H44: =Be!G7 -> 0 | I44: =Be!H7 -> 0 | J44: =Be!I7 -> 0 | K44: =Be!J7 -> 0 | L44: =Be!K7 -> 00:00:00 | M44: =Be!L7 -> 0 | N44: =Be!M7 -> 0 | P44: =Be!O7 -> 0
A45: 43. | B45: =Be!A8 -> 0 | C45: =Be!B8 -> 0 | D45: =Be!C8 -> 0 | E45: =Be!D8 -> 0 | F45: =Be!E8 -> 0 | G45: =Be!F8 -> 0 | H45: =Be!G8 -> 0 | I45: =Be!H8 -> 0 | J45: =Be!I8 -> 0 | K45: =Be!J8 -> 0 | L45: =Be!K8 -> 00:00:00 | M45: =Be!L8 -> 0 | N45: =Be!M8 -> 0 | P45: =Be!O8 -> 0
A46: 44. | B46: =Be!A9 -> 0 | C46: =Be!B9 -> 0 | D46: =Be!C9 -> 0 | E46: =Be!D9 -> 0 | F46: =Be!E9 -> 0 | G46: =Be!F9 -> 0 | H46: =Be!G9 -> 0 | I46: =Be!H9 -> 0 | J46: =Be!I9 -> 0 | K46: =Be!J9 -> 0 | L46: =Be!K9 -> 00:00:00 | M46: =Be!L9 -> 0 | N46: =Be!M9 -> 0 | P46: =Be!O9 -> 0
A47: 45. | B47: =Be!A10 -> 0 | C47: =Be!B10 -> 0 | D47: =Be!C10 -> 0 | E47: =Be!D10 -> 0 | F47: =Be!E10 -> 0 | G47: =Be!F10 -> 0 | H47: =Be!G10 -> 0 | I47: =Be!H10 -> 0 | J47: =Be!I10 -> 0 | K47: =Be!J10 -> 0 | L47: =Be!K10 -> 00:00:00 | M47: =Be!L10 -> 0 | N47: =Be!M10 -> 0 | P47: =Be!O10 -> 0
A48: 46. | B48: =Be!A11 -> 0 | C48: =Be!B11 -> 0 | D48: =Be!C11 -> 0 | E48: =Be!D11 -> 0 | F48: =Be!E11 -> 0 | G48: =Be!F11 -> 0 | H48: =Be!G11 -> 0 | I48: =Be!H11 -> 0 | J48: =Be!I11 -> 0 | K48: =Be!J11 -> 0 | L48: =Be!K11 -> 00:00:00 | M48: =Be!L11 -> 0 | N48: =Be!M11 -> 0 | P48: =Be!O11 -> 0
A49: 47. | B49: =Be!A12 -> 0 | C49: =Be!B12 -> 0 | D49: =Be!C12 -> 0 | E49: =Be!D12 -> 0 | F49: =Be!E12 -> 0 | G49: =Be!F12 -> 0 | H49: =Be!G12 -> 0 | I49: =Be!H12 -> 0 | J49: =Be!I12 -> 0 | K49: =Be!J12 -> 0 | L49: =Be!K12 -> 00:00:00 | M49: =Be!L12 -> 0 | N49: =Be!M12 -> 0 | P49: =Be!O12 -> 0
A50: 48. | B50: =Be!A13 -> 0 | C50: =Be!B13 -> 0 | D50: =Be!C13 -> 0 | E50: =Be!D13 -> 0 | F50: =Be!E13 -> 0 | G50: =Be!F13 -> 0 | H50: =Be!G13 -> 0 | I50: =Be!H13 -> 0 | J50: =Be!I13 -> 0 | K50: =Be!J13 -> 0 | L50: =Be!K13 -> 00:00:00 | M50: =Be!L13 -> 0 | N50: =Be!M13 -> 0 | P50: =Be!O13 -> 0
A51: 49. | B51: =Be!A14 -> 0 | C51: =Be!B14 -> 0 | D51: =Be!C14 -> 0 | E51: =Be!D14 -> 0 | F51: =Be!E14 -> 0 | G51: =Be!F14 -> 0 | H51: =Be!G14 -> 0 | I51: =Be!H14 -> 0 | J51: =Be!I14 -> 0 | K51: =Be!J14 -> 0 | L51: =Be!K14 -> 00:00:00 | M51: =Be!L14 -> 0 | N51: =Be!M14 -> 0 | P51: =Be!O14 -> 0
A52: 50. | B52: =Be!A15 -> 0 | C52: =Be!B15 -> 0 | D52: =Be!C15 -> 0 | E52: =Be!D15 -> 0 | F52: =Be!E15 -> 0 | G52: =Be!F15 -> 0 | H52: =Be!G15 -> 0 | I52: =Be!H15 -> 0 | J52: =Be!I15 -> 0 | K52: =Be!J15 -> 0 | L52: =Be!K15 -> 00:00:00 | M52: =Be!L15 -> 0 | N52: =Be!M15 -> 0 | P52: =Be!O15 -> 0
A53: 51. | B53: =Be!A16 -> 0 | C53: =Be!B16 -> 0 | D53: =Be!C16 -> 0 | E53: =Be!D16 -> 0 | F53: =Be!E16 -> 0 | G53: =Be!F16 -> 0 | H53: =Be!G16 -> 0 | I53: =Be!H16 -> 0 | J53: =Be!I16 -> 0 | K53: =Be!J16 -> 0 | L53: =Be!K16 -> 00:00:00 | M53: =Be!L16 -> 0 | N53: =Be!M16 -> 0 | P53: =Be!O16 -> 0
A54: 52. | B54: =Be!A17 -> 0 | C54: =Be!B17 -> 0 | D54: =Be!C17 -> 0 | E54: =Be!D17 -> 0 | F54: =Be!E17 -> 0 | G54: =Be!F17 -> 0 | H54: =Be!G17 -> 0 | I54: =Be!H17 -> 0 | J54: =Be!I17 -> 0 | K54: =Be!J17 -> 0 | L54: =Be!K17 -> 00:00:00 | M54: =Be!L17 -> 0 | N54: =Be!M17 -> 0 | P54: =Be!O17 -> 0
A55: 53. | B55: =Be!A18 -> 0 | C55: =Be!B18 -> 0 | D55: =Be!C18 -> 0 | E55: =Be!D18 -> 0 | F55: =Be!E18 -> 0 | G55: =Be!F18 -> 0 | H55: =Be!G18 -> 0 | I55: =Be!H18 -> 0 | J55: =Be!I18 -> 0 | K55: =Be!J18 -> 0 | L55: =Be!K18 -> 00:00:00 | M55: =Be!L18 -> 0 | N55: =Be!M18 -> 0 | P55: =Be!O18 -> 0
A56: 54. | B56: =Be!A19 -> 0 | C56: =Be!B19 -> 0 | D56: =Be!C19 -> 0 | E56: =Be!D19 -> 0 | F56: =Be!E19 -> 0 | G56: =Be!F19 -> 0 | H56: =Be!G19 -> 0 | I56: =Be!H19 -> 0 | J56: =Be!I19 -> 0 | K56: =Be!J19 -> 0 | L56: =Be!K19 -> 00:00:00 | M56: =Be!L19 -> 0 | N56: =Be!M19 -> 0 | P56: =Be!O19 -> 0
A57: 55. | B57: =Be!A20 -> 0 | C57: =Be!B20 -> 0 | D57: =Be!C20 -> 0 | E57: =Be!D20 -> 0 | F57: =Be!E20 -> 0 | G57: =Be!F20 -> 0 | H57: =Be!G20 -> 0 | I57: =Be!H20 -> 0 | J57: =Be!I20 -> 0 | K57: =Be!J20 -> 0 | L57: =Be!K20 -> 00:00:00 | M57: =Be!L20 -> 0 | N57: =Be!M20 -> 0 | P57: =Be!O20 -> 0
A58: 56. | B58: =Be!A21 -> 0 | C58: =Be!B21 -> 0 | D58: =Be!C21 -> 0 | E58: =Be!D21 -> 0 | F58: =Be!E21 -> 0 | G58: =Be!F21 -> 0 | H58: =Be!G21 -> 0 | I58: =Be!H21 -> 0 | J58: =Be!I21 -> 0 | K58: =Be!J21 -> 0 | L58: =Be!K21 -> 00:00:00 | M58: =Be!L21 -> 0 | N58: =Be!M21 -> 0 | P58: =Be!O21 -> 0
A59: 57. | B59: =Be!A22 -> 0 | C59: =Be!B22 -> 0 | D59: =Be!C22 -> 0 | E59: =Be!D22 -> 0 | F59: =Be!E22 -> 0 | G59: =Be!F22 -> 0 | H59: =Be!G22 -> 0 | I59: =Be!H22 -> 0 | J59: =Be!I22 -> 0 | K59: =Be!J22 -> 0 | L59: =Be!K22 -> 00:00:00 | M59: =Be!L22 -> 0 | N59: =Be!M22 -> 0 | P59: =Be!O22 -> 0
A60: 58. | B60: =Be!A23 -> 0 | C60: =Be!B23 -> 0 | D60: =Be!C23 -> 0 | E60: =Be!D23 -> 0 | F60: =Be!E23 -> 0 | G60: =Be!F23 -> 0 | H60: =Be!G23 -> 0 | I60: =Be!H23 -> 0 | J60: =Be!I23 -> 0 | K60: =Be!J23 -> 0 | L60: =Be!K23 -> 00:00:00 | M60: =Be!L23 -> 0 | N60: =Be!M23 -> 0 | P60: =Be!O23 -> 0
A61: 59. | B61: =Be!A24 -> 0 | C61: =Be!B24 -> 0 | D61: =Be!C24 -> 0 | E61: =Be!D24 -> 0 | F61: =Be!E24 -> 0 | G61: =Be!F24 -> 0 | H61: =Be!G24 -> 0 | I61: =Be!H24 -> 0 | J61: =Be!I24 -> 0 | K61: =Be!J24 -> 0 | L61: =Be!K24 -> 00:00:00 | M61: =Be!L24 -> 0 | N61: =Be!M24 -> 0 | P61: =Be!O24 -> 0
A62: 60. | B62: =Be!A25 -> 0 | C62: =Be!B25 -> 0 | D62: =Be!C25 -> 0 | E62: =Be!D25 -> 0 | F62: =Be!E25 -> 0 | G62: =Be!F25 -> 0 | H62: =Be!G25 -> 0 | I62: =Be!H25 -> 0 | J62: =Be!I25 -> 0 | K62: =Be!J25 -> 0 | L62: =Be!K25 -> 00:00:00 | M62: =Be!L25 -> 0 | N62: =Be!M25 -> 0 | P62: =Be!O25 -> 0
A63: 61. | B63: =Be!A34 -> 0 | C63: =Be!B34 -> 0 | D63: =Be!C34 -> 0 | E63: =Be!D34 -> 0 | F63: =Be!E34 -> 0 | G63: =Be!F34 -> 0 | H63: =Be!G34 -> 0 | I63: =Be!H34 -> 0 | J63: =Be!I34 -> 0 | K63: =Be!J34 -> 0 | L63: =Be!K34 -> 00:00:00 | M63: =Be!L34 -> 0 | N63: =Be!M34 -> 0 | P63: =Be!A27 -> Ráckeve Szent Imre Katolikus Ált. Isk.
A64: 62. | B64: =Be!A92 -> 0 | C64: =Be!B92 -> 0 | D64: =Be!C92 -> 0 | E64: =Be!D92 -> 0 | F64: =Be!E92 -> 0 | G64: =Be!F92 -> 0 | H64: =Be!G92 -> 0 | I64: =Be!H92 -> 0 | J64: =Be!I92 -> 0 | K64: =Be!J92 -> 0 | L64: =Be!K92 -> 00:00:00 | M64: =Be!L92 -> 0 | N64: =Be!M92 -> 0 | P64: =Be!A87 -> Áporka Ált. Isk
A65: 63. | B65: =Be!A93 -> 0 | C65: =Be!B93 -> 0 | D65: =Be!C93 -> 0 | E65: =Be!D93 -> 0 | F65: =Be!E93 -> 0 | G65: =Be!F93 -> 0 | H65: =Be!G93 -> 0 | I65: =Be!H93 -> 0 | J65: =Be!I93 -> 0 | K65: =Be!J93 -> 0 | L65: =Be!K93 -> 00:00:00 | M65: =Be!L93 -> 0 | N65: =Be!M93 -> 0 | P65: =Be!A87 -> Áporka Ált. Isk
A66: 64. | B66: =Be!A94 -> 0 | C66: =Be!B94 -> 0 | D66: =Be!C94 -> 0 | E66: =Be!D94 -> 0 | F66: =Be!E94 -> 0 | G66: =Be!F94 -> 0 | H66: =Be!G94 -> 0 | I66: =Be!H94 -> 0 | J66: =Be!I94 -> 0 | K66: =Be!J94 -> 0 | L66: =Be!K94 -> 00:00:00 | M66: =Be!L94 -> 0 | N66: =Be!M94 -> 0 | P66: =Be!A87 -> Áporka Ált. Isk
A67: 65. | B67: =Be!A99 -> 0 | C67: =Be!B99 -> 0 | D67: =Be!C99 -> 0 | E67: =Be!D99 -> 0 | F67: =Be!E99 -> 0 | G67: =Be!F99 -> 0 | H67: =Be!G99 -> 0 | I67: =Be!H99 -> 0 | J67: =Be!I99 -> 0 | K67: =Be!J99 -> 0 | L67: =Be!K99 -> 00:00:00 | M67: =Be!L99 -> 0 | N67: =Be!M99 -> 0 | P67: =Be!A97 -> 0
A68: 66. | B68: =Be!A100 -> 0 | C68: =Be!B100 -> 0 | D68: =Be!C100 -> 0 | E68: =Be!D100 -> 0 | F68: =Be!E100 -> 0 | G68: =Be!F100 -> 0 | H68: =Be!G100 -> 0 | I68: =Be!H100 -> 0 | J68: =Be!I100 -> 0 | K68: =Be!J100 -> 0 | L68: =Be!K100 -> 00:00:00 | M68: =Be!L100 -> 0 | N68: =Be!M100 -> 0 | P68: =Be!A97 -> 0
A69: 67. | B69: =Be!A101 -> 0 | C69: =Be!B101 -> 0 | D69: =Be!C101 -> 0 | E69: =Be!D101 -> 0 | F69: =Be!E101 -> 0 | G69: =Be!F101 -> 0 | H69: =Be!G101 -> 0 | I69: =Be!H101 -> 0 | J69: =Be!I101 -> 0 | K69: =Be!J101 -> 0 | L69: =Be!K101 -> 00:00:00 | M69: =Be!L101 -> 0 | N69: =Be!M101 -> 0 | P69: =Be!A97 -> 0
A70: 68. | B70: =Be!A102 -> 0 | C70: =Be!B102 -> 0 | D70: =Be!C102 -> 0 | E70: =Be!D102 -> 0 | F70: =Be!E102 -> 0 | G70: =Be!F102 -> 0 | H70: =Be!G102 -> 0 | I70: =Be!H102 -> 0 | J70: =Be!I102 -> 0 | K70: =Be!J102 -> 0 | L70: =Be!K102 -> 00:00:00 | M70: =Be!L102 -> 0 | N70: =Be!M102 -> 0 | P70: =Be!A97 -> 0
A71: 69. | B71: =Be!A103 -> 0 | C71: =Be!B103 -> 0 | D71: =Be!C103 -> 0 | E71: =Be!D103 -> 0 | F71: =Be!E103 -> 0 | G71: =Be!F103 -> 0 | H71: =Be!G103 -> 0 | I71: =Be!H103 -> 0 | J71: =Be!I103 -> 0 | K71: =Be!J103 -> 0 | L71: =Be!K103 -> 00:00:00 | M71: =Be!L103 -> 0 | N71: =Be!M103 -> 0 | P71: =Be!A97 -> 0
A72: 70. | B72: =Be!A104 -> 0 | C72: =Be!B104 -> 0 | D72: =Be!C104 -> 0 | E72: =Be!D104 -> 0 | F72: =Be!E104 -> 0 | G72: =Be!F104 -> 0 | H72: =Be!G104 -> 0 | I72: =Be!H104 -> 0 | J72: =Be!I104 -> 0 | K72: =Be!J104 -> 0 | L72: =Be!K104 -> 00:00:00 | M72: =Be!L104 -> 0 | N72: =Be!M104 -> 0 | P72: =Be!A97 -> 0
A73: 71. | B73: =Be!A109 -> 0 | C73: =Be!B109 -> 0 | D73: =Be!C109 -> 0 | E73: =Be!D109 -> 0 | F73: =Be!E109 -> 0 | G73: =Be!F109 -> 0 | H73: =Be!G109 -> 0 | I73: =Be!H109 -> 0 | J73: =Be!I109 -> 0 | K73: =Be!J109 -> 0 | L73: =Be!K109 -> 00:00:00 | M73: =Be!L109 -> 0 | N73: =Be!M109 -> 0 | P73: =Be!A107 -> 0
A74: 72. | B74: =Be!A110 -> 0 | C74: =Be!B110 -> 0 | D74: =Be!C110 -> 0 | E74: =Be!D110 -> 0 | F74: =Be!E110 -> 0 | G74: =Be!F110 -> 0 | H74: =Be!G110 -> 0 | I74: =Be!H110 -> 0 | J74: =Be!I110 -> 0 | K74: =Be!J110 -> 0 | L74: =Be!K110 -> 00:00:00 | M74: =Be!L110 -> 0 | N74: =Be!M110 -> 0 | P74: =Be!A107 -> 0
A75: 73. | B75: =Be!A111 -> 0 | C75: =Be!B111 -> 0 | D75: =Be!C111 -> 0 | E75: =Be!D111 -> 0 | F75: =Be!E111 -> 0 | G75: =Be!F111 -> 0 | H75: =Be!G111 -> 0 | I75: =Be!H111 -> 0 | J75: =Be!I111 -> 0 | K75: =Be!J111 -> 0 | L75: =Be!K111 -> 00:00:00 | M75: =Be!L111 -> 0 | N75: =Be!M111 -> 0 | P75: =Be!A107 -> 0
A76: 74. | B76: =Be!A112 -> 0 | C76: =Be!B112 -> 0 | D76: =Be!C112 -> 0 | E76: =Be!D112 -> 0 | F76: =Be!E112 -> 0 | G76: =Be!F112 -> 0 | H76: =Be!G112 -> 0 | I76: =Be!H112 -> 0 | J76: =Be!I112 -> 0 | K76: =Be!J112 -> 0 | L76: =Be!K112 -> 00:00:00 | M76: =Be!L112 -> 0 | N76: =Be!M112 -> 0 | P76: =Be!A107 -> 0
A77: 75. | B77: =Be!A113 -> 0 | C77: =Be!B113 -> 0 | D77: =Be!C113 -> 0 | E77: =Be!D113 -> 0 | F77: =Be!E113 -> 0 | G77: =Be!F113 -> 0 | H77: =Be!G113 -> 0 | I77: =Be!H113 -> 0 | J77: =Be!I113 -> 0 | K77: =Be!J113 -> 0 | L77: =Be!K113 -> 00:00:00 | M77: =Be!L113 -> 0 | N77: =Be!M113 -> 0 | P77: =Be!A107 -> 0
A78: 76. | B78: =Be!A114 -> 0 | C78: =Be!B114 -> 0 | D78: =Be!C114 -> 0 | E78: =Be!D114 -> 0 | F78: =Be!E114 -> 0 | G78: =Be!F114 -> 0 | H78: =Be!G114 -> 0 | I78: =Be!H114 -> 0 | J78: =Be!I114 -> 0 | K78: =Be!J114 -> 0 | L78: =Be!K114 -> 00:00:00 | M78: =Be!L114 -> 0 | N78: =Be!M114 -> 0 | P78: =Be!A107 -> 0
A79: 77. | B79: =Be!A119 -> 0 | C79: =Be!B119 -> 0 | D79: =Be!C119 -> 0 | E79: =Be!D119 -> 0 | F79: =Be!E119 -> 0 | G79: =Be!F119 -> 0 | H79: =Be!G119 -> 0 | I79: =Be!H119 -> 0 | J79: =Be!I119 -> 0 | K79: =Be!J119 -> 0 | L79: =Be!K119 -> 00:00:00 | M79: =Be!L119 -> 0 | N79: =Be!M119 -> 0 | P79: =Be!A117 -> 0
A80: 78. | B80: =Be!A120 -> 0 | C80: =Be!B120 -> 0 | D80: =Be!C120 -> 0 | E80: =Be!D120 -> 0 | F80: =Be!E120 -> 0 | G80: =Be!F120 -> 0 | H80: =Be!G120 -> 0 | I80: =Be!H120 -> 0 | J80: =Be!I120 -> 0 | K80: =Be!J120 -> 0 | L80: =Be!K120 -> 00:00:00 | M80: =Be!L120 -> 0 | N80: =Be!M120 -> 0 | P80: =Be!A117 -> 0
A81: 79. | B81: =Be!A121 -> 0 | C81: =Be!B121 -> 0 | D81: =Be!C121 -> 0 | E81: =Be!D121 -> 0 | F81: =Be!E121 -> 0 | G81: =Be!F121 -> 0 | H81: =Be!G121 -> 0 | I81: =Be!H121 -> 0 | J81: =Be!I121 -> 0 | K81: =Be!J121 -> 0 | L81: =Be!K121 -> 00:00:00 | M81: =Be!L121 -> 0 | N81: =Be!M121 -> 0 | P81: =Be!A117 -> 0
A82: 80. | B82: =Be!A122 -> 0 | C82: =Be!B122 -> 0 | D82: =Be!C122 -> 0 | E82: =Be!D122 -> 0 | F82: =Be!E122 -> 0 | G82: =Be!F122 -> 0 | H82: =Be!G122 -> 0 | I82: =Be!H122 -> 0 | J82: =Be!I122 -> 0 | K82: =Be!J122 -> 0 | L82: =Be!K122 -> 00:00:00 | M82: =Be!L122 -> 0 | N82: =Be!M122 -> 0 | P82: =Be!A117 -> 0
A83: 81. | B83: =Be!A123 -> 0 | C83: =Be!B123 -> 0 | D83: =Be!C123 -> 0 | E83: =Be!D123 -> 0 | F83: =Be!E123 -> 0 | G83: =Be!F123 -> 0 | H83: =Be!G123 -> 0 | I83: =Be!H123 -> 0 | J83: =Be!I123 -> 0 | K83: =Be!J123 -> 0 | L83: =Be!K123 -> 00:00:00 | M83: =Be!L123 -> 0 | N83: =Be!M123 -> 0 | P83: =Be!A117 -> 0
A84: 82. | B84: =Be!A124 -> 0 | C84: =Be!B124 -> 0 | D84: =Be!C124 -> 0 | E84: =Be!D124 -> 0 | F84: =Be!E124 -> 0 | G84: =Be!F124 -> 0 | H84: =Be!G124 -> 0 | I84: =Be!H124 -> 0 | J84: =Be!I124 -> 0 | K84: =Be!J124 -> 0 | L84: =Be!K124 -> 00:00:00 | M84: =Be!L124 -> 0 | N84: =Be!M124 -> 0 | P84: =Be!A117 -> 0
A85: 83. | B85: =Be!A129 -> 0 | C85: =Be!B129 -> 0 | D85: =Be!C129 -> 0 | E85: =Be!D129 -> 0 | F85: =Be!E129 -> 0 | G85: =Be!F129 -> 0 | H85: =Be!G129 -> 0 | I85: =Be!H129 -> 0 | J85: =Be!I129 -> 0 | K85: =Be!J129 -> 0 | L85: =Be!K129 -> 00:00:00 | M85: =Be!L129 -> 0 | N85: =Be!M129 -> 0 | P85: =Be!A127 -> 0
A86: 84. | B86: =Be!A130 -> 0 | C86: =Be!B130 -> 0 | D86: =Be!C130 -> 0 | E86: =Be!D130 -> 0 | F86: =Be!E130 -> 0 | G86: =Be!F130 -> 0 | H86: =Be!G130 -> 0 | I86: =Be!H130 -> 0 | J86: =Be!I130 -> 0 | K86: =Be!J130 -> 0 | L86: =Be!K130 -> 00:00:00 | M86: =Be!L130 -> 0 | N86: =Be!M130 -> 0 | P86: =Be!A127 -> 0
A87: 85. | B87: =Be!A131 -> 0 | C87: =Be!B131 -> 0 | D87: =Be!C131 -> 0 | E87: =Be!D131 -> 0 | F87: =Be!E131 -> 0 | G87: =Be!F131 -> 0 | H87: =Be!G131 -> 0 | I87: =Be!H131 -> 0 | J87: =Be!I131 -> 0 | K87: =Be!J131 -> 0 | L87: =Be!K131 -> 00:00:00 | M87: =Be!L131 -> 0 | N87: =Be!M131 -> 0 | P87: =Be!A127 -> 0
A88: 86. | B88: =Be!A132 -> 0 | C88: =Be!B132 -> 0 | D88: =Be!C132 -> 0 | E88: =Be!D132 -> 0 | F88: =Be!E132 -> 0 | G88: =Be!F132 -> 0 | H88: =Be!G132 -> 0 | I88: =Be!H132 -> 0 | J88: =Be!I132 -> 0 | K88: =Be!J132 -> 0 | L88: =Be!K132 -> 00:00:00 | M88: =Be!L132 -> 0 | N88: =Be!M132 -> 0 | P88: =Be!A127 -> 0
A89: 87. | B89: =Be!A133 -> 0 | C89: =Be!B133 -> 0 | D89: =Be!C133 -> 0 | E89: =Be!D133 -> 0 | F89: =Be!E133 -> 0 | G89: =Be!F133 -> 0 | H89: =Be!G133 -> 0 | I89: =Be!H133 -> 0 | J89: =Be!I133 -> 0 | K89: =Be!J133 -> 0 | L89: =Be!K133 -> 00:00:00 | M89: =Be!L133 -> 0 | N89: =Be!M133 -> 0 | P89: =Be!A127 -> 0
A90: 88. | B90: =Be!A134 -> 0 | C90: =Be!B134 -> 0 | D90: =Be!C134 -> 0 | E90: =Be!D134 -> 0 | F90: =Be!E134 -> 0 | G90: =Be!F134 -> 0 | H90: =Be!G134 -> 0 | I90: =Be!H134 -> 0 | J90: =Be!I134 -> 0 | K90: =Be!J134 -> 0 | L90: =Be!K134 -> 00:00:00 | M90: =Be!L134 -> 0 | N90: =Be!M134 -> 0 | P90: =Be!A127 -> 0
A91: 89. | B91: =Be!A139 -> 0 | C91: =Be!B139 -> 0 | D91: =Be!C139 -> 0 | E91: =Be!D139 -> 0 | F91: =Be!E139 -> 0 | G91: =Be!F139 -> 0 | H91: =Be!G139 -> 0 | I91: =Be!H139 -> 0 | J91: =Be!I139 -> 0 | K91: =Be!J139 -> 0 | L91: =Be!K139 -> 00:00:00 | M91: =Be!L139 -> 0 | N91: =Be!M139 -> 0 | P91: =Be!A137 -> 0
A92: 90. | B92: =Be!A140 -> 0 | C92: =Be!B140 -> 0 | D92: =Be!C140 -> 0 | E92: =Be!D140 -> 0 | F92: =Be!E140 -> 0 | G92: =Be!F140 -> 0 | H92: =Be!G140 -> 0 | I92: =Be!H140 -> 0 | J92: =Be!I140 -> 0 | K92: =Be!J140 -> 0 | L92: =Be!K140 -> 00:00:00 | M92: =Be!L140 -> 0 | N92: =Be!M140 -> 0 | P92: =Be!A137 -> 0
A93: 91. | B93: =Be!A141 -> 0 | C93: =Be!B141 -> 0 | D93: =Be!C141 -> 0 | E93: =Be!D141 -> 0 | F93: =Be!E141 -> 0 | G93: =Be!F141 -> 0 | H93: =Be!G141 -> 0 | I93: =Be!H141 -> 0 | J93: =Be!I141 -> 0 | K93: =Be!J141 -> 0 | L93: =Be!K141 -> 00:00:00 | M93: =Be!L141 -> 0 | N93: =Be!M141 -> 0 | P93: =Be!A137 -> 0
A94: 92. | B94: =Be!A142 -> 0 | C94: =Be!B142 -> 0 | D94: =Be!C142 -> 0 | E94: =Be!D142 -> 0 | F94: =Be!E142 -> 0 | G94: =Be!F142 -> 0 | H94: =Be!G142 -> 0 | I94: =Be!H142 -> 0 | J94: =Be!I142 -> 0 | K94: =Be!J142 -> 0 | L94: =Be!K142 -> 00:00:00 | M94: =Be!L142 -> 0 | N94: =Be!M142 -> 0 | P94: =Be!A137 -> 0
A95: 93. | B95: =Be!A143 -> 0 | C95: =Be!B143 -> 0 | D95: =Be!C143 -> 0 | E95: =Be!D143 -> 0 | F95: =Be!E143 -> 0 | G95: =Be!F143 -> 0 | H95: =Be!G143 -> 0 | I95: =Be!H143 -> 0 | J95: =Be!I143 -> 0 | K95: =Be!J143 -> 0 | L95: =Be!K143 -> 00:00:00 | M95: =Be!L143 -> 0 | N95: =Be!M143 -> 0 | P95: =Be!A137 -> 0
A96: 94. | B96: =Be!A144 -> 0 | C96: =Be!B144 -> 0 | D96: =Be!C144 -> 0 | E96: =Be!D144 -> 0 | F96: =Be!E144 -> 0 | G96: =Be!F144 -> 0 | H96: =Be!G144 -> 0 | I96: =Be!H144 -> 0 | J96: =Be!I144 -> 0 | K96: =Be!J144 -> 0 | L96: =Be!K144 -> 00:00:00 | M96: =Be!L144 -> 0 | N96: =Be!M144 -> 0 | P96: =Be!A137 -> 0
A97: 95. | B97: =Be!A149 -> 0 | C97: =Be!B149 -> 0 | D97: =Be!C149 -> 0 | E97: =Be!D149 -> 0 | F97: =Be!E149 -> 0 | G97: =Be!F149 -> 0 | H97: =Be!G149 -> 0 | I97: =Be!H149 -> 0 | J97: =Be!I149 -> 0 | K97: =Be!J149 -> 0 | L97: =Be!K149 -> 00:00:00 | M97: =Be!L149 -> 0 | N97: =Be!M149 -> 0 | P97: =Be!A147 -> 0
A98: 96. | B98: =Be!A150 -> 0 | C98: =Be!B150 -> 0 | D98: =Be!C150 -> 0 | E98: =Be!D150 -> 0 | F98: =Be!E150 -> 0 | G98: =Be!F150 -> 0 | H98: =Be!G150 -> 0 | I98: =Be!H150 -> 0 | J98: =Be!I150 -> 0 | K98: =Be!J150 -> 0 | L98: =Be!K150 -> 00:00:00 | M98: =Be!L150 -> 0 | N98: =Be!M150 -> 0 | P98: =Be!A147 -> 0
A99: 97. | B99: =Be!A151 -> 0 | C99: =Be!B151 -> 0 | D99: =Be!C151 -> 0 | E99: =Be!D151 -> 0 | F99: =Be!E151 -> 0 | G99: =Be!F151 -> 0 | H99: =Be!G151 -> 0 | I99: =Be!H151 -> 0 | J99: =Be!I151 -> 0 | K99: =Be!J151 -> 0 | L99: =Be!K151 -> 00:00:00 | M99: =Be!L151 -> 0 | N99: =Be!M151 -> 0 | P99: =Be!A147 -> 0
A100: 98. | B100: =Be!A152 -> 0 | C100: =Be!B152 -> 0 | D100: =Be!C152 -> 0 | E100: =Be!D152 -> 0 | F100: =Be!E152 -> 0 | G100: =Be!F152 -> 0 | H100: =Be!G152 -> 0 | I100: =Be!H152 -> 0 | J100: =Be!I152 -> 0 | K100: =Be!J152 -> 0 | L100: =Be!K152 -> 00:00:00 | M100: =Be!L152 -> 0 | N100: =Be!M152 -> 0 | P100: =Be!A147 -> 0
A101: 99. | B101: =Be!A153 -> 0 | C101: =Be!B153 -> 0 | D101: =Be!C153 -> 0 | E101: =Be!D153 -> 0 | F101: =Be!E153 -> 0 | G101: =Be!F153 -> 0 | H101: =Be!G153 -> 0 | I101: =Be!H153 -> 0 | J101: =Be!I153 -> 0 | K101: =Be!J153 -> 0 | L101: =Be!K153 -> 00:00:00 | M101: =Be!L153 -> 0 | N101: =Be!M153 -> 0 | P101: =Be!A147 -> 0
A102: 100. | B102: =Be!A154 -> 0 | C102: =Be!B154 -> 0 | D102: =Be!C154 -> 0 | E102: =Be!D154 -> 0 | F102: =Be!E154 -> 0 | G102: =Be!F154 -> 0 | H102: =Be!G154 -> 0 | I102: =Be!H154 -> 0 | J102: =Be!I154 -> 0 | K102: =Be!J154 -> 0 | L102: =Be!K154 -> 00:00:00 | M102: =Be!L154 -> 0 | N102: =Be!M154 -> 0 | P102: =Be!A147 -> 0
A103: 101. | B103: =Be!A159 -> 0 | C103: =Be!B159 -> 0 | D103: =Be!C159 -> 0 | E103: =Be!D159 -> 0 | F103: =Be!E159 -> 0 | G103: =Be!F159 -> 0 | H103: =Be!G159 -> 0 | I103: =Be!H159 -> 0 | J103: =Be!I159 -> 0 | K103: =Be!J159 -> 0 | L103: =Be!K159 -> 00:00:00 | M103: =Be!L159 -> 0 | N103: =Be!M159 -> 0 | P103: =Be!A157 -> 0
A104: 102. | B104: =Be!A160 -> 0 | C104: =Be!B160 -> 0 | D104: =Be!C160 -> 0 | E104: =Be!D160 -> 0 | F104: =Be!E160 -> 0 | G104: =Be!F160 -> 0 | H104: =Be!G160 -> 0 | I104: =Be!H160 -> 0 | J104: =Be!I160 -> 0 | K104: =Be!J160 -> 0 | L104: =Be!K160 -> 00:00:00 | M104: =Be!L160 -> 0 | N104: =Be!M160 -> 0 | P104: =Be!A157 -> 0
A105: 103. | B105: =Be!A161 -> 0 | C105: =Be!B161 -> 0 | D105: =Be!C161 -> 0 | E105: =Be!D161 -> 0 | F105: =Be!E161 -> 0 | G105: =Be!F161 -> 0 | H105: =Be!G161 -> 0 | I105: =Be!H161 -> 0 | J105: =Be!I161 -> 0 | K105: =Be!J161 -> 0 | L105: =Be!K161 -> 00:00:00 | M105: =Be!L161 -> 0 | N105: =Be!M161 -> 0 | P105: =Be!A157 -> 0
A106: 104. | B106: =Be!A162 -> 0 | C106: =Be!B162 -> 0 | D106: =Be!C162 -> 0 | E106: =Be!D162 -> 0 | F106: =Be!E162 -> 0 | G106: =Be!F162 -> 0 | H106: =Be!G162 -> 0 | I106: =Be!H162 -> 0 | J106: =Be!I162 -> 0 | K106: =Be!J162 -> 0 | L106: =Be!K162 -> 00:00:00 | M106: =Be!L162 -> 0 | N106: =Be!M162 -> 0 | P106: =Be!A157 -> 0
A107: 105. | B107: =Be!A163 -> 0 | C107: =Be!B163 -> 0 | D107: =Be!C163 -> 0 | E107: =Be!D163 -> 0 | F107: =Be!E163 -> 0 | G107: =Be!F163 -> 0 | H107: =Be!G163 -> 0 | I107: =Be!H163 -> 0 | J107: =Be!I163 -> 0 | K107: =Be!J163 -> 0 | L107: =Be!K163 -> 00:00:00 | M107: =Be!L163 -> 0 | N107: =Be!M163 -> 0 | P107: =Be!A157 -> 0
A108: 106. | B108: =Be!A164 -> 0 | C108: =Be!B164 -> 0 | D108: =Be!C164 -> 0 | E108: =Be!D164 -> 0 | F108: =Be!E164 -> 0 | G108: =Be!F164 -> 0 | H108: =Be!G164 -> 0 | I108: =Be!H164 -> 0 | J108: =Be!I164 -> 0 | K108: =Be!J164 -> 0 | L108: =Be!K164 -> 00:00:00 | M108: =Be!L164 -> 0 | N108: =Be!M164 -> 0 | P108: =Be!A157 -> 0
A109: 107. | B109: =Be!A169 -> 0 | C109: =Be!B169 -> 0 | D109: =Be!C169 -> 0 | E109: =Be!D169 -> 0 | F109: =Be!E169 -> 0 | G109: =Be!F169 -> 0 | H109: =Be!G169 -> 0 | I109: =Be!H169 -> 0 | J109: =Be!I169 -> 0 | K109: =Be!J169 -> 0 | L109: =Be!K169 -> 00:00:00 | M109: =Be!L169 -> 0 | N109: =Be!M169 -> 0 | P109: =Be!A167 -> 0
A110: 108. | B110: =Be!A170 -> 0 | C110: =Be!B170 -> 0 | D110: =Be!C170 -> 0 | E110: =Be!D170 -> 0 | F110: =Be!E170 -> 0 | G110: =Be!F170 -> 0 | H110: =Be!G170 -> 0 | I110: =Be!H170 -> 0 | J110: =Be!I170 -> 0 | K110: =Be!J170 -> 0 | L110: =Be!K170 -> 00:00:00 | M110: =Be!L170 -> 0 | N110: =Be!M170 -> 0 | P110: =Be!A167 -> 0
A111: 109. | B111: =Be!A171 -> 0 | C111: =Be!B171 -> 0 | D111: =Be!C171 -> 0 | E111: =Be!D171 -> 0 | F111: =Be!E171 -> 0 | G111: =Be!F171 -> 0 | H111: =Be!G171 -> 0 | I111: =Be!H171 -> 0 | J111: =Be!I171 -> 0 | K111: =Be!J171 -> 0 | L111: =Be!K171 -> 00:00:00 | M111: =Be!L171 -> 0 | N111: =Be!M171 -> 0 | P111: =Be!A167 -> 0
A112: 110. | B112: =Be!A172 -> 0 | C112: =Be!B172 -> 0 | D112: =Be!C172 -> 0 | E112: =Be!D172 -> 0 | F112: =Be!E172 -> 0 | G112: =Be!F172 -> 0 | H112: =Be!G172 -> 0 | I112: =Be!H172 -> 0 | J112: =Be!I172 -> 0 | K112: =Be!J172 -> 0 | L112: =Be!K172 -> 00:00:00 | M112: =Be!L172 -> 0 | N112: =Be!M172 -> 0 | P112: =Be!A167 -> 0
A113: 111. | B113: =Be!A173 -> 0 | C113: =Be!B173 -> 0 | D113: =Be!C173 -> 0 | E113: =Be!D173 -> 0 | F113: =Be!E173 -> 0 | G113: =Be!F173 -> 0 | H113: =Be!G173 -> 0 | I113: =Be!H173 -> 0 | J113: =Be!I173 -> 0 | K113: =Be!J173 -> 0 | L113: =Be!K173 -> 00:00:00 | M113: =Be!L173 -> 0 | N113: =Be!M173 -> 0 | P113: =Be!A167 -> 0
A114: 112. | B114: =Be!A174 -> 0 | C114: =Be!B174 -> 0 | D114: =Be!C174 -> 0 | E114: =Be!D174 -> 0 | F114: =Be!E174 -> 0 | G114: =Be!F174 -> 0 | H114: =Be!G174 -> 0 | I114: =Be!H174 -> 0 | J114: =Be!I174 -> 0 | K114: =Be!J174 -> 0 | L114: =Be!K174 -> 00:00:00 | M114: =Be!L174 -> 0 | N114: =Be!M174 -> 0 | P114: =Be!A167 -> 0
A115: 113. | B115: =Be!A179 -> 0 | C115: =Be!B179 -> 0 | D115: =Be!C179 -> 0 | E115: =Be!D179 -> 0 | F115: =Be!E179 -> 0 | G115: =Be!F179 -> 0 | H115: =Be!G179 -> 0 | I115: =Be!H179 -> 0 | J115: =Be!I179 -> 0 | K115: =Be!J179 -> 0 | L115: =Be!K179 -> 00:00:00 | M115: =Be!L179 -> 0 | N115: =Be!M179 -> 0 | P115: =Be!A177 -> 0
A116: 114. | B116: =Be!A180 -> 0 | C116: =Be!B180 -> 0 | D116: =Be!C180 -> 0 | E116: =Be!D180 -> 0 | F116: =Be!E180 -> 0 | G116: =Be!F180 -> 0 | H116: =Be!G180 -> 0 | I116: =Be!H180 -> 0 | J116: =Be!I180 -> 0 | K116: =Be!J180 -> 0 | L116: =Be!K180 -> 00:00:00 | M116: =Be!L180 -> 0 | N116: =Be!M180 -> 0 | P116: =Be!A177 -> 0
A117: 115. | B117: =Be!A181 -> 0 | C117: =Be!B181 -> 0 | D117: =Be!C181 -> 0 | E117: =Be!D181 -> 0 | F117: =Be!E181 -> 0 | G117: =Be!F181 -> 0 | H117: =Be!G181 -> 0 | I117: =Be!H181 -> 0 | J117: =Be!I181 -> 0 | K117: =Be!J181 -> 0 | L117: =Be!K181 -> 00:00:00 | M117: =Be!L181 -> 0 | N117: =Be!M181 -> 0 | P117: =Be!A177 -> 0
A118: 116. | B118: =Be!A182 -> 0 | C118: =Be!B182 -> 0 | D118: =Be!C182 -> 0 | E118: =Be!D182 -> 0 | F118: =Be!E182 -> 0 | G118: =Be!F182 -> 0 | H118: =Be!G182 -> 0 | I118: =Be!H182 -> 0 | J118: =Be!I182 -> 0 | K118: =Be!J182 -> 0 | L118: =Be!K182 -> 00:00:00 | M118: =Be!L182 -> 0 | N118: =Be!M182 -> 0 | P118: =Be!A177 -> 0
A119: 117. | B119: =Be!A183 -> 0 | C119: =Be!B183 -> 0 | D119: =Be!C183 -> 0 | E119: =Be!D183 -> 0 | F119: =Be!E183 -> 0 | G119: =Be!F183 -> 0 | H119: =Be!G183 -> 0 | I119: =Be!H183 -> 0 | J119: =Be!I183 -> 0 | K119: =Be!J183 -> 0 | L119: =Be!K183 -> 00:00:00 | M119: =Be!L183 -> 0 | N119: =Be!M183 -> 0 | P119: =Be!A177 -> 0
A120: 118. | B120: =Be!A184 -> 0 | C120: =Be!B184 -> 0 | D120: =Be!C184 -> 0 | E120: =Be!D184 -> 0 | F120: =Be!E184 -> 0 | G120: =Be!F184 -> 0 | H120: =Be!G184 -> 0 | I120: =Be!H184 -> 0 | J120: =Be!I184 -> 0 | K120: =Be!J184 -> 0 | L120: =Be!K184 -> 00:00:00 | M120: =Be!L184 -> 0 | N120: =Be!M184 -> 0 | P120: =Be!A177 -> 0
A121: 119. | B121: =Be!A189 -> 0 | C121: =Be!B189 -> 0 | D121: =Be!C189 -> 0 | E121: =Be!D189 -> 0 | F121: =Be!E189 -> 0 | G121: =Be!F189 -> 0 | H121: =Be!G189 -> 0 | I121: =Be!H189 -> 0 | J121: =Be!I189 -> 0 | K121: =Be!J189 -> 0 | L121: =Be!K189 -> 00:00:00 | M121: =Be!L189 -> 0 | N121: =Be!M189 -> 0 | P121: =Be!A187 -> 0
A122: 120. | B122: =Be!A190 -> 0 | C122: =Be!B190 -> 0 | D122: =Be!C190 -> 0 | E122: =Be!D190 -> 0 | F122: =Be!E190 -> 0 | G122: =Be!F190 -> 0 | H122: =Be!G190 -> 0 | I122: =Be!H190 -> 0 | J122: =Be!I190 -> 0 | K122: =Be!J190 -> 0 | L122: =Be!K190 -> 00:00:00 | M122: =Be!L190 -> 0 | N122: =Be!M190 -> 0 | P122: =Be!A187 -> 0
A123: 121. | B123: =Be!A191 -> 0 | C123: =Be!B191 -> 0 | D123: =Be!C191 -> 0 | E123: =Be!D191 -> 0 | F123: =Be!E191 -> 0 | G123: =Be!F191 -> 0 | H123: =Be!G191 -> 0 | I123: =Be!H191 -> 0 | J123: =Be!I191 -> 0 | K123: =Be!J191 -> 0 | L123: =Be!K191 -> 00:00:00 | M123: =Be!L191 -> 0 | N123: =Be!M191 -> 0 | P123: =Be!A187 -> 0
A124: 122. | B124: =Be!A192 -> 0 | C124: =Be!B192 -> 0 | D124: =Be!C192 -> 0 | E124: =Be!D192 -> 0 | F124: =Be!E192 -> 0 | G124: =Be!F192 -> 0 | H124: =Be!G192 -> 0 | I124: =Be!H192 -> 0 | J124: =Be!I192 -> 0 | K124: =Be!J192 -> 0 | L124: =Be!K192 -> 00:00:00 | M124: =Be!L192 -> 0 | N124: =Be!M192 -> 0 | P124: =Be!A187 -> 0
A125: 123. | B125: =Be!A193 -> 0 | C125: =Be!B193 -> 0 | D125: =Be!C193 -> 0 | E125: =Be!D193 -> 0 | F125: =Be!E193 -> 0 | G125: =Be!F193 -> 0 | H125: =Be!G193 -> 0 | I125: =Be!H193 -> 0 | J125: =Be!I193 -> 0 | K125: =Be!J193 -> 0 | L125: =Be!K193 -> 00:00:00 | M125: =Be!L193 -> 0 | N125: =Be!M193 -> 0 | P125: =Be!A187 -> 0
A126: 124. | B126: =Be!A194 -> 0 | C126: =Be!B194 -> 0 | D126: =Be!C194 -> 0 | E126: =Be!D194 -> 0 | F126: =Be!E194 -> 0 | G126: =Be!F194 -> 0 | H126: =Be!G194 -> 0 | I126: =Be!H194 -> 0 | J126: =Be!I194 -> 0 | K126: =Be!J194 -> 0 | L126: =Be!K194 -> 00:00:00 | M126: =Be!L194 -> 0 | N126: =Be!M194 -> 0 | P126: =Be!A187 -> 0
A127: 125. | B127: =Be!A199 -> 0 | C127: =Be!B199 -> 0 | D127: =Be!C199 -> 0 | E127: =Be!D199 -> 0 | F127: =Be!E199 -> 0 | G127: =Be!F199 -> 0 | H127: =Be!G199 -> 0 | I127: =Be!H199 -> 0 | J127: =Be!I199 -> 0 | K127: =Be!J199 -> 0 | L127: =Be!K199 -> 00:00:00 | M127: =Be!L199 -> 0 | N127: =Be!M199 -> 0 | P127: =Be!A197 -> 0
A128: 126. | B128: =Be!A200 -> 0 | C128: =Be!B200 -> 0 | D128: =Be!C200 -> 0 | E128: =Be!D200 -> 0 | F128: =Be!E200 -> 0 | G128: =Be!F200 -> 0 | H128: =Be!G200 -> 0 | I128: =Be!H200 -> 0 | J128: =Be!I200 -> 0 | K128: =Be!J200 -> 0 | L128: =Be!K200 -> 00:00:00 | M128: =Be!L200 -> 0 | N128: =Be!M200 -> 0 | P128: =Be!A197 -> 0
A129: 127. | B129: =Be!A201 -> 0 | C129: =Be!B201 -> 0 | D129: =Be!C201 -> 0 | E129: =Be!D201 -> 0 | F129: =Be!E201 -> 0 | G129: =Be!F201 -> 0 | H129: =Be!G201 -> 0 | I129: =Be!H201 -> 0 | J129: =Be!I201 -> 0 | K129: =Be!J201 -> 0 | L129: =Be!K201 -> 00:00:00 | M129: =Be!L201 -> 0 | N129: =Be!M201 -> 0 | P129: =Be!A197 -> 0
A130: 128. | B130: =Be!A202 -> 0 | C130: =Be!B202 -> 0 | D130: =Be!C202 -> 0 | E130: =Be!D202 -> 0 | F130: =Be!E202 -> 0 | G130: =Be!F202 -> 0 | H130: =Be!G202 -> 0 | I130: =Be!H202 -> 0 | J130: =Be!I202 -> 0 | K130: =Be!J202 -> 0 | L130: =Be!K202 -> 00:00:00 | M130: =Be!L202 -> 0 | N130: =Be!M202 -> 0 | P130: =Be!A197 -> 0
A131: 129. | B131: =Be!A203 -> 0 | C131: =Be!B203 -> 0 | D131: =Be!C203 -> 0 | E131: =Be!D203 -> 0 | F131: =Be!E203 -> 0 | G131: =Be!F203 -> 0 | H131: =Be!G203 -> 0 | I131: =Be!H203 -> 0 | J131: =Be!I203 -> 0 | K131: =Be!J203 -> 0 | L131: =Be!K203 -> 00:00:00 | M131: =Be!L203 -> 0 | N131: =Be!M203 -> 0 | P131: =Be!A197 -> 0
A132: 130. | B132: =Be!A204 -> 0 | C132: =Be!B204 -> 0 | D132: =Be!C204 -> 0 | E132: =Be!D204 -> 0 | F132: =Be!E204 -> 0 | G132: =Be!F204 -> 0 | H132: =Be!G204 -> 0 | I132: =Be!H204 -> 0 | J132: =Be!I204 -> 0 | K132: =Be!J204 -> 0 | L132: =Be!K204 -> 00:00:00 | M132: =Be!L204 -> 0 | N132: =Be!M204 -> 0 | P132: =Be!A197 -> 0
A133: 131. | B133: =Be!A209 -> 0 | C133: =Be!B209 -> 0 | D133: =Be!C209 -> 0 | E133: =Be!D209 -> 0 | F133: =Be!E209 -> 0 | G133: =Be!F209 -> 0 | H133: =Be!G209 -> 0 | I133: =Be!H209 -> 0 | J133: =Be!I209 -> 0 | K133: =Be!J209 -> 0 | L133: =Be!K209 -> 00:00:00 | M133: =Be!L209 -> 0 | N133: =Be!M209 -> 0 | P133: =Be!A207 -> 0
A134: 132. | B134: =Be!A210 -> 0 | C134: =Be!B210 -> 0 | D134: =Be!C210 -> 0 | E134: =Be!D210 -> 0 | F134: =Be!E210 -> 0 | G134: =Be!F210 -> 0 | H134: =Be!G210 -> 0 | I134: =Be!H210 -> 0 | J134: =Be!I210 -> 0 | K134: =Be!J210 -> 0 | L134: =Be!K210 -> 00:00:00 | M134: =Be!L210 -> 0 | N134: =Be!M210 -> 0 | P134: =Be!A207 -> 0
A135: 133. | B135: =Be!A211 -> 0 | C135: =Be!B211 -> 0 | D135: =Be!C211 -> 0 | E135: =Be!D211 -> 0 | F135: =Be!E211 -> 0 | G135: =Be!F211 -> 0 | H135: =Be!G211 -> 0 | I135: =Be!H211 -> 0 | J135: =Be!I211 -> 0 | K135: =Be!J211 -> 0 | L135: =Be!K211 -> 00:00:00 | M135: =Be!L211 -> 0 | N135: =Be!M211 -> 0 | P135: =Be!A207 -> 0
A136: 134. | B136: =Be!A212 -> 0 | C136: =Be!B212 -> 0 | D136: =Be!C212 -> 0 | E136: =Be!D212 -> 0 | F136: =Be!E212 -> 0 | G136: =Be!F212 -> 0 | H136: =Be!G212 -> 0 | I136: =Be!H212 -> 0 | J136: =Be!I212 -> 0 | K136: =Be!J212 -> 0 | L136: =Be!K212 -> 00:00:00 | M136: =Be!L212 -> 0 | N136: =Be!M212 -> 0 | P136: =Be!A207 -> 0
A137: 135. | B137: =Be!A213 -> 0 | C137: =Be!B213 -> 0 | D137: =Be!C213 -> 0 | E137: =Be!D213 -> 0 | F137: =Be!E213 -> 0 | G137: =Be!F213 -> 0 | H137: =Be!G213 -> 0 | I137: =Be!H213 -> 0 | J137: =Be!I213 -> 0 | K137: =Be!J213 -> 0 | L137: =Be!K213 -> 00:00:00 | M137: =Be!L213 -> 0 | N137: =Be!M213 -> 0 | P137: =Be!A207 -> 0
A138: 136. | B138: =Be!A214 -> 0 | C138: =Be!B214 -> 0 | D138: =Be!C214 -> 0 | E138: =Be!D214 -> 0 | F138: =Be!E214 -> 0 | G138: =Be!F214 -> 0 | H138: =Be!G214 -> 0 | I138: =Be!H214 -> 0 | J138: =Be!I214 -> 0 | K138: =Be!J214 -> 0 | L138: =Be!K214 -> 00:00:00 | M138: =Be!L214 -> 0 | N138: =Be!M214 -> 0 | P138: =Be!A207 -> 0
A139: 137. | B139: =Be!A219 -> 0 | C139: =Be!B219 -> 0 | D139: =Be!C219 -> 0 | E139: =Be!D219 -> 0 | F139: =Be!E219 -> 0 | G139: =Be!F219 -> 0 | H139: =Be!G219 -> 0 | I139: =Be!H219 -> 0 | J139: =Be!I219 -> 0 | K139: =Be!J219 -> 0 | L139: =Be!K219 -> 00:00:00 | M139: =Be!L219 -> 0 | N139: =Be!M219 -> 0 | P139: =Be!A217 -> 0
A140: 138. | B140: =Be!A220 -> 0 | C140: =Be!B220 -> 0 | D140: =Be!C220 -> 0 | E140: =Be!D220 -> 0 | F140: =Be!E220 -> 0 | G140: =Be!F220 -> 0 | H140: =Be!G220 -> 0 | I140: =Be!H220 -> 0 | J140: =Be!I220 -> 0 | K140: =Be!J220 -> 0 | L140: =Be!K220 -> 00:00:00 | M140: =Be!L220 -> 0 | N140: =Be!M220 -> 0 | P140: =Be!A217 -> 0
A141: 139. | B141: =Be!A221 -> 0 | C141: =Be!B221 -> 0 | D141: =Be!C221 -> 0 | E141: =Be!D221 -> 0 | F141: =Be!E221 -> 0 | G141: =Be!F221 -> 0 | H141: =Be!G221 -> 0 | I141: =Be!H221 -> 0 | J141: =Be!I221 -> 0 | K141: =Be!J221 -> 0 | L141: =Be!K221 -> 00:00:00 | M141: =Be!L221 -> 0 | N141: =Be!M221 -> 0 | P141: =Be!A217 -> 0
A142: 140. | B142: =Be!A222 -> 0 | C142: =Be!B222 -> 0 | D142: =Be!C222 -> 0 | E142: =Be!D222 -> 0 | F142: =Be!E222 -> 0 | G142: =Be!F222 -> 0 | H142: =Be!G222 -> 0 | I142: =Be!H222 -> 0 | J142: =Be!I222 -> 0 | K142: =Be!J222 -> 0 | L142: =Be!K222 -> 00:00:00 | M142: =Be!L222 -> 0 | N142: =Be!M222 -> 0 | P142: =Be!A217 -> 0
A143: 141. | B143: =Be!A223 -> 0 | C143: =Be!B223 -> 0 | D143: =Be!C223 -> 0 | E143: =Be!D223 -> 0 | F143: =Be!E223 -> 0 | G143: =Be!F223 -> 0 | H143: =Be!G223 -> 0 | I143: =Be!H223 -> 0 | J143: =Be!I223 -> 0 | K143: =Be!J223 -> 0 | L143: =Be!K223 -> 00:00:00 | M143: =Be!L223 -> 0 | N143: =Be!M223 -> 0 | P143: =Be!A217 -> 0
A144: 142. | B144: =Be!A224 -> 0 | C144: =Be!B224 -> 0 | D144: =Be!C224 -> 0 | E144: =Be!D224 -> 0 | F144: =Be!E224 -> 0 | G144: =Be!F224 -> 0 | H144: =Be!G224 -> 0 | I144: =Be!H224 -> 0 | J144: =Be!I224 -> 0 | K144: =Be!J224 -> 0 | L144: =Be!K224 -> 00:00:00 | M144: =Be!L224 -> 0 | N144: =Be!M224 -> 0 | P144: =Be!A217 -> 0
A145: 143. | B145: =Be!A229 -> 0 | C145: =Be!B229 -> 0 | D145: =Be!C229 -> 0 | E145: =Be!D229 -> 0 | F145: =Be!E229 -> 0 | G145: =Be!F229 -> 0 | H145: =Be!G229 -> 0 | I145: =Be!H229 -> 0 | J145: =Be!I229 -> 0 | K145: =Be!J229 -> 0 | L145: =Be!K229 -> 00:00:00 | M145: =Be!L229 -> 0 | N145: =Be!M229 -> 0 | P145: =Be!A227 -> 0
A146: 144. | B146: =Be!A230 -> 0 | C146: =Be!B230 -> 0 | D146: =Be!C230 -> 0 | E146: =Be!D230 -> 0 | F146: =Be!E230 -> 0 | G146: =Be!F230 -> 0 | H146: =Be!G230 -> 0 | I146: =Be!H230 -> 0 | J146: =Be!I230 -> 0 | K146: =Be!J230 -> 0 | L146: =Be!K230 -> 00:00:00 | M146: =Be!L230 -> 0 | N146: =Be!M230 -> 0 | P146: =Be!A227 -> 0
A147: 145. | B147: =Be!A231 -> 0 | C147: =Be!B231 -> 0 | D147: =Be!C231 -> 0 | E147: =Be!D231 -> 0 | F147: =Be!E231 -> 0 | G147: =Be!F231 -> 0 | H147: =Be!G231 -> 0 | I147: =Be!H231 -> 0 | J147: =Be!I231 -> 0 | K147: =Be!J231 -> 0 | L147: =Be!K231 -> 00:00:00 | M147: =Be!L231 -> 0 | N147: =Be!M231 -> 0 | P147: =Be!A227 -> 0
A148: 146. | B148: =Be!A232 -> 0 | C148: =Be!B232 -> 0 | D148: =Be!C232 -> 0 | E148: =Be!D232 -> 0 | F148: =Be!E232 -> 0 | G148: =Be!F232 -> 0 | H148: =Be!G232 -> 0 | I148: =Be!H232 -> 0 | J148: =Be!I232 -> 0 | K148: =Be!J232 -> 0 | L148: =Be!K232 -> 00:00:00 | M148: =Be!L232 -> 0 | N148: =Be!M232 -> 0 | P148: =Be!A227 -> 0
A149: 147. | B149: =Be!A233 -> 0 | C149: =Be!B233 -> 0 | D149: =Be!C233 -> 0 | E149: =Be!D233 -> 0 | F149: =Be!E233 -> 0 | G149: =Be!F233 -> 0 | H149: =Be!G233 -> 0 | I149: =Be!H233 -> 0 | J149: =Be!I233 -> 0 | K149: =Be!J233 -> 0 | L149: =Be!K233 -> 00:00:00 | M149: =Be!L233 -> 0 | N149: =Be!M233 -> 0 | P149: =Be!A227 -> 0
A150: 148. | B150: =Be!A234 -> 0 | C150: =Be!B234 -> 0 | D150: =Be!C234 -> 0 | E150: =Be!D234 -> 0 | F150: =Be!E234 -> 0 | G150: =Be!F234 -> 0 | H150: =Be!G234 -> 0 | I150: =Be!H234 -> 0 | J150: =Be!I234 -> 0 | K150: =Be!J234 -> 0 | L150: =Be!K234 -> 00:00:00 | M150: =Be!L234 -> 0 | N150: =Be!M234 -> 0 | P150: =Be!A227 -> 0
A151: 149. | B151: =Be!A239 -> 0 | C151: =Be!B239 -> 0 | D151: =Be!C239 -> 0 | E151: =Be!D239 -> 0 | F151: =Be!E239 -> 0 | G151: =Be!F239 -> 0 | H151: =Be!G239 -> 0 | I151: =Be!H239 -> 0 | J151: =Be!I239 -> 0 | K151: =Be!J239 -> 0 | L151: =Be!K239 -> 00:00:00 | M151: =Be!L239 -> 0 | N151: =Be!M239 -> 0 | P151: =Be!A237 -> 0
A152: 150. | B152: =Be!A240 -> 0 | C152: =Be!B240 -> 0 | D152: =Be!C240 -> 0 | E152: =Be!D240 -> 0 | F152: =Be!E240 -> 0 | G152: =Be!F240 -> 0 | H152: =Be!G240 -> 0 | I152: =Be!H240 -> 0 | J152: =Be!I240 -> 0 | K152: =Be!J240 -> 0 | L152: =Be!K240 -> 00:00:00 | M152: =Be!L240 -> 0 | N152: =Be!M240 -> 0 | P152: =Be!A237 -> 0
A153: 151. | B153: =Be!A241 -> 0 | C153: =Be!B241 -> 0 | D153: =Be!C241 -> 0 | E153: =Be!D241 -> 0 | F153: =Be!E241 -> 0 | G153: =Be!F241 -> 0 | H153: =Be!G241 -> 0 | I153: =Be!H241 -> 0 | J153: =Be!I241 -> 0 | K153: =Be!J241 -> 0 | L153: =Be!K241 -> 00:00:00 | M153: =Be!L241 -> 0 | N153: =Be!M241 -> 0 | P153: =Be!A237 -> 0
A154: 152. | B154: =Be!A242 -> 0 | C154: =Be!B242 -> 0 | D154: =Be!C242 -> 0 | E154: =Be!D242 -> 0 | F154: =Be!E242 -> 0 | G154: =Be!F242 -> 0 | H154: =Be!G242 -> 0 | I154: =Be!H242 -> 0 | J154: =Be!I242 -> 0 | K154: =Be!J242 -> 0 | L154: =Be!K242 -> 00:00:00 | M154: =Be!L242 -> 0 | N154: =Be!M242 -> 0 | P154: =Be!A237 -> 0
A155: 153. | B155: =Be!A243 -> 0 | C155: =Be!B243 -> 0 | D155: =Be!C243 -> 0 | E155: =Be!D243 -> 0 | F155: =Be!E243 -> 0 | G155: =Be!F243 -> 0 | H155: =Be!G243 -> 0 | I155: =Be!H243 -> 0 | J155: =Be!I243 -> 0 | K155: =Be!J243 -> 0 | L155: =Be!K243 -> 00:00:00 | M155: =Be!L243 -> 0 | N155: =Be!M243 -> 0 | P155: =Be!A237 -> 0
A156: 154. | B156: =Be!A244 -> 0 | C156: =Be!B244 -> 0 | D156: =Be!C244 -> 0 | E156: =Be!D244 -> 0 | F156: =Be!E244 -> 0 | G156: =Be!F244 -> 0 | H156: =Be!G244 -> 0 | I156: =Be!H244 -> 0 | J156: =Be!I244 -> 0 | K156: =Be!J244 -> 0 | L156: =Be!K244 -> 00:00:00 | M156: =Be!L244 -> 0 | N156: =Be!M244 -> 0 | P156: =Be!A237 -> 0

Sheet Csapat
A1: IV. korcsoport LEÁNY CSAPAT verseny (Sorrendezés Ctrl + z )
A2: Ssz | B2: Iskola | C2: Pont
A3: 1. | B3: =Be!$A$57&CHAR(10)&Be!$A$59&" "&Be!$M$59&" "&Be!$A$60&" "&Be!$M$60&CHAR(10)&Be!$A$61&" "&Be!$M$61&" "&Be!$A$62&" "&Be!$M$62&CHAR(10)&Be!$A$63&" "&Be!$M$63&" "&Be!$A$64&" "&Be!$M$64 -> Dunaharaszti Körösi Csoma Sándor. Ált. Isk Fehér Fanni 586 Gabona Nikol 719 Horváth Amira 498 Králik Borbála 725 Ordódy Norina 600 Sárosi Bianka 467 | C3: =Be!$O$59 -> 3128
A4: 2. | B4: =Be!$A$37&CHAR(10)&Be!$A$39&" "&Be!$M$39&" "&Be!$A$40&" "&Be!$M$40&CHAR(10)&Be!$A$41&" "&Be!$M$41&" "&Be!$A$42&" "&Be!$M$42&CHAR(10)&Be!$A$43&" "&Be!$M$43&" "&Be!$A$44&" "&Be!$M$44 -> Ráckevei Ady Endre Gimnázium Rupa Sára 430 Rácz Emese 459 Csömöri Boglárka 561 Gólya Boglárka 524 Sokácz Nóra 623 Novák Orsolya 811 | C4: =Be!$O$39 -> 2978
A5: 3. | B5: =Be!$A$47&CHAR(10)&Be!$A$49&" "&Be!$M$49&" "&Be!$A$50&" "&Be!$M$50&CHAR(10)&Be!$A$51&" "&Be!$M$51&" "&Be!$A$52&" "&Be!$M$52&CHAR(10)&Be!$A$53&" "&Be!$M$53&" "&Be!$A$54&" "&Be!$M$54 -> Tököli Weöres Sándor Ált.Iskola Bednanics Dóra 565 Csoma Liliána 619 Deidda Elisa 437 Hirth Szonja 536 Kassai Adrienn Zora 481 Strucz Laura 684 | C5: =Be!$O$49 -> 2885
A6: 4. | B6: =Be!$A$67&CHAR(10)&Be!$A$69&" "&Be!$M$69&" "&Be!$A$70&" "&Be!$M$70&CHAR(10)&Be!$A$71&" "&Be!$M$71&" "&Be!$A$72&" "&Be!$M$72&CHAR(10)&Be!$A$73&" "&Be!$M$73&" "&Be!$A$74&" "&Be!$M$74 -> Kiskunlacházi Ált.Isk Kovács Daniella 627 Erős Boglárka 593 Lacza Lilla 512 Varga Szonja 518 Marossy Kiara 453 Marossy Rebeka 508 | C6: =Be!$O$69 -> 2758
A7: 5. | B7: =Be!$A$27&CHAR(10)&Be!$A$29&" "&Be!$M$29&" "&Be!$A$30&" "&Be!$M$30&CHAR(10)&Be!$A$31&" "&Be!$M$31&" "&Be!$A$32&" "&Be!$M$32&CHAR(10)&Be!$A$33&" "&Be!$M$33&" "&Be!$A$34&" "&Be!$M$34 -> Ráckeve Szent Imre Katolikus Ált. Isk. Galambos Eszter 658 Badits Vanda 508 Samu Szellő 554 Novák Alexandra 517 Szebellédi Veronika 516 0 | C7: =Be!$O$29 -> 2753
A8: 6. | B8: =Be!$A$77&CHAR(10)&Be!$A$79&" "&Be!$M$79&" "&Be!$A$80&" "&Be!$M$80&CHAR(10)&Be!$A$81&" "&Be!$M$81&" "&Be!$A$82&" "&Be!$M$82&CHAR(10)&Be!$A$83&" "&Be!$M$83&" "&Be!$A$84&" "&Be!$M$84 -> Szigetszentmárton Forró Eszter 278 Kaszab Lili 337 Molnár Kincső 544 Réti Blanka 467 Tátrai Zita 542 Váradi Szabina 524 | C8: =Be!$O$79 -> 2414
A9: 7. | B9: =Be!$A$87&CHAR(10)&Be!$A$89&" "&Be!$M$89&" "&Be!$A$90&" "&Be!$M$90&CHAR(10)&Be!$A$91&" "&Be!$M$91&" "&Be!$A$92&" "&Be!$M$92&CHAR(10)&Be!$A$93&" "&Be!$M$93&" "&Be!$A$94&" "&Be!$M$94 -> Áporka Ált. Isk Kelemen Kata Boglárka 371 Kiss Mollii 396 Hihály Bianka 456 0 0 0 | C9: =Be!$O$89 -> 1223
A10: 8. | B10: =Be!$A$97&CHAR(10)&Be!$A$99&" "&Be!$M$99&" "&Be!$A$100&" "&Be!$M$100&CHAR(10)&Be!$A$101&" "&Be!$M$101&" "&Be!$A$102&" "&Be!$M$102&CHAR(10)&Be!$A$103&" "&Be!$M$103&" "&Be!$A$104&" "&Be!$M$104 -> 0 0 0 0 0 0 | C10: =Be!$O$99 -> 0
A11: 9. | B11: =Be!$A$107&CHAR(10)&Be!$A$109&" "&Be!$M$109&" "&Be!$A$110&" "&Be!$M$110&CHAR(10)&Be!$A$111&" "&Be!$M$111&" "&Be!$A$112&" "&Be!$M$112&CHAR(10)&Be!$A$113&" "&Be!$M$113&" "&Be!$A$114&" "&Be!$M$114 -> 0 0 0 0 0 0 | C11: =Be!$O$109 -> 0
A12: 10. | B12: =Be!$A$117&CHAR(10)&Be!$A$119&" "&Be!$M$119&" "&Be!$A$120&" "&Be!$M$120&CHAR(10)&Be!$A$121&" "&Be!$M$121&" "&Be!$A$122&" "&Be!$M$122&CHAR(10)&Be!$A$123&" "&Be!$M$123&" "&Be!$A$124&" "&Be!$M$124 -> 0 0 0 0 0 0 | C12: =Be!$O$119 -> 0
A13: 11. | B13: =Be!$A$127&CHAR(10)&Be!$A$129&" "&Be!$M$129&" "&Be!$A$130&" "&Be!$M$130&CHAR(10)&Be!$A$131&" "&Be!$M$131&" "&Be!$A$132&" "&Be!$M$132&CHAR(10)&Be!$A$133&" "&Be!$M$133&" "&Be!$A$134&" "&Be!$M$134 -> 0 0 0 0 0 0 | C13: =Be!$O$129 -> 0
A14: 12. | B14: =Be!$A$137&CHAR(10)&Be!$A$139&" "&Be!$M$139&" "&Be!$A$140&" "&Be!$M$140&CHAR(10)&Be!$A$141&" "&Be!$M$141&" "&Be!$A$142&" "&Be!$M$142&CHAR(10)&Be!$A$143&" "&Be!$M$143&" "&Be!$A$144&" "&Be!$M$144 -> 0 0 0 0 0 0 | C14: =Be!$O$139 -> 0
A15: 13. | B15: =Be!$A$147&CHAR(10)&Be!$A$149&" "&Be!$M$149&" "&Be!$A$150&" "&Be!$M$150&CHAR(10)&Be!$A$151&" "&Be!$M$151&" "&Be!$A$152&" "&Be!$M$152&CHAR(10)&Be!$A$153&" "&Be!$M$153&" "&Be!$A$154&" "&Be!$M$154 -> 0 0 0 0 0 0 | C15: =Be!$O$149 -> 0
A16: 14. | B16: =Be!$A$157&CHAR(10)&Be!$A$159&" "&Be!$M$159&" "&Be!$A$160&" "&Be!$M$160&CHAR(10)&Be!$A$161&" "&Be!$M$161&" "&Be!$A$162&" "&Be!$M$162&CHAR(10)&Be!$A$163&" "&Be!$M$163&" "&Be!$A$164&" "&Be!$M$164 -> 0 0 0 0 0 0 | C16: =Be!$O$159 -> 0
A17: 15. | B17: =Be!$A$167&CHAR(10)&Be!$A$169&" "&Be!$M$169&" "&Be!$A$170&" "&Be!$M$170&CHAR(10)&Be!$A$171&" "&Be!$M$171&" "&Be!$A$172&" "&Be!$M$172&CHAR(10)&Be!$A$173&" "&Be!$M$173&" "&Be!$A$174&" "&Be!$M$174 -> 0 0 0 0 0 0 | C17: =Be!$O$169 -> 0
A18: 16. | B18: =Be!$A$177&CHAR(10)&Be!$A$179&" "&Be!$M$179&" "&Be!$A$180&" "&Be!$M$180&CHAR(10)&Be!$A$181&" "&Be!$M$181&" "&Be!$A$182&" "&Be!$M$182&CHAR(10)&Be!$A$183&" "&Be!$M$183&" "&Be!$A$184&" "&Be!$M$184 -> 0 0 0 0 0 0 | C18: =Be!$O$179 -> 0
A19: 17. | B19: =Be!$A$187&CHAR(10)&Be!$A$189&" "&Be!$M$189&" "&Be!$A$190&" "&Be!$M$190&CHAR(10)&Be!$A$191&" "&Be!$M$191&" "&Be!$A$192&" "&Be!$M$192&CHAR(10)&Be!$A$193&" "&Be!$M$193&" "&Be!$A$194&" "&Be!$M$194 -> 0 0 0 0 0 0 | C19: =Be!$O$189 -> 0
A20: 18. | B20: =Be!$A$197&CHAR(10)&Be!$A$199&" "&Be!$M$199&" "&Be!$A$200&" "&Be!$M$200&CHAR(10)&Be!$A$201&" "&Be!$M$201&" "&Be!$A$202&" "&Be!$M$202&CHAR(10)&Be!$A$203&" "&Be!$M$203&" "&Be!$A$204&" "&Be!$M$204 -> 0 0 0 0 0 0 | C20: =Be!$O$199 -> 0
A21: 19. | B21: =Be!$A$207&CHAR(10)&Be!$A$209&" "&Be!$M$209&" "&Be!$A$210&" "&Be!$M$210&CHAR(10)&Be!$A$211&" "&Be!$M$211&" "&Be!$A$212&" "&Be!$M$212&CHAR(10)&Be!$A$213&" "&Be!$M$213&" "&Be!$A$214&" "&Be!$M$214 -> 0 0 0 0 0 0 | C21: =Be!$O$209 -> 0
A22: 20. | B22: =Be!$A$217&CHAR(10)&Be!$A$219&" "&Be!$M$219&" "&Be!$A$220&" "&Be!$M$220&CHAR(10)&Be!$A$221&" "&Be!$M$221&" "&Be!$A$222&" "&Be!$M$222&CHAR(10)&Be!$A$223&" "&Be!$M$223&" "&Be!$A$224&" "&Be!$M$224 -> 0 0 0 0 0 0 | C22: =Be!$O$219 -> 0
A23: 21. | B23: =Be!$A$227&CHAR(10)&Be!$A$229&" "&Be!$M$229&" "&Be!$A$230&" "&Be!$M$230&CHAR(10)&Be!$A$231&" "&Be!$M$231&" "&Be!$A$232&" "&Be!$M$232&CHAR(10)&Be!$A$233&" "&Be!$M$233&" "&Be!$A$234&" "&Be!$M$234 -> 0 0 0 0 0 0 | C23: =Be!$O$229 -> 0
A24: 22. | B24: =Be!$A$237&CHAR(10)&Be!$A$239&" "&Be!$M$239&" "&Be!$A$240&" "&Be!$M$240&CHAR(10)&Be!$A$241&" "&Be!$M$241&" "&Be!$A$242&" "&Be!$M$242&CHAR(10)&Be!$A$243&" "&Be!$M$243&" "&Be!$A$244&" "&Be!$M$244 -> 0 0 0 0 0 0 | C24: =Be!$O$239 -> 0
